Departmental Family,Entity,Date,Expense Type,Expense Area,Supplier,Supplier Type,Expenditure Description,Transaction Number,Amount
Department for Education,DEPARTMENT FOR EDUCATION,01/05/2012,Current Grants,Children Young People and Families Safeguarding Group,NSPCC,VCS,Current grant to third sector organisation / not for profit organisation,4000079080,1000000
Department for Education,DEPARTMENT FOR EDUCATION,01/05/2012,Current Grants,Families Group,LEEDS CITY COUNCIL,Public Sector,Current grant paid to local authorities within the aggregate external funding total,4000079074,137500
Department for Education,DEPARTMENT FOR EDUCATION,01/05/2012,Professional Services Other,Academies Delivery Group,VEREDUS C/O CAPITA RESOURCING LTD,Commercial,"Costs related to fees and expenses of professional from the private sector, for example implementing advice or changes",4000079105,105391.32
Department for Education,DEPARTMENT FOR EDUCATION,01/05/2012,Professional Services Other,Academies Delivery Group,VEREDUS C/O CAPITA RESOURCING LTD,Commercial,"Costs related to fees and expenses of professional from the private sector, for example implementing advice or changes",4000079106,90257.41
Department for Education,DEPARTMENT FOR EDUCATION,01/05/2012,DfE Programme Costs,Free School Group,PLACE GROUP LTD,Commercial,Funding to deliver DfE policies (excluding consultancy) paid to third parties via a service delivery contract,4000079086,79724.44
Department for Education,DEPARTMENT FOR EDUCATION,01/05/2012,Current Grants,Families Group,BLACKBURN WITH DARWEN BOROUGH COUNCIL,Public Sector,Current grant paid to local authorities within the aggregate external funding total,4000079057,78739
Department for Education,DEPARTMENT FOR EDUCATION,01/05/2012,Current Grants,Families Group,LONDON BOROUGH OF GREENWICH,Public Sector,Current grant paid to local authorities within the aggregate external funding total,4000079075,77500
Department for Education,DEPARTMENT FOR EDUCATION,01/05/2012,Current Grants,Families Group,OXFORDSHIRE COUNTY COUNCIL,Public Sector,Current grant paid to local authorities within the aggregate external funding total,4000079082,77500
Department for Education,DEPARTMENT FOR EDUCATION,01/05/2012,DfE Programme Costs,Free School Group,PKF UK LLP,Commercial,Funding to deliver DfE policies (excluding consultancy) paid to third parties via a service delivery contract,4000079085,76912.5
Department for Education,DEPARTMENT FOR EDUCATION,01/05/2012,DfE Programme Costs,Academies Delivery Group,EC HARRIS LLP,Commercial,Funding to deliver DfE policies (excluding consultancy) paid to third parties via a service delivery contract,4000079066,52341.19
Department for Education,DEPARTMENT FOR EDUCATION,01/05/2012,Professional Services Other,SCHOOL STANDARDS GROUP,NATIONAL CENTRE FOR SOCIAL RESEARCH,VCS,Costs related to research and evaluation activities including contracted out data collation / gathering exercises when there is no analysis or recommendation,4000079078,48694
Department for Education,DEPARTMENT FOR EDUCATION,01/05/2012,Current Grants,Families Group,CAMBRIDGESHIRE COUNTY COUNCIL,Public Sector,Current grant paid to local authorities within the aggregate external funding total,4000079060,45500
Department for Education,DEPARTMENT FOR EDUCATION,01/05/2012,Current Grants,Families Group,DUDLEY MBC,Public Sector,Current grant paid to local authorities within the aggregate external funding total,4000079064,44000
Department for Education,DEPARTMENT FOR EDUCATION,01/05/2012,Current Grants,Academies Delivery Group,OASIS COMMUNITY LEARNING,Public Sector,"Current grant paid to organisations including agencies, arms length bodies and educational establishments",4000079081,41617.5
Department for Education,DEPARTMENT FOR EDUCATION,01/05/2012,Current Grants,Families Group,SALFORD CITY COUNCIL,Public Sector,Current grant paid to local authorities within the aggregate external funding total,4000079092,32500
Department for Education,DEPARTMENT FOR EDUCATION,01/05/2012,DfE Programme Costs,SCHOOL STANDARDS GROUP,TRIBAL EDUCATION LTD CONSULTING,Commercial,Funding to deliver DfE policies (excluding consultancy) paid to third parties via a service delivery contract,4000079102,29749.2
Department for Education,DEPARTMENT FOR EDUCATION,01/05/2012,DfE Programme Costs,Academies Delivery Group,PKF UK LLP,Commercial,Funding to deliver DfE policies (excluding consultancy) paid to third parties via a service delivery contract,4000079085,4465.2
Department for Education,DEPARTMENT FOR EDUCATION,02/05/2012,Current Grants to Arms Length Bodies,Families Group,CAFCASS,Public Sector,Funding to arms length bodies for DfE's contribution to fund activity,2000586,10450124
Department for Education,DEPARTMENT FOR EDUCATION,02/05/2012,Current Grants,Children Young People and Families Early Years Extended Schools and Special Needs Group,THE FAMILY FUND TRUST,VCS,Current grant to third sector organisation / not for profit organisation,4000079239,2050000
Department for Education,DEPARTMENT FOR EDUCATION,02/05/2012,Current Grants,SCHOOL STANDARDS GROUP,NATIONAL SCIENCE LEARNING CENTRE,Public Sector,Current grant to third sector organisation / not for profit organisation,4000079215,549017.93
Department for Education,DEPARTMENT FOR EDUCATION,02/05/2012,Facilities,CHIEF INFORMATION OFFICER GROUP,CITY OF WESTMINSTER,Public Sector,Rates,4000079186,409168
Department for Education,DEPARTMENT FOR EDUCATION,02/05/2012,Current Grants,SCHOOL STANDARDS GROUP,BRITISH SCIENCE ASSOCIATION,VCS,Current grant to third sector organisation / not for profit organisation,4000079178,143197
Department for Education,DEPARTMENT FOR EDUCATION,02/05/2012,Current Grants,Families Group,NEWCASTLE CITY COUNCIL,Public Sector,Current grant paid to local authorities within the aggregate external funding total,4000079216,138878
Department for Education,DEPARTMENT FOR EDUCATION,02/05/2012,Current Grants,Families Group,LONDON BOROUGH OF HILLINGDON,Public Sector,Current grant paid to local authorities within the aggregate external funding total,4000079209,127064
Department for Education,DEPARTMENT FOR EDUCATION,02/05/2012,Professional Services Other,Children Young People and Families Early Years Extended Schools and Special Needs Group,NATIONAL CENTRE FOR SOCIAL RESEARCH,VCS,"Costs related to research, survey data analysis that will inform policy decision making",4000079214,100000
Department for Education,DEPARTMENT FOR EDUCATION,02/05/2012,Current Grants,Families Group,LINCOLNSHIRE COUNTY COUNCIL,Public Sector,Current grant paid to local authorities within the aggregate external funding total,4000079207,75013
Department for Education,DEPARTMENT FOR EDUCATION,02/05/2012,Current Grants,Children Young People and Families Early Years Extended Schools and Special Needs Group,KIDS,VCS,Current grant to third sector organisation / not for profit organisation,4000079205,67400
Department for Education,DEPARTMENT FOR EDUCATION,02/05/2012,Current Grants,Families Group,BURY MBC,Public Sector,Current grant paid to local authorities within the aggregate external funding total,4000079179,61275
Department for Education,DEPARTMENT FOR EDUCATION,02/05/2012,Current Grants,Families Group,ESSEX COUNTY COUNCIL,Public Sector,Current grant paid to local authorities within the aggregate external funding total,4000079197,60000
Department for Education,DEPARTMENT FOR EDUCATION,02/05/2012,Facilities,CHIEF INFORMATION OFFICER GROUP,SHEFFIELD CITY COUNCIL,Public Sector,Rates,4000079231,59540
Department for Education,DEPARTMENT FOR EDUCATION,02/05/2012,Current Grants,Families Group,NORTHAMPTONSHIRE COUNTY COUNCIL,Public Sector,Current grant paid to local authorities within the aggregate external funding total,4000079217,55500
Department for Education,DEPARTMENT FOR EDUCATION,02/05/2012,Current Grants,Families Group,LONDON BOROUGH OF EALING,Public Sector,Current grant paid to local authorities within the aggregate external funding total,4000079208,54763
Department for Education,DEPARTMENT FOR EDUCATION,02/05/2012,Professional Services Temporary Staff,Curriculum and General Qualifications Reform Group,PENNA PLC,Commercial,Costs related to temporary workers,4000079221,54720
Department for Education,DEPARTMENT FOR EDUCATION,02/05/2012,DfE Programme Costs,Children Young People and Families Early Years Extended Schools and Special Needs Group,CONTACT A FAMILY,VCS,Funding to deliver DfE policies (excluding consultancy) paid to third parties via a service delivery contract,4000079187,46581.6
Department for Education,DEPARTMENT FOR EDUCATION,02/05/2012,Current Grants,Families Group,COVENTRY CITY COUNCIL,Public Sector,Current grant paid to local authorities within the aggregate external funding total,4000079189,41850
Department for Education,DEPARTMENT FOR EDUCATION,02/05/2012,Professional Services Other,"Strategic Analysis, Research and Policy Impact Group",NATIONAL CENTRE FOR SOCIAL RESEARCH,VCS,Costs related to research and evaluation activities including contracted out data collation / gathering exercises when there is no analysis or recommendation,4000079214,40685
Department for Education,DEPARTMENT FOR EDUCATION,02/05/2012,Current Grants,Families Group,PORTSMOUTH CITY COUNCIL,Public Sector,Current grant paid to local authorities within the aggregate external funding total,4000079224,40000
Department for Education,DEPARTMENT FOR EDUCATION,02/05/2012,Facilities,CHIEF INFORMATION OFFICER GROUP,HALTON BOROUGH COUNCIL,Public Sector,Rates,4000079200,39239
Department for Education,DEPARTMENT FOR EDUCATION,02/05/2012,Current Grants,Academies Delivery Group,THE FARNLEY ACADEMY,Public Sector,"Current grant paid to organisations including agencies, arms length bodies and educational establishments",4000079240,37870.71
Department for Education,DEPARTMENT FOR EDUCATION,02/05/2012,Current Grants,Families Group,SOMERSET COUNTY COUNCIL,Public Sector,Current grant paid to local authorities within the aggregate external funding total,4000079233,36000
Department for Education,DEPARTMENT FOR EDUCATION,02/05/2012,Current Grants,Families Group,FATHERHOOD INSTITUTE,VCS,Current grant to third sector organisation / not for profit organisation,4000079198,32666
Department for Education,DEPARTMENT FOR EDUCATION,02/05/2012,Current Grants,Families Group,LEICESTER CITY COUNCIL,Public Sector,Current grant paid to local authorities within the aggregate external funding total,4000079206,32500
Department for Education,DEPARTMENT FOR EDUCATION,02/05/2012,Current Grants,Free School Group,HARRIS FEDERATION OF SOUTH LONDON SCHOOLS,Public Sector,"Current grant paid to organisations including agencies, arms length bodies and educational establishments",4000079202,29698
Department for Education,DEPARTMENT FOR EDUCATION,02/05/2012,Current Grants,Families Group,MEDWAY COUNCIL,Public Sector,Current grant paid to local authorities within the aggregate external funding total,4000079211,27500
Department for Education,DEPARTMENT FOR EDUCATION,02/05/2012,Current Grants,Families Group,DERBY CITY COUNCIL,Public Sector,Current grant paid to local authorities within the aggregate external funding total,4000079192,25000
Department for Education,DEPARTMENT FOR EDUCATION,02/05/2012,Office Solutions,CHIEF INFORMATION OFFICER GROUP,THE DANWOOD GROUP LTD,Commercial,Costs for office machines including printers and photocopiers,4000079238,19708.52
Department for Education,DEPARTMENT FOR EDUCATION,02/05/2012,Facilities,CHIEF INFORMATION OFFICER GROUP,CITY OF WESTMINSTER,Public Sector,Non-commercial expenditure for the purpose of property provision - utilisation of cash,4000079186,8499
Department for Education,DEPARTMENT FOR EDUCATION,02/05/2012,Office Solutions,CHIEF INFORMATION OFFICER GROUP,THE DANWOOD GROUP LTD,Commercial,"Costs related to reprographic, photo and design goods and services (excluding photocopiers, multifunctional devices and printers)",4000079238,2904.2
Department for Education,DEPARTMENT FOR EDUCATION,02/05/2012,Office Solutions,CHIEF INFORMATION OFFICER GROUP,THE DANWOOD GROUP LTD,Commercial,"Costs for stationery, IT/office consumables, including ink and toners and storage media",4000079238,1164.61
Department for Education,DEPARTMENT FOR EDUCATION,02/05/2012,Office Solutions,CHIEF INFORMATION OFFICER GROUP,THE DANWOOD GROUP LTD,Commercial,Costs related to office machinery (excluding reprographic),4000079238,284.88
Department for Education,DEPARTMENT FOR EDUCATION,03/05/2012,Current Grants,Children Young People and Families Early Years Extended Schools and Special Needs Group,DORSET COUNTY COUNCIL,Public Sector,Current grant for Sure Start payments to local authorities,4000079516,457248
Department for Education,DEPARTMENT FOR EDUCATION,03/05/2012,Professional Services Other,Academies Policy and School Organisation Group,DLA PIPER UK LLP,Commercial,Costs related to legal service provided externally (excluding the Treasury Solicitor),4000079515,78263.6
Department for Education,DEPARTMENT FOR EDUCATION,03/05/2012,Current Grants,Free School Group,I FOUNDATION,Public Sector,"Current grant paid to organisations including agencies, arms length bodies and educational establishments",4000079528,42082.75
Department for Education,DEPARTMENT FOR EDUCATION,03/05/2012,DfE Programme Costs,Academies Delivery Group,MOUCHEL MANAGEMENT CONSULTING LTD,Commercial,Funding to deliver DfE policies (excluding consultancy) paid to third parties via a service delivery contract,4000079542,29740
Department for Education,DEPARTMENT FOR EDUCATION,03/05/2012,Facilities,CHIEF INFORMATION OFFICER GROUP,CITY OF WESTMINSTER,Public Sector,Rates,4000079508,28704
Department for Education,DEPARTMENT FOR EDUCATION,03/05/2012,Professional Services Consultancy,Academies Policy and School Organisation Group,OWEN EDUCATION LTD,Commercial,"Costs related to fees and expenses of professionals from the private sector such as auditors, accountants, lawyers engaged to provide advice or opinion on how to affect something",4000079547,25543.3
Department for Education,DEPARTMENT FOR EDUCATION,03/05/2012,Current Grants,Academies Delivery Group,CHINGFORD FOUNDATION SCHOOL,Public Sector,"Current grant paid to organisations including agencies, arms length bodies and educational establishments",4000079505,25000
Department for Education,DEPARTMENT FOR EDUCATION,03/05/2012,Current Grants,Academies Delivery Group,EAST HERRINGTON PRIMARY SCHOOL,Public Sector,"Current grant paid to organisations including agencies, arms length bodies and educational establishments",4000079519,25000
Department for Education,DEPARTMENT FOR EDUCATION,03/05/2012,Current Grants,Academies Delivery Group,GREAT BARR PRIMARY SCHOOL,Public Sector,"Current grant paid to organisations including agencies, arms length bodies and educational establishments",4000079523,25000
Department for Education,DEPARTMENT FOR EDUCATION,03/05/2012,Professional Services Consultancy,Academies Policy and School Organisation Group,SODEN EDUCATION LTD,Commercial,"Costs related to fees and expenses of professionals from the private sector such as auditors, accountants, lawyers engaged to provide advice or opinion on how to affect something",4000079561,24298.5
Department for Education,DEPARTMENT FOR EDUCATION,04/05/2012,DfE Programme Costs,SCHOOL STANDARDS GROUP,NATIONAL SCIENCE LEARNING CENTRE,Public Sector,Funding to deliver DfE policies (excluding consultancy) paid to third parties via a service delivery contract,4000079654,2221863
Department for Education,DEPARTMENT FOR EDUCATION,04/05/2012,Current Grants,Supporting Children and Young People Group,KEEPING KIDS COMPANY,VCS,Current grant to third sector organisation / not for profit organisation,4000079648,399665
Department for Education,DEPARTMENT FOR EDUCATION,04/05/2012,Capital Grants,Education Funding Group,BACONS COLLEGE,Public Sector,Capital grant paid to a private sector organisation,4000079620,219285.45
Department for Education,DEPARTMENT FOR EDUCATION,04/05/2012,Current Grants,Free School Group,WOODPECKER HALL PRIMARY ACADEMY,Public Sector,"Current grant paid to organisations including agencies, arms length bodies and educational establishments",4000079677,200982.92
Department for Education,DEPARTMENT FOR EDUCATION,04/05/2012,ICT,CHIEF INFORMATION OFFICER GROUP,COFELY LTD,Commercial,"Costs related to building maintenance and repair, including repainting, replacing flooring, etc. ?",4000079628,153399.6
Department for Education,DEPARTMENT FOR EDUCATION,04/05/2012,Professional Services Other,Children Young People and Families Early Years Extended Schools and Special Needs Group,SQW LTD,Commercial,Costs related to research and evaluation activities including contracted out data collation / gathering exercises when there is no analysis or recommendation,4000079671,105000
Department for Education,DEPARTMENT FOR EDUCATION,04/05/2012,Current Grants,Supporting Children and Young People Group,TERRENCE HIGGINS TRUST,VCS,Current grant to third sector organisation / not for profit organisation,4000079673,65217.53
Department for Education,DEPARTMENT FOR EDUCATION,04/05/2012,Current Grants,Families Group,TRAFFORD MB COUNCIL,Public Sector,Current grant paid to local authorities within the aggregate external funding total,4000079675,49500
Department for Education,DEPARTMENT FOR EDUCATION,04/05/2012,ICT,CHIEF INFORMATION OFFICER GROUP,SBL,Commercial,Costs related to the provision of off the shelf software including ad hoc low value software licences,4000079667,44057.57
Department for Education,DEPARTMENT FOR EDUCATION,04/05/2012,Marketing and Media,SCHOOL STANDARDS GROUP,2E2 UK LTD,Commercial,Publications and related services,4000079617,43962.6
Department for Education,DEPARTMENT FOR EDUCATION,04/05/2012,ICT,"Strategic Analysis, Research and Policy Impact Group",SOFTWARE FOR DATA ANALYSIS LTD,Commercial,Costs related to the provision of IT services,4000079669,36804.25
Department for Education,DEPARTMENT FOR EDUCATION,04/05/2012,Current Grants,Free School Group,TIGER FREE SCHOOL,Public Sector,"Current grant paid to organisations including agencies, arms length bodies and educational establishments",4000079674,30116.92
Department for Education,DEPARTMENT FOR EDUCATION,08/05/2012,Current Grants to Other Government Departments,Academies Policy and School Organisation Group,DEPARTMENT FOR COMMUNITIES & LOCAL GOVERNMENT,Public Sector,Funding to other government departments for DfE's contribution to jointly funded programmes ,2000590,3933833
Department for Education,DEPARTMENT FOR EDUCATION,08/05/2012,DfE Programme Costs,SCHOOL STANDARDS GROUP,NATIONAL SCIENCE LEARNING CENTRE,Public Sector,Funding to deliver DfE policies (excluding consultancy) paid to third parties via a service delivery contract,4000079778,342045.06
Department for Education,DEPARTMENT FOR EDUCATION,08/05/2012,Current Grants,Supporting Children and Young People Group,ROYAL PHILANTHROPIC SOCIETY RAINER,VCS,Current grant to third sector organisation / not for profit organisation,4000079787,326209.41
Department for Education,DEPARTMENT FOR EDUCATION,08/05/2012,Current Grants,Supporting Children and Young People Group,GROUNDWORK UK,VCS,Current grant to third sector organisation / not for profit organisation,4000079770,223311.26
Department for Education,DEPARTMENT FOR EDUCATION,08/05/2012,ICT,PARTICIPATION AND VOCATIONAL EDUCATION GROUP,STERIA LTD,Commercial,Costs related to the provision of IT costs,4000079792,200665.98
Department for Education,DEPARTMENT FOR EDUCATION,08/05/2012,Capital Grants,Education Funding Group,ST MARKS C OF E ACADEMY,Public Sector,Capital grant paid to a private sector organisation,4000079791,173046.61
Department for Education,DEPARTMENT FOR EDUCATION,08/05/2012,Current Grants,Academies Policy and School Organisation Group,SCHOOL GOVERNORS ONE STOP SHOP,VCS,Current grant to third sector organisation / not for profit organisation,4000079788,162537
Department for Education,DEPARTMENT FOR EDUCATION,08/05/2012,ICT,SCHOOL STANDARDS GROUP,ATKINS LTD,Commercial,Costs related to the provision of IT costs,4000079745,118924.2
Department for Education,DEPARTMENT FOR EDUCATION,08/05/2012,DfE Programme Costs,SCHOOL STANDARDS GROUP,RESEARCH MACHINES PLC,Commercial,Funding to deliver DfE policies (excluding consultancy) paid to third parties via a service delivery contract,4000079786,87486.59
Department for Education,DEPARTMENT FOR EDUCATION,08/05/2012,Personnel Related,People and Change,EDENRED,Commercial,Costs related to childcare services provided for staff including the management fee and subsidy costs,4000079767,83570.7
Department for Education,DEPARTMENT FOR EDUCATION,08/05/2012,Professional Services Other,"Strategic Analysis, Research and Policy Impact Group",NFER TRADING LIMITED INV T,Commercial,"Costs related to research, survey data analysis that will inform policy decision making",4000079780,42317
Department for Education,DEPARTMENT FOR EDUCATION,08/05/2012,ICT,CHIEF INFORMATION OFFICER GROUP,ATKINS MANTIX LTD,Commercial,Intangible work in progress,4000079746,34660.8
Department for Education,DEPARTMENT FOR EDUCATION,08/05/2012,Current Grants,Academies Delivery Group,BEAUMONT SCHOOL,Public Sector,"Current grant paid to organisations including agencies, arms length bodies and educational establishments",4000079750,25000
Department for Education,DEPARTMENT FOR EDUCATION,08/05/2012,Current Grants,Academies Delivery Group,BIRKETT HOUSE SCHOOL,Public Sector,"Current grant paid to organisations including agencies, arms length bodies and educational establishments",4000079751,25000
Department for Education,DEPARTMENT FOR EDUCATION,08/05/2012,Current Grants,Academies Delivery Group,BISHOP WAND CE SCHOOL,Public Sector,"Current grant paid to organisations including agencies, arms length bodies and educational establishments",4000079754,25000
Department for Education,DEPARTMENT FOR EDUCATION,08/05/2012,Current Grants,Academies Delivery Group,BRADFIELD SCHOOL,Public Sector,"Current grant paid to organisations including agencies, arms length bodies and educational establishments",4000079755,25000
Department for Education,DEPARTMENT FOR EDUCATION,08/05/2012,Current Grants,Academies Delivery Group,BRISTNALL HALL TECHNOLOGY COLLEGE,Public Sector,"Current grant paid to organisations including agencies, arms length bodies and educational establishments",4000079756,25000
Department for Education,DEPARTMENT FOR EDUCATION,08/05/2012,Current Grants,Academies Delivery Group,COSTESSEY JUNIOR SCHOOL,Public Sector,"Current grant paid to organisations including agencies, arms length bodies and educational establishments",4000079762,25000
Department for Education,DEPARTMENT FOR EDUCATION,08/05/2012,Current Grants,Academies Delivery Group,DROVE PRIMARY SCHOOL,Public Sector,"Current grant paid to organisations including agencies, arms length bodies and educational establishments",4000079765,25000
Department for Education,DEPARTMENT FOR EDUCATION,08/05/2012,Current Grants,Academies Delivery Group,FARNDON FIELDS PRIMARY SCHOOL,Public Sector,"Current grant paid to organisations including agencies, arms length bodies and educational establishments",4000079768,25000
Department for Education,DEPARTMENT FOR EDUCATION,08/05/2012,Current Grants,Academies Delivery Group,HAMPSHIRE C C,Public Sector,"Current grant paid to organisations including agencies, arms length bodies and educational establishments",4000079771,25000
Department for Education,DEPARTMENT FOR EDUCATION,08/05/2012,Current Grants,Academies Delivery Group,KIRKBY COLLEGE,Public Sector,"Current grant paid to organisations including agencies, arms length bodies and educational establishments",4000079774,25000
Department for Education,DEPARTMENT FOR EDUCATION,08/05/2012,Current Grants,Academies Delivery Group,MOOSLEY PRIMARY SCHOOL,Public Sector,"Current grant paid to organisations including agencies, arms length bodies and educational establishments",4000079776,25000
Department for Education,DEPARTMENT FOR EDUCATION,08/05/2012,Current Grants,Academies Delivery Group,NEW SEAHAM PRIMARY SCHOOL,Public Sector,"Current grant paid to organisations including agencies, arms length bodies and educational establishments",4000079779,25000
Department for Education,DEPARTMENT FOR EDUCATION,08/05/2012,Current Grants,Academies Delivery Group,NORTH EAST LINCOLNSHIRE COUNCIL,Public Sector,"Current grant paid to organisations including agencies, arms length bodies and educational establishments",4000079781,25000
Department for Education,DEPARTMENT FOR EDUCATION,08/05/2012,Current Grants,Academies Delivery Group,NORTHERN HOUSE SCHOOL,Public Sector,"Current grant paid to organisations including agencies, arms length bodies and educational establishments",4000079783,25000
Department for Education,DEPARTMENT FOR EDUCATION,08/05/2012,Current Grants,Academies Delivery Group,THE ROYAL BOROUGH OF WINDSOR & MAIDENHEAD,Public Sector,"Current grant paid to organisations including agencies, arms length bodies and educational establishments",4000079793,25000
Department for Education,DEPARTMENT FOR EDUCATION,08/05/2012,Current Grants,Academies Delivery Group,WAKEFIELD METROPOLITAN BOROUGH COUNCIL,Public Sector,"Current grant paid to organisations including agencies, arms length bodies and educational establishments",4000079794,25000
Department for Education,DEPARTMENT FOR EDUCATION,08/05/2012,Current Grants,Academies Delivery Group,WEST MALLING CEP SCHOOL,Public Sector,"Current grant paid to organisations including agencies, arms length bodies and educational establishments",4000079796,25000
Department for Education,DEPARTMENT FOR EDUCATION,08/05/2012,Current Grants,Academies Delivery Group,WHIPPERLEY INFANT SCHOOL,Public Sector,"Current grant paid to organisations including agencies, arms length bodies and educational establishments",4000079797,25000
Department for Education,DEPARTMENT FOR EDUCATION,08/05/2012,Current Grants,Academies Delivery Group,WINSTANLEY COMMUNITY COLLEGE,Public Sector,"Current grant paid to organisations including agencies, arms length bodies and educational establishments",4000079798,25000
Department for Education,DEPARTMENT FOR EDUCATION,08/05/2012,ICT,CHIEF INFORMATION OFFICER GROUP,ATKINS MANTIX LTD,Commercial,Costs related to the provision of IT costs,4000079746,24720
Department for Education,DEPARTMENT FOR EDUCATION,09/05/2012,Current Grants,Families Group,HOME START UK,VCS,Current grant to third sector organisation / not for profit organisation,4000079892,418943.44
Department for Education,DEPARTMENT FOR EDUCATION,09/05/2012,Current Grants,Children Young People and Families Safeguarding Group,HOME START UK,VCS,Current grant to third sector organisation / not for profit organisation,4000079892,236582.33
Department for Education,DEPARTMENT FOR EDUCATION,09/05/2012,DfE Programme Costs,SCHOOL STANDARDS GROUP,INSTITUTE OF EDUCATION,Public Sector,Funding to deliver DfE policies (excluding consultancy) paid to third parties via a service delivery contract,4000079894,223176.52
Department for Education,DEPARTMENT FOR EDUCATION,09/05/2012,Current Grants,Supporting Children and Young People Group,THE FOYER FEDERATION,VCS,Current grant to third sector organisation / not for profit organisation,4000079932,156183.75
Department for Education,DEPARTMENT FOR EDUCATION,09/05/2012,Current Grants,Children Young People and Families Safeguarding Group,THE ANNA FREUD CENTRE,VCS,Current grant to third sector organisation / not for profit organisation,4000079930,136340.05
Department for Education,DEPARTMENT FOR EDUCATION,09/05/2012,Capital Grants,Education Funding Group,UNIVERSITY OF CHESTER ACADEMY,Public Sector,Capital grant paid to a private sector organisation,4000079943,134042.49
Department for Education,DEPARTMENT FOR EDUCATION,09/05/2012,DfE Programme Costs,Families Group,FAMILY LIVES,VCS,Funding to deliver DfE policies (excluding consultancy) paid to third parties via a service delivery contract,4000079885,131040.39
Department for Education,DEPARTMENT FOR EDUCATION,09/05/2012,Current Grants,Supporting Children and Young People Group,TOMORROWS PEOPLE TRUST LTD,VCS,Current grant to third sector organisation / not for profit organisation,4000079939,113893.38
Department for Education,DEPARTMENT FOR EDUCATION,09/05/2012,DfE Programme Costs,Children Young People and Families Early Years Extended Schools and Special Needs Group,SERCO LTD,Commercial,Funding to deliver DfE policies (excluding consultancy) paid to third parties via a service delivery contract,4000079924,80510.4
Department for Education,DEPARTMENT FOR EDUCATION,09/05/2012,Current Grants,Academies Delivery Group,E ACT,Public Sector,"Current grant paid to organisations including agencies, arms length bodies and educational establishments",4000079881,77872.79
Department for Education,DEPARTMENT FOR EDUCATION,09/05/2012,Current Grants,Children Young People and Families Safeguarding Group,MISSING PEOPLE,VCS,Current grant to third sector organisation / not for profit organisation,4000079910,65028
Department for Education,DEPARTMENT FOR EDUCATION,09/05/2012,Current Grants,Academies Delivery Group,ASTON COMPREHENSIVE SCHOOL,Public Sector,"Current grant paid to organisations including agencies, arms length bodies and educational establishments",4000079861,65000
Department for Education,DEPARTMENT FOR EDUCATION,09/05/2012,Current Grants,Academies Delivery Group,LANDAU FORTE COLLEGE,Public Sector,"Current grant paid to organisations including agencies, arms length bodies and educational establishments",4000079905,65000
Department for Education,DEPARTMENT FOR EDUCATION,09/05/2012,DfE Programme Costs,Free School Group,APPLEYARDS LTD,Commercial,Funding to deliver DfE policies (excluding consultancy) paid to third parties via a service delivery contract,4000079858,51946.8
Department for Education,DEPARTMENT FOR EDUCATION,09/05/2012,DfE Programme Costs,Children Young People and Families Early Years Extended Schools and Special Needs Group,MOTT MACDONALD LTD,Commercial,Funding to deliver DfE policies (excluding consultancy) paid to third parties via a service delivery contract,4000079911,48333.68
Department for Education,DEPARTMENT FOR EDUCATION,09/05/2012,Current Grants,Academies Delivery Group,ARK SCHOOLS,Public Sector,"Current grant paid to organisations including agencies, arms length bodies and educational establishments",4000079859,38709.82
Department for Education,DEPARTMENT FOR EDUCATION,09/05/2012,Current Grants,Children Young People and Families Early Years Extended Schools and Special Needs Group,DAYCARE TRUST,VCS,Current grant to third sector organisation / not for profit organisation,4000079879,38416
Department for Education,DEPARTMENT FOR EDUCATION,09/05/2012,Current Grants,Academies Delivery Group,ACADEMY ENTERPRISE TRUST,Public Sector,"Current grant paid to organisations including agencies, arms length bodies and educational establishments",4000079856,32792.54
Department for Education,DEPARTMENT FOR EDUCATION,09/05/2012,Current Grants,Families Group,THE CENTRE FOR SEPARATED FAMILIES,VCS,Current grant to third sector organisation / not for profit organisation,4000079931,28963
Department for Education,DEPARTMENT FOR EDUCATION,09/05/2012,DfE Programme Costs,Free School Group,APPLEYARDS LTD,Commercial,Funding to deliver DfE policies (excluding consultancy) paid to third parties via a service delivery contract,4000079858,19435.2
Department for Education,DEPARTMENT FOR EDUCATION,10/05/2012,ICT,Children Young People and Families Safeguarding Group,LOGICA UK LTD,Commercial,Costs related to the provision of IT costs,4000080063,2729523.6
Department for Education,DEPARTMENT FOR EDUCATION,10/05/2012,DfE Programme Costs,Children Young People and Families Early Years Extended Schools and Special Needs Group,PRICE WATERHOUSE COOPERS LLP,Commercial,Funding to deliver DfE policies (excluding consultancy) paid to third parties via a service delivery contract,4000080074,591944
Department for Education,DEPARTMENT FOR EDUCATION,10/05/2012,Professional Services Other,Children Young People and Families Early Years Extended Schools and Special Needs Group,IPSOS MORI,Commercial,Costs related to research and evaluation activities including contracted out data collation / gathering exercises when there is no analysis or recommendation,4000080057,138360
Department for Education,DEPARTMENT FOR EDUCATION,10/05/2012,Current Grants,PARTICIPATION AND VOCATIONAL EDUCATION GROUP,SKILL FORCE DEVELOPMENT,VCS,Current grant to third sector organisation / not for profit organisation,4000080082,121161.32
Department for Education,DEPARTMENT FOR EDUCATION,10/05/2012,DfE Programme Costs,SCHOOL STANDARDS GROUP,NATIONAL SCIENCE LEARNING CENTRE,Public Sector,Funding to deliver DfE policies (excluding consultancy) paid to third parties via a service delivery contract,4000080067,96083.05
Department for Education,DEPARTMENT FOR EDUCATION,10/05/2012,Current Grants,Children Young People and Families Safeguarding Group,WOMEN CENTRE LTD,VCS,Current grant to third sector organisation / not for profit organisation,4000080089,70435.73
Department for Education,DEPARTMENT FOR EDUCATION,10/05/2012,Current Grants,Children Young People and Families Supporting Delivery Group,CHILDREN ENGLAND,VCS,Current grant to third sector organisation / not for profit organisation,4000080041,59171
Department for Education,DEPARTMENT FOR EDUCATION,10/05/2012,Current Grants,Supporting Children and Young People Group,NATIONAL ASSOCIATION OF CLUBS FOR YOUNG PEOPLE,VCS,Current grant to third sector organisation / not for profit organisation,4000080066,56762.35
Department for Education,DEPARTMENT FOR EDUCATION,10/05/2012,Current Grants,Families Group,PARENTING UK,VCS,Current grant to third sector organisation / not for profit organisation,4000080071,33563.99
Department for Education,DEPARTMENT FOR EDUCATION,10/05/2012,DfE Programme Costs,Children Young People and Families Early Years Extended Schools and Special Needs Group,CAPITA BUSINESS SERVICES LTD,Commercial,Funding to deliver DfE policies (excluding consultancy) paid to third parties via a service delivery contract,4000080038,33000
Department for Education,DEPARTMENT FOR EDUCATION,10/05/2012,Marketing and Media,"Strategic Analysis, Research and Policy Impact Group",SCISYS UK LTD,Commercial,Publications and related services,4000080080,25000
Department for Education,DEPARTMENT FOR EDUCATION,11/05/2012,Office Solutions,Curriculum and General Qualifications Reform Group,PARCELFORCE WORLDWIDE,Commercial,"Costs related to post office services including stamps, data post",4000080189,213173.05
Department for Education,DEPARTMENT FOR EDUCATION,11/05/2012,ICT,"Strategic Analysis, Research and Policy Impact Group",ATKINS LTD,Commercial,Costs related to the provision of IT costs,4000080148,129738.94
Department for Education,DEPARTMENT FOR EDUCATION,11/05/2012,Professional Services Temporary Staff,CHIEF INFORMATION OFFICER GROUP,CAPITA RESOURCING LTD,Commercial,Costs related to temporary workers,4000080156,28062.3
Department for Education,DEPARTMENT FOR EDUCATION,11/05/2012,DfE Programme Costs,Academies Delivery Group,NOVATIA PLC,Commercial,Funding to deliver DfE policies (excluding consultancy) paid to third parties via a service delivery contract,4000080187,27783
Department for Education,DEPARTMENT FOR EDUCATION,11/05/2012,Professional Services Temporary Staff,Finance and Commercial Group,CAPITA RESOURCING LTD,Commercial,Costs related to temporary workers,4000080156,11694.48
Department for Education,DEPARTMENT FOR EDUCATION,14/05/2012,DfE Programme Costs,Families Group,KINGS COLLEGE LONDON,Public Sector,Funding to deliver DfE policies (excluding consultancy) paid to third parties via a service delivery contract,4000080284,753956
Department for Education,DEPARTMENT FOR EDUCATION,14/05/2012,Current Grants,Families Group,RELATE,VCS,Current grant to third sector organisation / not for profit organisation,4000080301,656744.96
Department for Education,DEPARTMENT FOR EDUCATION,14/05/2012,Current Grants,SCHOOL STANDARDS GROUP,THE SCHOOL FOOD TRUST,VCS,Current grant to third sector organisation / not for profit organisation,4000080321,375241
Department for Education,DEPARTMENT FOR EDUCATION,14/05/2012,Current Grants,Families Group,CAFCASS,Public Sector,"Current grant paid to organisations including agencies, arms length bodies and educational establishments",4000080261,300240.66
Department for Education,DEPARTMENT FOR EDUCATION,14/05/2012,Current Grants,Children Young People and Families Early Years Extended Schools and Special Needs Group,4CHILDREN,VCS,Current grant to third sector organisation / not for profit organisation,4000080249,208084
Department for Education,DEPARTMENT FOR EDUCATION,14/05/2012,Current Grants,Children Young People and Families Early Years Extended Schools and Special Needs Group,4CHILDREN,VCS,Current grant to third sector organisation / not for profit organisation,4000080249,122819
Department for Education,DEPARTMENT FOR EDUCATION,14/05/2012,DfE Programme Costs,Academies Delivery Group,THE ELLIOT FOUNDATION,VCS,Funding to deliver DfE policies (excluding consultancy) paid to third parties via a service delivery contract,4000080318,96506.66
Department for Education,DEPARTMENT FOR EDUCATION,14/05/2012,Current Grants,Children Young People and Families Early Years Extended Schools and Special Needs Group,NATIONAL CHILDMINDING ASSOC,VCS,Current grant to third sector organisation / not for profit organisation,1000614,88332
Department for Education,DEPARTMENT FOR EDUCATION,14/05/2012,Current Grants,Families Group,TAVISTOCK CENTRE FOR COUPLE RELATIONSHIPS,VCS,Current grant to third sector organisation / not for profit organisation,4000080316,74944
Department for Education,DEPARTMENT FOR EDUCATION,14/05/2012,Current Grants,Supporting Children and Young People Group,N C V Y S,VCS,Current grant to third sector organisation / not for profit organisation,4000080290,69899
Department for Education,DEPARTMENT FOR EDUCATION,14/05/2012,Current Grants,Academies Delivery Group,THE KEMNAL ACADEMIES TRUST,Public Sector,"Current grant paid to organisations including agencies, arms length bodies and educational establishments",4000080319,65000
Department for Education,DEPARTMENT FOR EDUCATION,14/05/2012,Capital Grants,Education Funding Group,MOSELEY PARK,Public Sector,Capital grant paid to a private sector organisation,4000080289,58807.56
Department for Education,DEPARTMENT FOR EDUCATION,14/05/2012,Current Grants,Supporting Children and Young People Group,BOLTON LADS & GIRLS CLUB,VCS,Current grant to third sector organisation / not for profit organisation,4000080255,45153.24
Department for Education,DEPARTMENT FOR EDUCATION,14/05/2012,Current Grants,Free School Group,BAKER DEARING EDUCATIONAL TRUST,Public Sector,Current grant to third sector organisation / not for profit organisation,4000080254,35082
Department for Education,DEPARTMENT FOR EDUCATION,14/05/2012,Current Grants,Families Group,THE CENTRE FOR SEPARATED FAMILIES,VCS,Current grant to third sector organisation / not for profit organisation,4000080317,26862.5
Department for Education,DEPARTMENT FOR EDUCATION,14/05/2012,Current Grants,Free School Group,WIGAN UTC,Public Sector,"Current grant paid to organisations including agencies, arms length bodies and educational establishments",4000080324,26697.5
Department for Education,DEPARTMENT FOR EDUCATION,14/05/2012,Current Grants,Academies Delivery Group,ACADEMY ENTERPRISE TRUST,Public Sector,"Current grant paid to organisations including agencies, arms length bodies and educational establishments",4000080253,25000
Department for Education,DEPARTMENT FOR EDUCATION,14/05/2012,Current Grants,Academies Delivery Group,BROOKFIELD HOUSE SCHOOL,Public Sector,"Current grant paid to organisations including agencies, arms length bodies and educational establishments",4000080256,25000
Department for Education,DEPARTMENT FOR EDUCATION,14/05/2012,Current Grants,Academies Delivery Group,DARLINGTON BOROUGH COUNCIL,Public Sector,"Current grant paid to organisations including agencies, arms length bodies and educational establishments",4000080265,25000
Department for Education,DEPARTMENT FOR EDUCATION,14/05/2012,Current Grants,Academies Delivery Group,FOXWOOD FOUNDATION SCHOOL & TECH COLLEGE,Public Sector,"Current grant paid to organisations including agencies, arms length bodies and educational establishments",4000080268,25000
Department for Education,DEPARTMENT FOR EDUCATION,14/05/2012,Current Grants,Academies Delivery Group,HAILSHAM COMMUNITY COLLEGE,Public Sector,"Current grant paid to organisations including agencies, arms length bodies and educational establishments",4000080276,25000
Department for Education,DEPARTMENT FOR EDUCATION,14/05/2012,Current Grants,Academies Delivery Group,HARROWBY CE INFANT SCHOOL,Public Sector,"Current grant paid to organisations including agencies, arms length bodies and educational establishments",4000080277,25000
Department for Education,DEPARTMENT FOR EDUCATION,14/05/2012,Current Grants,Academies Delivery Group,JOHN CLEVELAND COLLEGE,Public Sector,"Current grant paid to organisations including agencies, arms length bodies and educational establishments",4000080282,25000
Department for Education,DEPARTMENT FOR EDUCATION,14/05/2012,Current Grants,Academies Delivery Group,MAGDALEN COLLEGE SCHOOL,Public Sector,"Current grant paid to organisations including agencies, arms length bodies and educational establishments",4000080288,25000
Department for Education,DEPARTMENT FOR EDUCATION,14/05/2012,Current Grants,Academies Delivery Group,PARKLAND PRIMARY SCHOOL,Public Sector,"Current grant paid to organisations including agencies, arms length bodies and educational establishments",4000080296,25000
Department for Education,DEPARTMENT FOR EDUCATION,14/05/2012,Current Grants,Academies Delivery Group,SOUTHFIELD PRIMARY SCHOOL,Public Sector,"Current grant paid to organisations including agencies, arms length bodies and educational establishments",4000080309,25000
Department for Education,DEPARTMENT FOR EDUCATION,14/05/2012,Current Grants,Academies Delivery Group,ST BARNABAS CE PRIMARY SCHOOL,Public Sector,"Current grant paid to organisations including agencies, arms length bodies and educational establishments",4000080310,25000
Department for Education,DEPARTMENT FOR EDUCATION,14/05/2012,Current Grants,Academies Delivery Group,TARPORLEY HIGH SCHOOL,Public Sector,"Current grant paid to organisations including agencies, arms length bodies and educational establishments",4000080314,25000
Department for Education,DEPARTMENT FOR EDUCATION,14/05/2012,Current Grants,Academies Delivery Group,TAVERHAM HIGH SCHOOL,Public Sector,"Current grant paid to organisations including agencies, arms length bodies and educational establishments",4000080315,25000
Department for Education,DEPARTMENT FOR EDUCATION,14/05/2012,Current Grants,Academies Delivery Group,THE NATIONAL CE JUNIOR SCHOOL,Public Sector,"Current grant paid to organisations including agencies, arms length bodies and educational establishments",4000080320,25000
Department for Education,DEPARTMENT FOR EDUCATION,14/05/2012,Current Grants,Academies Delivery Group,THE TRINITY CATHOLIC SCHOOL,Public Sector,"Current grant paid to organisations including agencies, arms length bodies and educational establishments",4000080322,25000
Department for Education,DEPARTMENT FOR EDUCATION,14/05/2012,Travel and Events,Finance and Commercial Group,CARLSON WAGONLIT TRAVEL,Commercial,Costs related to staff travel expenses for official duty,4000080262,15298.79
Department for Education,DEPARTMENT FOR EDUCATION,14/05/2012,Travel and Events,People and Change,CARLSON WAGONLIT TRAVEL,Commercial,Costs related to staff travel expenses for official duty,4000080262,14871.48
Department for Education,DEPARTMENT FOR EDUCATION,14/05/2012,Travel and Events,"Strategic Analysis, Research and Policy Impact Group",CARLSON WAGONLIT TRAVEL,Commercial,Costs related to staff travel expenses for official duty,4000080262,10257.45
Department for Education,DEPARTMENT FOR EDUCATION,14/05/2012,Travel and Events,Children Young People and Families Safeguarding Group,CARLSON WAGONLIT TRAVEL,Commercial,Costs related to staff travel expenses for official duty,4000080262,9117.2
Department for Education,DEPARTMENT FOR EDUCATION,14/05/2012,Travel and Events,CHIEF INFORMATION OFFICER GROUP,CARLSON WAGONLIT TRAVEL,Commercial,Costs related to staff travel expenses for official duty,4000080262,7778.7
Department for Education,DEPARTMENT FOR EDUCATION,14/05/2012,Travel and Events,INTERNAL AUDIT GROUP,CARLSON WAGONLIT TRAVEL,Commercial,Costs related to staff travel expenses for official duty,4000080262,7311.84
Department for Education,DEPARTMENT FOR EDUCATION,14/05/2012,Travel and Events,Curriculum and General Qualifications Reform Group,CARLSON WAGONLIT TRAVEL,Commercial,Costs related to staff travel expenses for official duty,4000080262,6379.52
Department for Education,DEPARTMENT FOR EDUCATION,14/05/2012,Travel and Events,Academies Delivery Group,CARLSON WAGONLIT TRAVEL,Commercial,Costs related to staff travel expenses for official duty,4000080262,5636.42
Department for Education,DEPARTMENT FOR EDUCATION,14/05/2012,Travel and Events,Academies Delivery Group,CARLSON WAGONLIT TRAVEL,Commercial,Costs related to staff travel expenses for official duty,4000080262,5083.87
Department for Education,DEPARTMENT FOR EDUCATION,14/05/2012,Travel and Events,Academies Policy and School Organisation Group,CARLSON WAGONLIT TRAVEL,Commercial,Costs related to staff travel expenses for official duty,4000080262,4695.54
Department for Education,DEPARTMENT FOR EDUCATION,14/05/2012,Travel and Events,Supporting Children and Young People Group,CARLSON WAGONLIT TRAVEL,Commercial,Costs related to staff travel expenses for official duty,4000080262,4651.96
Department for Education,DEPARTMENT FOR EDUCATION,14/05/2012,Travel and Events,Families Group,CARLSON WAGONLIT TRAVEL,Commercial,Costs related to staff travel expenses for official duty,4000080262,4105.79
Department for Education,DEPARTMENT FOR EDUCATION,14/05/2012,Travel and Events,Communications Group,CARLSON WAGONLIT TRAVEL,Commercial,Costs related to staff travel expenses for official duty,4000080262,3878.17
Department for Education,DEPARTMENT FOR EDUCATION,14/05/2012,Travel and Events,EDUCATION STRATEGY PERFORMANCE ANALYSIS GROUP,CARLSON WAGONLIT TRAVEL,Commercial,Costs related to staff travel expenses for official duty,4000080262,3857.82
Department for Education,DEPARTMENT FOR EDUCATION,14/05/2012,Travel and Events,Free School Group,CARLSON WAGONLIT TRAVEL,Commercial,Costs related to staff travel expenses for official duty,4000080262,3816.44
Department for Education,DEPARTMENT FOR EDUCATION,14/05/2012,Travel and Events,Teachers Group,CARLSON WAGONLIT TRAVEL,Commercial,Costs related to staff travel expenses for official duty,4000080262,3734.11
Department for Education,DEPARTMENT FOR EDUCATION,14/05/2012,Travel and Events,INFRASTRUCTURE FUNDING AND LONGITUDINAL ANALYSIS,CARLSON WAGONLIT TRAVEL,Commercial,Costs related to staff travel expenses for official duty,4000080262,3732.13
Department for Education,DEPARTMENT FOR EDUCATION,14/05/2012,Travel and Events,Free School Group,CARLSON WAGONLIT TRAVEL,Commercial,Costs related to staff travel expenses for official duty,4000080262,3552.07
Department for Education,DEPARTMENT FOR EDUCATION,14/05/2012,Travel and Events,Free School Group,CARLSON WAGONLIT TRAVEL,Commercial,Costs related to staff travel expenses for official duty,4000080262,3383.66
Department for Education,DEPARTMENT FOR EDUCATION,14/05/2012,Travel and Events,CHIEF INFORMATION OFFICER GROUP,CARLSON WAGONLIT TRAVEL,Commercial,Costs related to staff travel expenses for official duty,4000080262,3261.5
Department for Education,DEPARTMENT FOR EDUCATION,14/05/2012,Travel and Events,Teachers Group,CARLSON WAGONLIT TRAVEL,Commercial,Costs related to staff travel expenses for official duty,4000080262,3178.05
Department for Education,DEPARTMENT FOR EDUCATION,14/05/2012,Travel and Events,Academies Delivery Group,CARLSON WAGONLIT TRAVEL,Commercial,Costs related to staff travel expenses for official duty,4000080262,3156.37
Department for Education,DEPARTMENT FOR EDUCATION,14/05/2012,Travel and Events,"Strategic Analysis, Research and Policy Impact Group",CARLSON WAGONLIT TRAVEL,Commercial,Costs related to staff travel expenses for official duty,4000080262,3149.53
Department for Education,DEPARTMENT FOR EDUCATION,14/05/2012,Travel and Events,Academies Policy and School Organisation Group,CARLSON WAGONLIT TRAVEL,Commercial,Costs related to staff travel expenses for official duty,4000080262,2963.8
Department for Education,DEPARTMENT FOR EDUCATION,14/05/2012,Travel and Events,CHIEF INFORMATION OFFICER GROUP,CARLSON WAGONLIT TRAVEL,Commercial,Costs related to staff travel expenses for official duty,4000080262,2957.05
Department for Education,DEPARTMENT FOR EDUCATION,14/05/2012,Travel and Events,PARTICIPATION AND VOCATIONAL EDUCATION GROUP,CARLSON WAGONLIT TRAVEL,Commercial,Costs related to staff travel expenses for official duty,4000080262,2911.35
Department for Education,DEPARTMENT FOR EDUCATION,14/05/2012,Travel and Events,Children Young People and Families Supporting Delivery Group,CARLSON WAGONLIT TRAVEL,Commercial,Costs related to staff travel expenses for official duty,4000080262,2706.56
Department for Education,DEPARTMENT FOR EDUCATION,14/05/2012,Travel and Events,Children Young People and Families Early Years Extended Schools and Special Needs Group,CARLSON WAGONLIT TRAVEL,Commercial,Costs related to staff travel expenses for official duty,4000080262,2699.52
Department for Education,DEPARTMENT FOR EDUCATION,14/05/2012,Travel and Events,Free School Group,CARLSON WAGONLIT TRAVEL,Commercial,Costs related to staff travel expenses for official duty,4000080262,2595.38
Department for Education,DEPARTMENT FOR EDUCATION,14/05/2012,Travel and Events,SCHOOL STANDARDS GROUP,CARLSON WAGONLIT TRAVEL,Commercial,Costs related to staff travel expenses for official duty,4000080262,2587.08
Department for Education,DEPARTMENT FOR EDUCATION,14/05/2012,Travel and Events,ALB REFORM GROUP,CARLSON WAGONLIT TRAVEL,Commercial,Costs related to staff travel expenses for official duty,4000080262,2569.18
Department for Education,DEPARTMENT FOR EDUCATION,14/05/2012,Travel and Events,Strategy and Performance Group,CARLSON WAGONLIT TRAVEL,Commercial,Costs related to staff travel expenses for official duty,4000080262,2564.3
Department for Education,DEPARTMENT FOR EDUCATION,14/05/2012,Travel and Events,Academies Delivery Group,CARLSON WAGONLIT TRAVEL,Commercial,Costs related to staff travel expenses for official duty,4000080262,2547.65
Department for Education,DEPARTMENT FOR EDUCATION,14/05/2012,Travel and Events,Curriculum and General Qualifications Reform Group,CARLSON WAGONLIT TRAVEL,Commercial,Costs related to staff travel expenses for official duty,4000080262,2439.69
Department for Education,DEPARTMENT FOR EDUCATION,14/05/2012,Travel and Events,Curriculum and General Qualifications Reform Group,CARLSON WAGONLIT TRAVEL,Commercial,Costs related to staff travel expenses for official duty,4000080262,2417.97
Department for Education,DEPARTMENT FOR EDUCATION,14/05/2012,Travel and Events,Children Young People and Families Supporting Delivery Group,CARLSON WAGONLIT TRAVEL,Commercial,Costs related to staff travel expenses for official duty,4000080262,2407.42
Department for Education,DEPARTMENT FOR EDUCATION,14/05/2012,Travel and Events,Academies Policy and School Organisation Group,CARLSON WAGONLIT TRAVEL,Commercial,Costs related to staff travel expenses for official duty,4000080262,2382.96
Department for Education,DEPARTMENT FOR EDUCATION,14/05/2012,Travel and Events,Communications Group,CARLSON WAGONLIT TRAVEL,Commercial,Costs related to staff travel expenses for official duty,4000080262,2299.69
Department for Education,DEPARTMENT FOR EDUCATION,14/05/2012,Travel and Events,Children Young People and Families Early Years Extended Schools and Special Needs Group,CARLSON WAGONLIT TRAVEL,Commercial,Costs related to staff travel expenses for official duty,4000080262,2269.35
Department for Education,DEPARTMENT FOR EDUCATION,14/05/2012,Travel and Events,PARTICIPATION AND VOCATIONAL EDUCATION GROUP,CARLSON WAGONLIT TRAVEL,Commercial,Costs related to staff travel expenses for official duty,4000080262,2263.44
Department for Education,DEPARTMENT FOR EDUCATION,14/05/2012,Travel and Events,CHIEF INFORMATION OFFICER GROUP,CARLSON WAGONLIT TRAVEL,Commercial,Costs related to staff travel expenses for official duty,4000080262,2245.39
Department for Education,DEPARTMENT FOR EDUCATION,14/05/2012,Travel and Events,Office of the Schools Commissioner Group,CARLSON WAGONLIT TRAVEL,Commercial,Costs related to staff travel expenses for official duty,4000080262,2092.02
Department for Education,DEPARTMENT FOR EDUCATION,14/05/2012,Travel and Events,People and Change,CARLSON WAGONLIT TRAVEL,Commercial,Costs related to staff travel expenses for official duty,4000080262,2031.11
Department for Education,DEPARTMENT FOR EDUCATION,14/05/2012,Travel and Events,Office of the Schools Commissioner Group,CARLSON WAGONLIT TRAVEL,Commercial,Costs related to staff travel expenses for official duty,4000080262,2008.87
Department for Education,DEPARTMENT FOR EDUCATION,14/05/2012,Travel and Events,CHIEF INFORMATION OFFICER GROUP,CARLSON WAGONLIT TRAVEL,Commercial,Costs related to staff travel expenses for official duty,4000080262,1998.91
Department for Education,DEPARTMENT FOR EDUCATION,14/05/2012,Travel and Events,SCHOOL STANDARDS GROUP,CARLSON WAGONLIT TRAVEL,Commercial,Costs related to staff travel expenses for official duty,4000080262,1955.37
Department for Education,DEPARTMENT FOR EDUCATION,14/05/2012,Travel and Events,SCHOOL STANDARDS GROUP,CARLSON WAGONLIT TRAVEL,Commercial,Costs related to staff travel expenses for official duty,4000080262,1951.17
Department for Education,DEPARTMENT FOR EDUCATION,14/05/2012,Travel and Events,People and Change,CARLSON WAGONLIT TRAVEL,Commercial,Costs related to staff travel expenses for official duty,4000080262,1923.23
Department for Education,DEPARTMENT FOR EDUCATION,14/05/2012,Travel and Events,PARTICIPATION AND VOCATIONAL EDUCATION GROUP,CARLSON WAGONLIT TRAVEL,Commercial,Costs related to staff travel expenses for official duty,4000080262,1862.75
Department for Education,DEPARTMENT FOR EDUCATION,14/05/2012,Travel and Events,Academies Policy and School Organisation Group,CARLSON WAGONLIT TRAVEL,Commercial,Costs related to staff travel expenses for official duty,4000080262,1838.72
Department for Education,DEPARTMENT FOR EDUCATION,14/05/2012,Travel and Events,Education Funding Group,CARLSON WAGONLIT TRAVEL,Commercial,Costs related to staff travel expenses for official duty,4000080262,1667.84
Department for Education,DEPARTMENT FOR EDUCATION,14/05/2012,Travel and Events,Children Young People and Families Directorate Support Group,CARLSON WAGONLIT TRAVEL,Commercial,Costs related to staff travel expenses for official duty,4000080262,1617.11
Department for Education,DEPARTMENT FOR EDUCATION,14/05/2012,Travel and Events,PARTICIPATION AND VOCATIONAL EDUCATION GROUP,CARLSON WAGONLIT TRAVEL,Commercial,Costs related to staff travel expenses for official duty,4000080262,1598.02
Department for Education,DEPARTMENT FOR EDUCATION,14/05/2012,Travel and Events,Education Funding Group,CARLSON WAGONLIT TRAVEL,Commercial,Costs related to staff travel expenses for official duty,4000080262,1590.36
Department for Education,DEPARTMENT FOR EDUCATION,14/05/2012,Travel and Events,Supporting Children and Young People Group,CARLSON WAGONLIT TRAVEL,Commercial,Costs related to staff travel expenses for official duty,4000080262,1569.62
Department for Education,DEPARTMENT FOR EDUCATION,14/05/2012,Travel and Events,CHIEF INFORMATION OFFICER GROUP,CARLSON WAGONLIT TRAVEL,Commercial,Costs related to staff travel expenses for official duty,4000080262,1495.38
Department for Education,DEPARTMENT FOR EDUCATION,14/05/2012,Travel and Events,Families Group,CARLSON WAGONLIT TRAVEL,Commercial,Costs related to staff travel expenses for official duty,4000080262,1436.19
Department for Education,DEPARTMENT FOR EDUCATION,14/05/2012,Travel and Events,CHIEF INFORMATION OFFICER GROUP,CARLSON WAGONLIT TRAVEL,Commercial,Costs related to staff travel expenses for official duty,4000080262,1408
Department for Education,DEPARTMENT FOR EDUCATION,14/05/2012,Travel and Events,Teachers Group,CARLSON WAGONLIT TRAVEL,Commercial,Costs related to staff travel expenses for official duty,4000080262,1359.53
Department for Education,DEPARTMENT FOR EDUCATION,14/05/2012,Travel and Events,Private Office,CARLSON WAGONLIT TRAVEL,Commercial,Costs related to staff travel expenses for official duty,4000080262,1275.71
Department for Education,DEPARTMENT FOR EDUCATION,14/05/2012,Travel and Events,CHIEF INFORMATION OFFICER GROUP,CARLSON WAGONLIT TRAVEL,Commercial,Costs related to staff travel expenses for official duty,4000080262,1252.73
Department for Education,DEPARTMENT FOR EDUCATION,14/05/2012,Travel and Events,CHIEF INFORMATION OFFICER GROUP,CARLSON WAGONLIT TRAVEL,Commercial,Costs related to staff travel expenses for official duty,4000080262,1173.36
Department for Education,DEPARTMENT FOR EDUCATION,14/05/2012,Travel and Events,Free School Group,CARLSON WAGONLIT TRAVEL,Commercial,Costs related to staff travel expenses for official duty,4000080262,1010.67
Department for Education,DEPARTMENT FOR EDUCATION,14/05/2012,Travel and Events,CHIEF INFORMATION OFFICER GROUP,CARLSON WAGONLIT TRAVEL,Commercial,Costs related to staff travel expenses for official duty,4000080262,983
Department for Education,DEPARTMENT FOR EDUCATION,14/05/2012,Travel and Events,Children Young People and Families Early Years Extended Schools and Special Needs Group,CARLSON WAGONLIT TRAVEL,Commercial,Costs related to staff travel expenses for official duty,4000080262,954.56
Department for Education,DEPARTMENT FOR EDUCATION,14/05/2012,Travel and Events,Education Funding Group,CARLSON WAGONLIT TRAVEL,Commercial,Costs related to staff travel expenses for official duty,4000080262,945.63
Department for Education,DEPARTMENT FOR EDUCATION,14/05/2012,Travel and Events,CHIEF INFORMATION OFFICER GROUP,CARLSON WAGONLIT TRAVEL,Commercial,Costs related to staff travel expenses for official duty,4000080262,878.09
Department for Education,DEPARTMENT FOR EDUCATION,14/05/2012,Personnel Related,People and Change,CARLSON WAGONLIT TRAVEL,Commercial,Costs related to subsistence and lodging allowances for official duty,4000080262,841.05
Department for Education,DEPARTMENT FOR EDUCATION,14/05/2012,Travel and Events,Communications Group,CARLSON WAGONLIT TRAVEL,Commercial,Costs related to staff travel expenses for official duty,4000080262,838.42
Department for Education,DEPARTMENT FOR EDUCATION,14/05/2012,Travel and Events,Academies Policy and School Organisation Group,CARLSON WAGONLIT TRAVEL,Commercial,Costs related to staff travel expenses for official duty,4000080262,838.11
Department for Education,DEPARTMENT FOR EDUCATION,14/05/2012,Travel and Events,CHIEF INFORMATION OFFICER GROUP,CARLSON WAGONLIT TRAVEL,Commercial,Costs related to staff travel expenses for official duty,4000080262,826.59
Department for Education,DEPARTMENT FOR EDUCATION,14/05/2012,Travel and Events,EDUCATION STRATEGY PERFORMANCE ANALYSIS GROUP,CARLSON WAGONLIT TRAVEL,Commercial,Costs related to staff travel expenses for official duty,4000080262,822.99
Department for Education,DEPARTMENT FOR EDUCATION,14/05/2012,Travel and Events,Children Young People and Families Early Years Extended Schools and Special Needs Group,CARLSON WAGONLIT TRAVEL,Commercial,Costs related to staff travel expenses for official duty,4000080262,814.39
Department for Education,DEPARTMENT FOR EDUCATION,14/05/2012,Travel and Events,Private Office,CARLSON WAGONLIT TRAVEL,Commercial,Costs related to staff travel expenses for official duty,4000080262,739.45
Department for Education,DEPARTMENT FOR EDUCATION,14/05/2012,Travel and Events,Private Office,CARLSON WAGONLIT TRAVEL,Commercial,Costs related to staff travel expenses for official duty,4000080262,687.53
Department for Education,DEPARTMENT FOR EDUCATION,14/05/2012,Travel and Events,CHIEF INFORMATION OFFICER GROUP,CARLSON WAGONLIT TRAVEL,Commercial,Costs related to staff travel expenses for official duty,4000080262,661.65
Department for Education,DEPARTMENT FOR EDUCATION,14/05/2012,Travel and Events,GROUP LEGAL ADVISERS OFFICE,CARLSON WAGONLIT TRAVEL,Commercial,Costs related to staff travel expenses for official duty,4000080262,645.84
Department for Education,DEPARTMENT FOR EDUCATION,14/05/2012,Travel and Events,Academies Policy and School Organisation Group,CARLSON WAGONLIT TRAVEL,Commercial,Costs related to staff travel expenses for official duty,4000080262,623.92
Department for Education,DEPARTMENT FOR EDUCATION,14/05/2012,Travel and Events,CHIEF INFORMATION OFFICER GROUP,CARLSON WAGONLIT TRAVEL,Commercial,Costs related to staff travel expenses for official duty,4000080262,586.31
Department for Education,DEPARTMENT FOR EDUCATION,14/05/2012,Travel and Events,Finance and Commercial Group,CARLSON WAGONLIT TRAVEL,Commercial,Costs related to staff travel expenses for official duty,4000080262,577.47
Department for Education,DEPARTMENT FOR EDUCATION,14/05/2012,Travel and Events,EDUCATION STRATEGY PERFORMANCE ANALYSIS GROUP,CARLSON WAGONLIT TRAVEL,Commercial,Costs related to staff travel expenses for official duty,4000080262,568.71
Department for Education,DEPARTMENT FOR EDUCATION,14/05/2012,Travel and Events,Education Funding Group,CARLSON WAGONLIT TRAVEL,Commercial,Costs related to staff travel expenses for official duty,4000080262,564.95
Department for Education,DEPARTMENT FOR EDUCATION,14/05/2012,Travel and Events,Children Young People and Families Supporting Delivery Group,CARLSON WAGONLIT TRAVEL,Commercial,Costs related to staff travel expenses for official duty,4000080262,559.85
Department for Education,DEPARTMENT FOR EDUCATION,14/05/2012,Travel and Events,SCHOOL STANDARDS GROUP,CARLSON WAGONLIT TRAVEL,Commercial,Costs related to staff travel expenses for official duty,4000080262,540.93
Department for Education,DEPARTMENT FOR EDUCATION,14/05/2012,Travel and Events,Children Young People and Families Safeguarding Group,CARLSON WAGONLIT TRAVEL,Commercial,Costs related to staff travel expenses for official duty,4000080262,529.21
Department for Education,DEPARTMENT FOR EDUCATION,14/05/2012,Travel and Events,Teachers Group,CARLSON WAGONLIT TRAVEL,Commercial,Costs related to staff travel expenses for official duty,4000080262,514.96
Department for Education,DEPARTMENT FOR EDUCATION,14/05/2012,Travel and Events,Young People's Learning Agency Resource Costs,CARLSON WAGONLIT TRAVEL,Commercial,Costs related to staff travel expenses for official duty,4000080262,507.04
Department for Education,DEPARTMENT FOR EDUCATION,14/05/2012,Travel and Events,EDUCATION STRATEGY PERFORMANCE ANALYSIS GROUP,CARLSON WAGONLIT TRAVEL,Commercial,Costs related to staff travel expenses for official duty,4000080262,506.16
Department for Education,DEPARTMENT FOR EDUCATION,14/05/2012,Travel and Events,People and Change,CARLSON WAGONLIT TRAVEL,Commercial,Costs related to staff travel expenses for official duty,4000080262,481.7
Department for Education,DEPARTMENT FOR EDUCATION,14/05/2012,Travel and Events,Children Young People and Families Supporting Delivery Group,CARLSON WAGONLIT TRAVEL,Commercial,Costs related to staff travel expenses for official duty,4000080262,475.27
Department for Education,DEPARTMENT FOR EDUCATION,14/05/2012,Travel and Events,EDUCATION STRATEGY PERFORMANCE ANALYSIS GROUP,CARLSON WAGONLIT TRAVEL,Commercial,Costs related to staff travel expenses for official duty,4000080262,461.26
Department for Education,DEPARTMENT FOR EDUCATION,14/05/2012,Personnel Related,People and Change,CARLSON WAGONLIT TRAVEL,Commercial,Costs related to subsistence and lodging allowances for official duty,4000080262,449.46
Department for Education,DEPARTMENT FOR EDUCATION,14/05/2012,Travel and Events,Academies Delivery Group,CARLSON WAGONLIT TRAVEL,Commercial,Costs related to subsistence and lodging allowances for official duty,4000080262,414.89
Department for Education,DEPARTMENT FOR EDUCATION,14/05/2012,Travel and Events,Academies Policy and School Organisation Group,CARLSON WAGONLIT TRAVEL,Commercial,Costs related to staff travel expenses for official duty,4000080262,404.22
Department for Education,DEPARTMENT FOR EDUCATION,14/05/2012,Travel and Events,EDUCATION STRATEGY PERFORMANCE ANALYSIS GROUP,CARLSON WAGONLIT TRAVEL,Commercial,Costs related to staff travel expenses for official duty,4000080262,404.05
Department for Education,DEPARTMENT FOR EDUCATION,14/05/2012,Travel and Events,Free School Group,CARLSON WAGONLIT TRAVEL,Commercial,Costs related to staff travel expenses for official duty,4000080262,362.92
Department for Education,DEPARTMENT FOR EDUCATION,14/05/2012,Travel and Events,Academies Policy and School Organisation Group,CARLSON WAGONLIT TRAVEL,Commercial,Costs related to staff travel expenses for official duty,4000080262,353.35
Department for Education,DEPARTMENT FOR EDUCATION,14/05/2012,Travel and Events,Academies Policy and School Organisation Group,CARLSON WAGONLIT TRAVEL,Commercial,Costs related to staff travel expenses for official duty,4000080262,352.79
Department for Education,DEPARTMENT FOR EDUCATION,14/05/2012,Travel and Events,CHIEF INFORMATION OFFICER GROUP,CARLSON WAGONLIT TRAVEL,Commercial,Costs related to staff travel expenses for official duty,4000080262,344.44
Department for Education,DEPARTMENT FOR EDUCATION,14/05/2012,Personnel Related,Academies Delivery Group,CARLSON WAGONLIT TRAVEL,Commercial,Costs related to subsistence and lodging allowances for official duty,4000080262,326.87
Department for Education,DEPARTMENT FOR EDUCATION,14/05/2012,Travel and Events,Teachers Group,CARLSON WAGONLIT TRAVEL,Commercial,Costs related to staff travel expenses for official duty,4000080262,325.13
Department for Education,DEPARTMENT FOR EDUCATION,14/05/2012,Travel and Events,Academies Delivery Group,CARLSON WAGONLIT TRAVEL,Commercial,Costs related to staff travel expenses for official duty,4000080262,309.27
Department for Education,DEPARTMENT FOR EDUCATION,14/05/2012,Travel and Events,SCHOOL STANDARDS GROUP,CARLSON WAGONLIT TRAVEL,Commercial,Costs related to staff travel expenses for official duty,4000080262,307.33
Department for Education,DEPARTMENT FOR EDUCATION,14/05/2012,Travel and Events,SCHOOL STANDARDS GROUP,CARLSON WAGONLIT TRAVEL,Commercial,Costs related to staff travel expenses for official duty,4000080262,298.32
Department for Education,DEPARTMENT FOR EDUCATION,14/05/2012,Travel and Events,Education Funding Group,CARLSON WAGONLIT TRAVEL,Commercial,Costs related to staff travel expenses for official duty,4000080262,288.3
Department for Education,DEPARTMENT FOR EDUCATION,14/05/2012,Travel and Events,PARTICIPATION AND VOCATIONAL EDUCATION GROUP,CARLSON WAGONLIT TRAVEL,Commercial,Costs related to staff travel expenses for official duty,4000080262,275.19
Department for Education,DEPARTMENT FOR EDUCATION,14/05/2012,Travel and Events,Supporting Children and Young People Group,CARLSON WAGONLIT TRAVEL,Commercial,Costs related to staff travel expenses for official duty,4000080262,271.52
Department for Education,DEPARTMENT FOR EDUCATION,14/05/2012,Travel and Events,Free School Group,CARLSON WAGONLIT TRAVEL,Commercial,Costs related to staff travel expenses for official duty,4000080262,271.07
Department for Education,DEPARTMENT FOR EDUCATION,14/05/2012,Personnel Related,SCHOOL STANDARDS GROUP,CARLSON WAGONLIT TRAVEL,Commercial,Costs related to subsistence and lodging allowances for official duty,4000080262,265.17
Department for Education,DEPARTMENT FOR EDUCATION,14/05/2012,Travel and Events,Communications Group,CARLSON WAGONLIT TRAVEL,Commercial,Costs related to staff travel expenses for official duty,4000080262,248.88
Department for Education,DEPARTMENT FOR EDUCATION,14/05/2012,Travel and Events,"Strategic Analysis, Research and Policy Impact Group",CARLSON WAGONLIT TRAVEL,Commercial,Costs related to staff travel expenses for official duty,4000080262,243.81
Department for Education,DEPARTMENT FOR EDUCATION,14/05/2012,Travel and Events,SCHOOL STANDARDS GROUP,CARLSON WAGONLIT TRAVEL,Commercial,Costs related to staff travel expenses for official duty,4000080262,235.88
Department for Education,DEPARTMENT FOR EDUCATION,14/05/2012,Travel and Events,PARTICIPATION AND VOCATIONAL EDUCATION GROUP,CARLSON WAGONLIT TRAVEL,Commercial,Costs related to staff travel expenses for official duty,4000080262,234.2
Department for Education,DEPARTMENT FOR EDUCATION,14/05/2012,Travel and Events,Curriculum and General Qualifications Reform Group,CARLSON WAGONLIT TRAVEL,Commercial,Costs related to staff travel expenses for official duty,4000080262,225.16
Department for Education,DEPARTMENT FOR EDUCATION,14/05/2012,Travel and Events,PARTICIPATION AND VOCATIONAL EDUCATION GROUP,CARLSON WAGONLIT TRAVEL,Commercial,Costs related to staff travel expenses for official duty,4000080262,223.29
Department for Education,DEPARTMENT FOR EDUCATION,14/05/2012,Travel and Events,Curriculum and General Qualifications Reform Group,CARLSON WAGONLIT TRAVEL,Commercial,Costs related to staff travel expenses for official duty,4000080262,219.42
Department for Education,DEPARTMENT FOR EDUCATION,14/05/2012,Travel and Events,CHIEF INFORMATION OFFICER GROUP,CARLSON WAGONLIT TRAVEL,Commercial,Costs related to staff travel expenses for official duty,4000080262,215.51
Department for Education,DEPARTMENT FOR EDUCATION,14/05/2012,Travel and Events,Supporting Children and Young People Group,CARLSON WAGONLIT TRAVEL,Commercial,Costs related to staff travel expenses for official duty,4000080262,214.08
Department for Education,DEPARTMENT FOR EDUCATION,14/05/2012,Travel and Events,Communications Group,CARLSON WAGONLIT TRAVEL,Commercial,Costs related to staff travel expenses for official duty,4000080262,200.94
Department for Education,DEPARTMENT FOR EDUCATION,14/05/2012,Travel and Events,Young People's Learning Agency Resource Costs,CARLSON WAGONLIT TRAVEL,Commercial,Costs related to staff travel expenses for official duty,4000080262,165.64
Department for Education,DEPARTMENT FOR EDUCATION,14/05/2012,Travel and Events,"Strategic Analysis, Research and Policy Impact Group",CARLSON WAGONLIT TRAVEL,Commercial,Costs related to staff travel expenses for official duty,4000080262,162.53
Department for Education,DEPARTMENT FOR EDUCATION,14/05/2012,Travel and Events,Teachers Group,CARLSON WAGONLIT TRAVEL,Commercial,Costs related to staff travel expenses for official duty,4000080262,158.19
Department for Education,DEPARTMENT FOR EDUCATION,14/05/2012,Travel and Events,CHIEF INFORMATION OFFICER GROUP,CARLSON WAGONLIT TRAVEL,Commercial,Costs related to staff travel expenses for official duty,4000080262,147.43
Department for Education,DEPARTMENT FOR EDUCATION,14/05/2012,Travel and Events,EDUCATION STRATEGY PERFORMANCE ANALYSIS GROUP,CARLSON WAGONLIT TRAVEL,Commercial,Costs related to staff travel expenses for official duty,4000080262,143.7
Department for Education,DEPARTMENT FOR EDUCATION,14/05/2012,Travel and Events,Finance and Commercial Group,CARLSON WAGONLIT TRAVEL,Commercial,Costs related to staff travel expenses for official duty,4000080262,139.06
Department for Education,DEPARTMENT FOR EDUCATION,14/05/2012,Travel and Events,Children Young People and Families Supporting Delivery Group,CARLSON WAGONLIT TRAVEL,Commercial,Costs related to staff travel expenses for official duty,4000080262,138.14
Department for Education,DEPARTMENT FOR EDUCATION,14/05/2012,Travel and Events,"Strategic Analysis, Research and Policy Impact Group",CARLSON WAGONLIT TRAVEL,Commercial,Costs related to staff travel to attend training events,4000080262,131.7
Department for Education,DEPARTMENT FOR EDUCATION,14/05/2012,Travel and Events,Free School Group,CARLSON WAGONLIT TRAVEL,Commercial,Costs related to staff travel expenses for official duty,4000080262,115.01
Department for Education,DEPARTMENT FOR EDUCATION,14/05/2012,Travel and Events,Private Office,CARLSON WAGONLIT TRAVEL,Commercial,Costs related to staff travel expenses for official duty,4000080262,109.52
Department for Education,DEPARTMENT FOR EDUCATION,14/05/2012,Travel and Events,CHIEF INFORMATION OFFICER GROUP,CARLSON WAGONLIT TRAVEL,Commercial,Costs related to staff travel to attend training events,4000080262,108.06
Department for Education,DEPARTMENT FOR EDUCATION,14/05/2012,Travel and Events,EDUCATION STRATEGY PERFORMANCE ANALYSIS GROUP,CARLSON WAGONLIT TRAVEL,Commercial,Costs related to staff travel expenses for official duty,4000080262,101.48
Department for Education,DEPARTMENT FOR EDUCATION,14/05/2012,Personnel Related,SCHOOL STANDARDS GROUP,CARLSON WAGONLIT TRAVEL,Commercial,Costs related to subsistence and lodging allowances for official duty,4000080262,96.07
Department for Education,DEPARTMENT FOR EDUCATION,14/05/2012,Travel and Events,Children Young People and Families Directorate Support Group,CARLSON WAGONLIT TRAVEL,Commercial,Costs related to staff travel to attend training events,4000080262,92.38
Department for Education,DEPARTMENT FOR EDUCATION,14/05/2012,Travel and Events,Curriculum and General Qualifications Reform Group,CARLSON WAGONLIT TRAVEL,Commercial,Costs related to staff travel expenses for official duty,4000080262,92.38
Department for Education,DEPARTMENT FOR EDUCATION,14/05/2012,Travel and Events,Education Funding Group,CARLSON WAGONLIT TRAVEL,Commercial,Costs related to staff travel expenses for official duty,4000080262,91.01
Department for Education,DEPARTMENT FOR EDUCATION,14/05/2012,Travel and Events,Strategy and Performance Group,CARLSON WAGONLIT TRAVEL,Commercial,Costs related to staff travel expenses for official duty,4000080262,79.24
Department for Education,DEPARTMENT FOR EDUCATION,14/05/2012,Travel and Events,Families Group,CARLSON WAGONLIT TRAVEL,Commercial,Costs related to staff travel expenses for official duty,4000080262,69.99
Department for Education,DEPARTMENT FOR EDUCATION,14/05/2012,Travel and Events,People and Change,CARLSON WAGONLIT TRAVEL,Commercial,Costs related to staff travel expenses for official duty,4000080262,68.58
Department for Education,DEPARTMENT FOR EDUCATION,14/05/2012,Travel and Events,Education Funding Group,CARLSON WAGONLIT TRAVEL,Commercial,Costs related to staff travel expenses for official duty,4000080262,68.05
Department for Education,DEPARTMENT FOR EDUCATION,14/05/2012,Travel and Events,EDUCATION STRATEGY PERFORMANCE ANALYSIS GROUP,CARLSON WAGONLIT TRAVEL,Commercial,Costs related to staff travel expenses for official duty,4000080262,68.04
Department for Education,DEPARTMENT FOR EDUCATION,14/05/2012,Travel and Events,Children Young People and Families Early Years Extended Schools and Special Needs Group,CARLSON WAGONLIT TRAVEL,Commercial,Costs related to staff travel expenses for official duty,4000080262,67.83
Department for Education,DEPARTMENT FOR EDUCATION,14/05/2012,Personnel Related,Children Young People and Families Safeguarding Group,CARLSON WAGONLIT TRAVEL,Commercial,Costs related to subsistence and lodging allowances for official duty,4000080262,66.59
Department for Education,DEPARTMENT FOR EDUCATION,14/05/2012,Travel and Events,Private Office,CARLSON WAGONLIT TRAVEL,Commercial,Costs related to staff travel expenses for official duty,4000080262,64.63
Department for Education,DEPARTMENT FOR EDUCATION,14/05/2012,Travel and Events,EDUCATION STRATEGY PERFORMANCE ANALYSIS GROUP,CARLSON WAGONLIT TRAVEL,Commercial,Costs related to staff travel expenses for official duty,4000080262,51.98
Department for Education,DEPARTMENT FOR EDUCATION,14/05/2012,Travel and Events,Free School Group,CARLSON WAGONLIT TRAVEL,Commercial,Costs related to staff travel expenses for official duty,4000080262,51.59
Department for Education,DEPARTMENT FOR EDUCATION,14/05/2012,Travel and Events,Children Young People and Families Early Years Extended Schools and Special Needs Group,CARLSON WAGONLIT TRAVEL,Commercial,Costs related to staff travel expenses for official duty,4000080262,49.1
Department for Education,DEPARTMENT FOR EDUCATION,14/05/2012,Travel and Events,People and Change,CARLSON WAGONLIT TRAVEL,Commercial,Costs related to staff travel to attend training events,4000080262,48.28
Department for Education,DEPARTMENT FOR EDUCATION,14/05/2012,Travel and Events,CHIEF INFORMATION OFFICER GROUP,CARLSON WAGONLIT TRAVEL,Commercial,Costs related to staff travel to attend training events,4000080262,47.41
Department for Education,DEPARTMENT FOR EDUCATION,14/05/2012,Travel and Events,SCHOOL STANDARDS GROUP,CARLSON WAGONLIT TRAVEL,Commercial,Costs related to staff travel expenses for official duty,4000080262,43.32
Department for Education,DEPARTMENT FOR EDUCATION,14/05/2012,Travel and Events,CHIEF INFORMATION OFFICER GROUP,CARLSON WAGONLIT TRAVEL,Commercial,Costs related to staff travel expenses for official duty,4000080262,36.41
Department for Education,DEPARTMENT FOR EDUCATION,14/05/2012,Travel and Events,SCHOOL STANDARDS GROUP,CARLSON WAGONLIT TRAVEL,Commercial,Costs related to staff travel expenses for official duty,4000080262,34.45
Department for Education,DEPARTMENT FOR EDUCATION,14/05/2012,Travel and Events,Curriculum and General Qualifications Reform Group,CARLSON WAGONLIT TRAVEL,Commercial,Costs related to staff travel to attend training events,4000080262,33.76
Department for Education,DEPARTMENT FOR EDUCATION,14/05/2012,Travel and Events,People and Change,CARLSON WAGONLIT TRAVEL,Commercial,Costs related to staff travel expenses for official duty,4000080262,33.24
Department for Education,DEPARTMENT FOR EDUCATION,14/05/2012,Professional Services Consultancy,Communications Group,CARLSON WAGONLIT TRAVEL,Commercial,"Costs related to fees and expenses of professionals from the private sector such as auditors, accountants, lawyers engaged to provide advice or opinion on how to affect something",4000080262,23.5
Department for Education,DEPARTMENT FOR EDUCATION,14/05/2012,Travel and Events,Office of the Schools Commissioner Group,CARLSON WAGONLIT TRAVEL,Commercial,Costs related to staff travel expenses for official duty,4000080262,23.36
Department for Education,DEPARTMENT FOR EDUCATION,14/05/2012,Travel and Events,Children Young People and Families Safeguarding Group,CARLSON WAGONLIT TRAVEL,Commercial,Costs related to staff travel to attend training events,4000080262,19.76
Department for Education,DEPARTMENT FOR EDUCATION,14/05/2012,Travel and Events,CHIEF INFORMATION OFFICER GROUP,CARLSON WAGONLIT TRAVEL,Commercial,Costs related to staff travel expenses for official duty,4000080262,17.5
Department for Education,DEPARTMENT FOR EDUCATION,14/05/2012,Travel and Events,CHIEF INFORMATION OFFICER GROUP,CARLSON WAGONLIT TRAVEL,Commercial,Costs related to staff travel expenses for official duty,4000080262,6.6
Department for Education,DEPARTMENT FOR EDUCATION,14/05/2012,Travel and Events,CHIEF INFORMATION OFFICER GROUP,CARLSON WAGONLIT TRAVEL,Commercial,Costs related to staff travel expenses for official duty,4000080262,-2.16
Department for Education,DEPARTMENT FOR EDUCATION,14/05/2012,Travel and Events,Academies Delivery Group,CARLSON WAGONLIT TRAVEL,Commercial,Costs related to staff travel expenses for official duty,4000080262,-4.89
Department for Education,DEPARTMENT FOR EDUCATION,14/05/2012,Personnel Related,Families Group,CARLSON WAGONLIT TRAVEL,Commercial,Costs related to subsistence and lodging allowances for official duty,4000080262,-48.11
Department for Education,DEPARTMENT FOR EDUCATION,15/05/2012,Current Grants,Children Young People and Families Supporting Delivery Group,LOCAL GOVERNMENT IMPROVEMENT & DEVELOPMENT,Public Sector,Current grant paid to local authorities within the aggregate external funding total,4000080409,2810800
Department for Education,DEPARTMENT FOR EDUCATION,15/05/2012,DfE Programme Costs,Teachers Group,TEACHERS SUPERANN,Public Sector,Funding to deliver DfE policies (excluding consultancy) paid to third parties via a service delivery contract,2000593,684335.95
Department for Education,DEPARTMENT FOR EDUCATION,15/05/2012,DfE Programme Costs,Teachers Group,TEACHERS SUPERANN,Public Sector,Funding to deliver DfE policies (excluding consultancy) paid to third parties via a service delivery contract,2000593,314429.01
Department for Education,DEPARTMENT FOR EDUCATION,15/05/2012,Current Grants to Arms Length Bodies,Supporting Children and Young People Group,OFFICE OF THE CHILDRENS COMMISSIONER,Public Sector,Funding to arms length bodies for DfE's contribution to fund activity,2000592,136195.66
Department for Education,DEPARTMENT FOR EDUCATION,15/05/2012,Current Grants,Families Group,ONE PLUS ONE,VCS,Current grant to third sector organisation / not for profit organisation,4000080416,98823.55
Department for Education,DEPARTMENT FOR EDUCATION,15/05/2012,Professional Services Other,Children Young People and Families Early Years Extended Schools and Special Needs Group,IPSOS MORI,Commercial,Costs related to research and evaluation activities including contracted out data collation / gathering exercises when there is no analysis or recommendation,4000080407,54660
Department for Education,DEPARTMENT FOR EDUCATION,15/05/2012,Current Grants,Families Group,INSTITUTE OF WELLBEING LTD,VCS,Current grant to third sector organisation / not for profit organisation,4000080406,43500
Department for Education,DEPARTMENT FOR EDUCATION,15/05/2012,Current Grants,Children Young People and Families Early Years Extended Schools and Special Needs Group,DAYCARE TRUST,VCS,Current grant to third sector organisation / not for profit organisation,4000080395,38421
Department for Education,DEPARTMENT FOR EDUCATION,15/05/2012,Current Grants,Families Group,FAMILY RIGHTS GROUP LTD,VCS,Current grant to third sector organisation / not for profit organisation,4000080400,34788.94
Department for Education,DEPARTMENT FOR EDUCATION,15/05/2012,Current Grants,Academies Delivery Group,EC HARRIS LLP,Commercial,"Current grant paid to organisations including agencies, arms length bodies and educational establishments",4000080398,33930.84
Department for Education,DEPARTMENT FOR EDUCATION,15/05/2012,Current Grants,Academies Delivery Group,NORTH EAST WOLVERHAMPTON ACADEMY,Public Sector,"Current grant paid to organisations including agencies, arms length bodies and educational establishments",4000080415,32773.35
Department for Education,DEPARTMENT FOR EDUCATION,15/05/2012,Professional Services Other,Curriculum and General Qualifications Reform Group,THE UNIVERSITY OF MANCHESTER,Public Sector,"Costs related to fees and expenses of professional from the private sector, for example implementing advice or changes",4000080434,32661.48
Department for Education,DEPARTMENT FOR EDUCATION,15/05/2012,DfE Programme Costs,Teachers Group,TEACHERS SUPERANN,Public Sector,Funding to deliver DfE policies (excluding consultancy) paid to third parties via a service delivery contract,2000593,8825.56
Department for Education,DEPARTMENT FOR EDUCATION,16/05/2012,Current Grants,Families Group,SCHOOL HOME SUPPORT SERVICES UK,VCS,Current grant to third sector organisation / not for profit organisation,4000080547,155397.99
Department for Education,DEPARTMENT FOR EDUCATION,16/05/2012,Capital Grants,Education Funding Group,HARRIS FEDERATION OF SOUTH LONDON SCHOOLS,Public Sector,Capital grant paid to a private sector organisation,4000080533,126703
Department for Education,DEPARTMENT FOR EDUCATION,16/05/2012,DfE Programme Costs,Children Young People and Families Early Years Extended Schools and Special Needs Group,YOUNG MINDS,VCS,Funding to deliver DfE policies (excluding consultancy) paid to third parties via a service delivery contract,4000080556,111184.12
Department for Education,DEPARTMENT FOR EDUCATION,16/05/2012,DfE Programme Costs,Children Young People and Families Early Years Extended Schools and Special Needs Group,SQW LTD,Commercial,Funding to deliver DfE policies (excluding consultancy) paid to third parties via a service delivery contract,4000080548,47313.6
Department for Education,DEPARTMENT FOR EDUCATION,16/05/2012,Current Grants,Academies Delivery Group,LEIGH TECHNOLOGY ACADEMY,Public Sector,"Current grant paid to organisations including agencies, arms length bodies and educational establishments",4000080539,28160
Department for Education,DEPARTMENT FOR EDUCATION,17/05/2012,DfE Programme Costs,SCHOOL STANDARDS GROUP,EASTERN SHIRES PURCHASING ORGANISATION,Public Sector,Funding to deliver DfE policies (excluding consultancy) paid to third parties via a service delivery contract,4000080622,812720.99
Department for Education,DEPARTMENT FOR EDUCATION,17/05/2012,Current Grants,Supporting Children and Young People Group,ROYAL PHILANTHROPIC SOCIETY RAINER,VCS,Current grant to third sector organisation / not for profit organisation,4000080673,150857.48
Department for Education,DEPARTMENT FOR EDUCATION,17/05/2012,DfE Programme Costs,Families Group,FAMILY LIVES,VCS,Funding to deliver DfE policies (excluding consultancy) paid to third parties via a service delivery contract,4000080625,119705.9
Department for Education,DEPARTMENT FOR EDUCATION,17/05/2012,DfE Programme Costs,Children Young People and Families Early Years Extended Schools and Special Needs Group,MOTT MACDONALD LTD,Commercial,Funding to deliver DfE policies (excluding consultancy) paid to third parties via a service delivery contract,4000080655,110477
Department for Education,DEPARTMENT FOR EDUCATION,17/05/2012,Current Grants,Families Group,MARRIAGE CARE,VCS,Current grant to third sector organisation / not for profit organisation,4000080652,91192.72
Department for Education,DEPARTMENT FOR EDUCATION,17/05/2012,Current Grants,Families Group,ADFAM,VCS,Current grant to third sector organisation / not for profit organisation,4000080605,80753.58
Department for Education,DEPARTMENT FOR EDUCATION,17/05/2012,Current Grants,Children Young People and Families Safeguarding Group,LUCY FAITHFULL FOUNDATION,VCS,Current grant to third sector organisation / not for profit organisation,4000080649,73321
Department for Education,DEPARTMENT FOR EDUCATION,17/05/2012,Current Grants,Families Group,SPURGEONS,VCS,Current grant to third sector organisation / not for profit organisation,4000080678,70687.4
Department for Education,DEPARTMENT FOR EDUCATION,17/05/2012,DfE Programme Costs,SCHOOL STANDARDS GROUP,METEOROLOGICAL OFFICE,Public Sector,Funding to deliver DfE policies (excluding consultancy) paid to third parties via a service delivery contract,4000080653,55350
Department for Education,DEPARTMENT FOR EDUCATION,17/05/2012,Marketing and Media,Communications Group,PROLOG,Commercial,Digital media and web production,4000080666,49801.2
Department for Education,DEPARTMENT FOR EDUCATION,17/05/2012,DfE Programme Costs,Families Group,CONTACT A FAMILY,VCS,Funding to deliver DfE policies (excluding consultancy) paid to third parties via a service delivery contract,4000080617,45415.12
Department for Education,DEPARTMENT FOR EDUCATION,17/05/2012,Current Grants,Families Group,ALCOHOL CONCERN,VCS,Current grant to third sector organisation / not for profit organisation,4000080606,43646.25
Department for Education,DEPARTMENT FOR EDUCATION,17/05/2012,DfE Programme Costs,Families Group,CHILDRENS LEGAL CENTRE,VCS,Funding to deliver DfE policies (excluding consultancy) paid to third parties via a service delivery contract,4000080615,39982.57
Department for Education,DEPARTMENT FOR EDUCATION,17/05/2012,Marketing and Media,Communications Group,PROLOG,Commercial,Digital media and web production,4000080666,34298.62
Department for Education,DEPARTMENT FOR EDUCATION,17/05/2012,Current Grants,Families Group,ONE PLUS ONE,VCS,Current grant to third sector organisation / not for profit organisation,4000080658,33603.05
Department for Education,DEPARTMENT FOR EDUCATION,17/05/2012,Current Grants,Academies Delivery Group,E ACT,Public Sector,"Current grant paid to organisations including agencies, arms length bodies and educational establishments",4000080620,29194.8
Department for Education,DEPARTMENT FOR EDUCATION,17/05/2012,Current Grants,Families Group,TIME FOR FAMILIES,VCS,Current grant to third sector organisation / not for profit organisation,4000080687,28514.37
Department for Education,DEPARTMENT FOR EDUCATION,17/05/2012,DfE Programme Costs,Families Group,GINGERBREAD,VCS,Funding to deliver DfE policies (excluding consultancy) paid to third parties via a service delivery contract,4000080630,27426
Department for Education,DEPARTMENT FOR EDUCATION,17/05/2012,Marketing and Media,Communications Group,PROLOG,Commercial,Digital media and web production,4000080666,26046.92
Department for Education,DEPARTMENT FOR EDUCATION,17/05/2012,Current Grants,Academies Delivery Group,ALPERTON CUMMUNITY SCHOOL,Public Sector,"Current grant paid to organisations including agencies, arms length bodies and educational establishments",4000080607,25000
Department for Education,DEPARTMENT FOR EDUCATION,17/05/2012,Current Grants,Academies Delivery Group,ASHBY SCHOOL,Public Sector,"Current grant paid to organisations including agencies, arms length bodies and educational establishments",4000080609,25000
Department for Education,DEPARTMENT FOR EDUCATION,17/05/2012,Current Grants,Academies Delivery Group,BRISTOL CITY COUNCIL,Public Sector,"Current grant paid to organisations including agencies, arms length bodies and educational establishments",4000080612,25000
Department for Education,DEPARTMENT FOR EDUCATION,17/05/2012,Current Grants,Academies Delivery Group,FLEGG HIGH SCHOOL,Public Sector,"Current grant paid to organisations including agencies, arms length bodies and educational establishments",4000080626,25000
Department for Education,DEPARTMENT FOR EDUCATION,17/05/2012,Current Grants,Academies Delivery Group,GLOUCESTERSHIRE COUNTY COUNCIL,Public Sector,"Current grant paid to organisations including agencies, arms length bodies and educational establishments",4000080631,25000
Department for Education,DEPARTMENT FOR EDUCATION,17/05/2012,Current Grants,Academies Delivery Group,GRAVENHURST LOWER SCHOOL,Public Sector,"Current grant paid to organisations including agencies, arms length bodies and educational establishments",4000080632,25000
Department for Education,DEPARTMENT FOR EDUCATION,17/05/2012,Current Grants,Academies Delivery Group,HARLINGTON LOWER SCHOOL,Public Sector,"Current grant paid to organisations including agencies, arms length bodies and educational establishments",4000080634,25000
Department for Education,DEPARTMENT FOR EDUCATION,17/05/2012,Current Grants,Academies Delivery Group,LORD WILLIAMS SCHOOL,Public Sector,"Current grant paid to organisations including agencies, arms length bodies and educational establishments",4000080648,25000
Department for Education,DEPARTMENT FOR EDUCATION,17/05/2012,Current Grants,Academies Delivery Group,ST FRANCIS XAVIERS COLLEGE,Public Sector,"Current grant paid to organisations including agencies, arms length bodies and educational establishments",4000080680,25000
Department for Education,DEPARTMENT FOR EDUCATION,17/05/2012,Current Grants,Academies Delivery Group,ST MARYS RC PRIMARY SCHOOL,Public Sector,"Current grant paid to organisations including agencies, arms length bodies and educational establishments",4000080681,25000
Department for Education,DEPARTMENT FOR EDUCATION,17/05/2012,Current Grants,Academies Delivery Group,WORDEN SPORTS COLLEGE,Public Sector,"Current grant paid to organisations including agencies, arms length bodies and educational establishments",4000080693,25000
Department for Education,DEPARTMENT FOR EDUCATION,17/05/2012,DfE Programme Costs,Free School Group,PKF UK LLP,Commercial,Funding to deliver DfE policies (excluding consultancy) paid to third parties via a service delivery contract,4000080662,17413.16
Department for Education,DEPARTMENT FOR EDUCATION,17/05/2012,Marketing and Media,Communications Group,PROLOG,Commercial,Publications and related services,4000080666,17244
Department for Education,DEPARTMENT FOR EDUCATION,17/05/2012,Marketing and Media,Children Young People and Families Early Years Extended Schools and Special Needs Group,PROLOG,Commercial,Publications and related services,4000080666,14560.02
Department for Education,DEPARTMENT FOR EDUCATION,17/05/2012,Office Solutions,Communications Group,PROLOG,Commercial,"Costs related to reprographic, photo and design goods and services (excluding photocopiers, multifunctional devices and printers)",4000080666,8492.4
Department for Education,DEPARTMENT FOR EDUCATION,17/05/2012,DfE Programme Costs,Free School Group,PKF UK LLP,Commercial,Funding to deliver DfE policies (excluding consultancy) paid to third parties via a service delivery contract,4000080662,7683.33
Department for Education,DEPARTMENT FOR EDUCATION,17/05/2012,Marketing and Media,Children Young People and Families Early Years Extended Schools and Special Needs Group,PROLOG,Commercial,Publications and related services,4000080666,5130.62
Department for Education,DEPARTMENT FOR EDUCATION,17/05/2012,Marketing and Media,Children Young People and Families Safeguarding Group,PROLOG,Commercial,Publications and related services,4000080666,4911.07
Department for Education,DEPARTMENT FOR EDUCATION,17/05/2012,Marketing and Media,SCHOOL STANDARDS GROUP,PROLOG,Commercial,Publications and related services,4000080666,1760.84
Department for Education,DEPARTMENT FOR EDUCATION,17/05/2012,Marketing and Media,Families Group,PROLOG,Commercial,Publications and related services,4000080666,1321.53
Department for Education,DEPARTMENT FOR EDUCATION,17/05/2012,Marketing and Media,SCHOOL STANDARDS GROUP,PROLOG,Commercial,Publications and related services,4000080666,1195.8
Department for Education,DEPARTMENT FOR EDUCATION,17/05/2012,Marketing and Media,SCHOOL STANDARDS GROUP,PROLOG,Commercial,Publications and related services,4000080666,921.5
Department for Education,DEPARTMENT FOR EDUCATION,17/05/2012,Marketing and Media,Teachers Group,PROLOG,Commercial,Publications and related services,4000080666,862.67
Department for Education,DEPARTMENT FOR EDUCATION,17/05/2012,Office Solutions,Children Young People and Families Early Years Extended Schools and Special Needs Group,PROLOG,Commercial,Costs for storing records off DfE sites,4000080666,838.84
Department for Education,DEPARTMENT FOR EDUCATION,17/05/2012,Marketing and Media,SCHOOL STANDARDS GROUP,PROLOG,Commercial,Publications and related services,4000080666,583.76
Department for Education,DEPARTMENT FOR EDUCATION,17/05/2012,Marketing and Media,Families Group,PROLOG,Commercial,Publications and related services,4000080666,545.58
Department for Education,DEPARTMENT FOR EDUCATION,17/05/2012,Office Solutions,Children Young People and Families Early Years Extended Schools and Special Needs Group,PROLOG,Commercial,Costs for storing records off DfE sites,4000080666,510
Department for Education,DEPARTMENT FOR EDUCATION,17/05/2012,Marketing and Media,Families Group,PROLOG,Commercial,Publications and related services,4000080666,363.65
Department for Education,DEPARTMENT FOR EDUCATION,17/05/2012,Marketing and Media,Academies Policy and School Organisation Group,PROLOG,Commercial,Publications and related services,4000080666,348.36
Department for Education,DEPARTMENT FOR EDUCATION,17/05/2012,Marketing and Media,Supporting Children and Young People Group,PROLOG,Commercial,Publications and related services,4000080666,297.27
Department for Education,DEPARTMENT FOR EDUCATION,17/05/2012,Marketing and Media,Families Group,PROLOG,Commercial,Publications and related services,4000080666,288.15
Department for Education,DEPARTMENT FOR EDUCATION,17/05/2012,Marketing and Media,SCHOOL STANDARDS GROUP,PROLOG,Commercial,Publications and related services,4000080666,244.16
Department for Education,DEPARTMENT FOR EDUCATION,17/05/2012,Marketing and Media,Academies Policy and School Organisation Group,PROLOG,Commercial,Publications and related services,4000080666,243.8
Department for Education,DEPARTMENT FOR EDUCATION,17/05/2012,Marketing and Media,"Strategic Analysis, Research and Policy Impact Group",PROLOG,Commercial,Publications and related services,4000080666,147.65
Department for Education,DEPARTMENT FOR EDUCATION,17/05/2012,Marketing and Media,Children Young People and Families Early Years Extended Schools and Special Needs Group,PROLOG,Commercial,Publications and related services,4000080666,143.1
Department for Education,DEPARTMENT FOR EDUCATION,17/05/2012,Marketing and Media,Children Young People and Families Early Years Extended Schools and Special Needs Group,PROLOG,Commercial,Publications and related services,4000080666,113.84
Department for Education,DEPARTMENT FOR EDUCATION,17/05/2012,Marketing and Media,Teachers Group,PROLOG,Commercial,Publications and related services,4000080666,109.21
Department for Education,DEPARTMENT FOR EDUCATION,17/05/2012,Marketing and Media,Children Young People and Families Early Years Extended Schools and Special Needs Group,PROLOG,Commercial,Publications and related services,4000080666,103.32
Department for Education,DEPARTMENT FOR EDUCATION,17/05/2012,Office Solutions,PARTICIPATION AND VOCATIONAL EDUCATION GROUP,PROLOG,Commercial,"Costs related to reprographic, photo and design goods and services (excluding photocopiers, multifunctional devices and printers)",4000080666,83.04
Department for Education,DEPARTMENT FOR EDUCATION,17/05/2012,Marketing and Media,Families Group,PROLOG,Commercial,Publications and related services,4000080666,80.04
Department for Education,DEPARTMENT FOR EDUCATION,17/05/2012,Office Solutions,Private Office,PROLOG,Commercial,Costs related to charges for printing and binding services,4000080666,69.2
Department for Education,DEPARTMENT FOR EDUCATION,17/05/2012,Marketing and Media,PARTICIPATION AND VOCATIONAL EDUCATION GROUP,PROLOG,Commercial,Publications and related services,4000080666,61.88
Department for Education,DEPARTMENT FOR EDUCATION,17/05/2012,Marketing and Media,Academies Policy and School Organisation Group,PROLOG,Commercial,Publications and related services,4000080666,49.5
Department for Education,DEPARTMENT FOR EDUCATION,17/05/2012,Marketing and Media,EDUCATION STRATEGY PERFORMANCE ANALYSIS GROUP,PROLOG,Commercial,Publications and related services,4000080666,24.84
Department for Education,DEPARTMENT FOR EDUCATION,17/05/2012,Marketing and Media,Academies Policy and School Organisation Group,PROLOG,Commercial,Publications and related services,4000080666,20.72
Department for Education,DEPARTMENT FOR EDUCATION,17/05/2012,Marketing and Media,Young People's Learning Agency Resource Costs,PROLOG,Commercial,Publications and related services,4000080666,19.88
Department for Education,DEPARTMENT FOR EDUCATION,17/05/2012,Marketing and Media,"Strategic Analysis, Research and Policy Impact Group",PROLOG,Commercial,Publications and related services,4000080666,11.71
Department for Education,DEPARTMENT FOR EDUCATION,17/05/2012,Marketing and Media,EDUCATION STRATEGY PERFORMANCE ANALYSIS GROUP,PROLOG,Commercial,Publications and related services,4000080666,4.16
Department for Education,DEPARTMENT FOR EDUCATION,18/05/2012,Current Grants,Families Group,BOOK TRUST,VCS,Current grant to third sector organisation / not for profit organisation,4000080756,1261394
Department for Education,DEPARTMENT FOR EDUCATION,18/05/2012,Capital Grants,Education Funding Group,THE JCB ACADEMY,Public Sector,Capital grant paid to a private sector organisation,4000080808,234617.67
Department for Education,DEPARTMENT FOR EDUCATION,18/05/2012,Current Grants,Supporting Children and Young People Group,PRINCES TRUST VOLUNTEERS PROGRAMME,VCS,Current grant to third sector organisation / not for profit organisation,4000080799,136352.39
Department for Education,DEPARTMENT FOR EDUCATION,18/05/2012,Capital Grants,Education Funding Group,UNITY CITY ACADEMY TRUST,Public Sector,Capital grant paid to a private sector organisation,4000080812,129408.23
Department for Education,DEPARTMENT FOR EDUCATION,18/05/2012,Current Grants,Families Group,ADDACTION,VCS,Current grant to third sector organisation / not for profit organisation,4000080747,90378.7
Department for Education,DEPARTMENT FOR EDUCATION,18/05/2012,DfE Programme Costs,Free School Group,PKF UK LLP,Commercial,Funding to deliver DfE policies (excluding consultancy) paid to third parties via a service delivery contract,4000080798,61215.87
Department for Education,DEPARTMENT FOR EDUCATION,18/05/2012,ICT,CHIEF INFORMATION OFFICER GROUP,THE DANWOOD GROUP LTD,Commercial,Costs related to the provision of hardware maintenance and support of computer networks and systems,4000080807,57892.06
Department for Education,DEPARTMENT FOR EDUCATION,18/05/2012,ICT,CHIEF INFORMATION OFFICER GROUP,SPECIALIST COMPUTER CENTRES PLC,Commercial,Costs related to the provision of IT costs,4000080803,42290.4
Department for Education,DEPARTMENT FOR EDUCATION,18/05/2012,Current Grants,Academies Delivery Group,THE UCL ACADEMY,Public Sector,"Current grant paid to organisations including agencies, arms length bodies and educational establishments",4000080809,35227.47
Department for Education,DEPARTMENT FOR EDUCATION,18/05/2012,DfE Programme Costs,Families Group,YOUNG MINDS,VCS,Funding to deliver DfE policies (excluding consultancy) paid to third parties via a service delivery contract,4000080816,31895
Department for Education,DEPARTMENT FOR EDUCATION,18/05/2012,Office Solutions,CHIEF INFORMATION OFFICER GROUP,THE DANWOOD GROUP LTD,Commercial,Costs for office machines including printers and photocopiers,4000080807,31669.16
Department for Education,DEPARTMENT FOR EDUCATION,18/05/2012,Personnel Related,Children Young People and Families Early Years Extended Schools and Special Needs Group,ATLANTIC DATA LTD,Commercial,Costs related to staff expenses including membership fees to professional bodies and CRB checks,4000080752,27997.68
Department for Education,DEPARTMENT FOR EDUCATION,18/05/2012,DfE Programme Costs,Academies Delivery Group,PKF UK LLP,Commercial,Funding to deliver DfE policies (excluding consultancy) paid to third parties via a service delivery contract,4000080798,26152.5
Department for Education,DEPARTMENT FOR EDUCATION,18/05/2012,Office Solutions,CHIEF INFORMATION OFFICER GROUP,THE DANWOOD GROUP LTD,Commercial,"Costs for stationery, IT/office consumables, including ink and toners and storage media",4000080807,505.12
Department for Education,DEPARTMENT FOR EDUCATION,21/05/2012,Current Grants,Children Young People and Families Supporting Delivery Group,VIRTUAL STAFF COLLEGE,Commercial,Current grant to third sector organisation / not for profit organisation,4000080953,240748.43
Department for Education,DEPARTMENT FOR EDUCATION,21/05/2012,DfE Programme Costs,SCHOOL STANDARDS GROUP,EDGE HILL UNIVERSITY,Public Sector,Funding to deliver DfE policies (excluding consultancy) paid to third parties via a service delivery contract,4000080905,213653.69
Department for Education,DEPARTMENT FOR EDUCATION,21/05/2012,Current Grants,Children Young People and Families Early Years Extended Schools and Special Needs Group,BRITISH DYSLEXIA ASSOCIATION,VCS,Current grant to third sector organisation / not for profit organisation,1000618,165644.75
Department for Education,DEPARTMENT FOR EDUCATION,21/05/2012,Current Grants,SCHOOL STANDARDS GROUP,ENGINEERING UK,VCS,Current grant to third sector organisation / not for profit organisation,4000080908,150000
Department for Education,DEPARTMENT FOR EDUCATION,21/05/2012,DfE Programme Costs,Families Group,FAMILY LIVES,VCS,Funding to deliver DfE policies (excluding consultancy) paid to third parties via a service delivery contract,4000080909,109715.18
Department for Education,DEPARTMENT FOR EDUCATION,21/05/2012,ICT,CHIEF INFORMATION OFFICER GROUP,BT GLOBAL SERVICES,Commercial,Costs related to the provision of hardware maintenance and support of computer networks and systems,4000080889,96996.34
Department for Education,DEPARTMENT FOR EDUCATION,21/05/2012,DfE Programme Costs,Families Group,NETMUMS LTD,VCS,Funding to deliver DfE policies (excluding consultancy) paid to third parties via a service delivery contract,4000080930,89196
Department for Education,DEPARTMENT FOR EDUCATION,21/05/2012,Facilities,CHIEF INFORMATION OFFICER GROUP,COVENTRY CITY COUNCIL,Public Sector,Rates,4000080898,56992
Department for Education,DEPARTMENT FOR EDUCATION,21/05/2012,ICT,CHIEF INFORMATION OFFICER GROUP,BT GLOBAL SERVICES,Commercial,Costs related to the maintenance support of video conferencing,4000080889,54274.18
Department for Education,DEPARTMENT FOR EDUCATION,21/05/2012,Facilities,CHIEF INFORMATION OFFICER GROUP,MANCHESTER CITY COUNCIL,Public Sector,Rates,4000080928,51605
Department for Education,DEPARTMENT FOR EDUCATION,21/05/2012,DfE Programme Costs,SCHOOL STANDARDS GROUP,NFER TRADING LIMITED INV T,Commercial,Funding to deliver DfE policies (excluding consultancy) paid to third parties via a service delivery contract,4000080932,45058.8
Department for Education,DEPARTMENT FOR EDUCATION,21/05/2012,ICT,CHIEF INFORMATION OFFICER GROUP,BT GLOBAL SERVICES,Commercial,Costs related to fixed and mobile telecoms including equipment and call charges,4000080889,40656.84
Department for Education,DEPARTMENT FOR EDUCATION,21/05/2012,DfE Programme Costs,Families Group,FAMILY MATTERS INSTITUTE,VCS,Funding to deliver DfE policies (excluding consultancy) paid to third parties via a service delivery contract,4000080910,26682
Department for Education,DEPARTMENT FOR EDUCATION,22/05/2012,Personnel Related,Children Young People and Families Early Years Extended Schools and Special Needs Group,THE MEDIA GROUP TMG TV LTD,Commercial,Costs related to staff expenses including membership fees to professional bodies and CRB checks,4000081079,200195.2
Department for Education,DEPARTMENT FOR EDUCATION,22/05/2012,Personnel Related,Children Young People and Families Early Years Extended Schools and Special Needs Group,CAPITA EDUCATION RESOURCING,Commercial,Costs related to staff expenses including membership fees to professional bodies and CRB checks,4000081035,134836.8
Department for Education,DEPARTMENT FOR EDUCATION,22/05/2012,ICT,CHIEF INFORMATION OFFICER GROUP,CAPGEMINI UK PLC,Commercial,Costs related to the provision of IT services,4000081034,112595.2
Department for Education,DEPARTMENT FOR EDUCATION,22/05/2012,ICT,"Strategic Analysis, Research and Policy Impact Group",CAPGEMINI UK PLC,Commercial,Costs related to the provision of IT costs,4000081034,108587.53
Department for Education,DEPARTMENT FOR EDUCATION,22/05/2012,DfE Programme Costs,Families Group,FAMILY RIGHTS GROUP LTD,VCS,Funding to deliver DfE policies (excluding consultancy) paid to third parties via a service delivery contract,4000081044,103235
Department for Education,DEPARTMENT FOR EDUCATION,22/05/2012,DfE Programme Costs,Teachers Group,GOVERNMENT ACTUARYS DEPARTMENT GAD,Public Sector,Funding to deliver DfE policies (excluding consultancy) paid to third parties via a service delivery contract,4000081048,73809.24
Department for Education,DEPARTMENT FOR EDUCATION,22/05/2012,DfE Programme Costs,Free School Group,PKF UK LLP,Commercial,Funding to deliver DfE policies (excluding consultancy) paid to third parties via a service delivery contract,4000081067,34944
Department for Education,DEPARTMENT FOR EDUCATION,22/05/2012,DfE Programme Costs,Free School Group,PKF UK LLP,Commercial,Funding to deliver DfE policies (excluding consultancy) paid to third parties via a service delivery contract,4000081067,33277.5
Department for Education,DEPARTMENT FOR EDUCATION,22/05/2012,ICT,CHIEF INFORMATION OFFICER GROUP,CAPGEMINI UK PLC,Commercial,Costs related to the provision of IT services,4000081034,28371.25
Department for Education,DEPARTMENT FOR EDUCATION,22/05/2012,DfE Programme Costs,Free School Group,APPLEYARDS LTD,Commercial,Funding to deliver DfE policies (excluding consultancy) paid to third parties via a service delivery contract,4000081026,25545.8
Department for Education,DEPARTMENT FOR EDUCATION,22/05/2012,Current Grants,Academies Delivery Group,ARDLEY HILL ACADEMY,Public Sector,"Current grant paid to organisations including agencies, arms length bodies and educational establishments",4000081027,25000
Department for Education,DEPARTMENT FOR EDUCATION,22/05/2012,Current Grants,Academies Delivery Group,BARBARA PRIESTMAN SCHOOL,Public Sector,"Current grant paid to organisations including agencies, arms length bodies and educational establishments",4000081031,25000
Department for Education,DEPARTMENT FOR EDUCATION,22/05/2012,Current Grants,Academies Delivery Group,BAXTER COLLEGE,Public Sector,"Current grant paid to organisations including agencies, arms length bodies and educational establishments",4000081032,25000
Department for Education,DEPARTMENT FOR EDUCATION,22/05/2012,Current Grants,Academies Delivery Group,CASTLE DONNINGTON COMMUNITY COLLEGE,Public Sector,"Current grant paid to organisations including agencies, arms length bodies and educational establishments",4000081038,25000
Department for Education,DEPARTMENT FOR EDUCATION,22/05/2012,Current Grants,Academies Delivery Group,CHAFFORD HUNDRED PRIMARY SCHOOL,Public Sector,"Current grant paid to organisations including agencies, arms length bodies and educational establishments",4000081040,25000
Department for Education,DEPARTMENT FOR EDUCATION,22/05/2012,Current Grants,Academies Delivery Group,HERSDEN COMMUNITY PRIMARY SCHOOL,Public Sector,"Current grant paid to organisations including agencies, arms length bodies and educational establishments",4000081053,25000
Department for Education,DEPARTMENT FOR EDUCATION,22/05/2012,Current Grants,Academies Delivery Group,MOSLEY PRIMARY SCHOOL,Public Sector,"Current grant paid to organisations including agencies, arms length bodies and educational establishments",4000081064,25000
Department for Education,DEPARTMENT FOR EDUCATION,22/05/2012,Current Grants,Academies Delivery Group,ROSEACRE PRIMARY SCHOOL,Public Sector,"Current grant paid to organisations including agencies, arms length bodies and educational establishments",4000081070,25000
Department for Education,DEPARTMENT FOR EDUCATION,22/05/2012,Current Grants,Academies Delivery Group,SANDY UPPER SCHOOL,Public Sector,"Current grant paid to organisations including agencies, arms length bodies and educational establishments",4000081071,25000
Department for Education,DEPARTMENT FOR EDUCATION,22/05/2012,Current Grants,Academies Delivery Group,ST CHADS CE PRIMARY SCHOOL,Public Sector,"Current grant paid to organisations including agencies, arms length bodies and educational establishments",4000081072,25000
Department for Education,DEPARTMENT FOR EDUCATION,22/05/2012,Current Grants,Academies Delivery Group,ST TERESAS CATHOLIC PRIMARY SCHOOL,Public Sector,"Current grant paid to organisations including agencies, arms length bodies and educational establishments",4000081073,25000
Department for Education,DEPARTMENT FOR EDUCATION,22/05/2012,Current Grants,Academies Delivery Group,ST THOMAS OF CANTERBURY CATHOLIC PRIMARY SCHOOL,Public Sector,"Current grant paid to organisations including agencies, arms length bodies and educational establishments",4000081074,25000
Department for Education,DEPARTMENT FOR EDUCATION,22/05/2012,Current Grants,Academies Delivery Group,STURRY CE PRIMARY SCHOOL,Public Sector,"Current grant paid to organisations including agencies, arms length bodies and educational establishments",4000081075,25000
Department for Education,DEPARTMENT FOR EDUCATION,22/05/2012,Current Grants,Academies Delivery Group,SUNDON LOWER SCHOOL,Public Sector,"Current grant paid to organisations including agencies, arms length bodies and educational establishments",4000081076,25000
Department for Education,DEPARTMENT FOR EDUCATION,22/05/2012,Current Grants,Academies Delivery Group,THE KEMNAL ACADEMIES TRUST,Public Sector,"Current grant paid to organisations including agencies, arms length bodies and educational establishments",4000081078,25000
Department for Education,DEPARTMENT FOR EDUCATION,22/05/2012,Current Grants,Academies Delivery Group,THOMAS ESTLEY COMMUNITY COLLEGE,Public Sector,"Current grant paid to organisations including agencies, arms length bodies and educational establishments",4000081080,25000
Department for Education,DEPARTMENT FOR EDUCATION,22/05/2012,DfE Programme Costs,Free School Group,APPLEYARDS LTD,Commercial,Funding to deliver DfE policies (excluding consultancy) paid to third parties via a service delivery contract,4000081026,16797
Department for Education,DEPARTMENT FOR EDUCATION,23/05/2012,Capital Grants,Education Funding Group,HARRIS BOYS ACADEMY EAST DULWICH,Public Sector,Capital grant paid to a private sector organisation,4000081180,250000
Department for Education,DEPARTMENT FOR EDUCATION,23/05/2012,Current Grants,Families Group,FAMILY LIVES,VCS,Current grant to third sector organisation / not for profit organisation,4000081174,245536.66
Department for Education,DEPARTMENT FOR EDUCATION,23/05/2012,Current Grants,SCHOOL STANDARDS GROUP,MATHEMATICS IN EDUCATION & INDUSTRY,VCS,Current grant to third sector organisation / not for profit organisation,4000081184,234199
Department for Education,DEPARTMENT FOR EDUCATION,23/05/2012,Current Grants,Free School Group,BEDFORD COLLEGE,Public Sector,"Current grant paid to organisations including agencies, arms length bodies and educational establishments",4000081154,215264.4
Department for Education,DEPARTMENT FOR EDUCATION,23/05/2012,ICT,Children Young People and Families Improving Information Sharing and Management Group,LOGICA UK LTD,Commercial,Costs related to the provision of IT costs,4000081182,199062.19
Department for Education,DEPARTMENT FOR EDUCATION,23/05/2012,DfE Programme Costs,Children Young People and Families Early Years Extended Schools and Special Needs Group,CRIMINAL RECORDS BUREAU,Public Sector,Funding to deliver DfE policies (excluding consultancy) paid to third parties via a service delivery contract,4000081168,131208
Department for Education,DEPARTMENT FOR EDUCATION,23/05/2012,Current Grants,Academies Delivery Group,STROOD ACADEMY,Public Sector,"Current grant paid to organisations including agencies, arms length bodies and educational establishments",4000081204,122437.47
Department for Education,DEPARTMENT FOR EDUCATION,23/05/2012,DfE Programme Costs,Free School Group,PLACE GROUP LTD,Commercial,Funding to deliver DfE policies (excluding consultancy) paid to third parties via a service delivery contract,4000081196,78399.31
Department for Education,DEPARTMENT FOR EDUCATION,23/05/2012,DfE Programme Costs,Children Young People and Families Early Years Extended Schools and Special Needs Group,COUNCIL FOR DISABLED,VCS,Funding to deliver DfE policies (excluding consultancy) paid to third parties via a service delivery contract,4000081167,78176
Department for Education,DEPARTMENT FOR EDUCATION,23/05/2012,DfE Programme Costs,SCHOOL STANDARDS GROUP,NATIONAL SCIENCE LEARNING CENTRE,Public Sector,Funding to deliver DfE policies (excluding consultancy) paid to third parties via a service delivery contract,4000081188,68589.53
Department for Education,DEPARTMENT FOR EDUCATION,23/05/2012,Current Grants,Free School Group,ARK SCHOOLS,Public Sector,"Current grant paid to organisations including agencies, arms length bodies and educational establishments",4000081151,65120.56
Department for Education,DEPARTMENT FOR EDUCATION,23/05/2012,Current Grants,Academies Delivery Group,CANN HALL PRIMARY SCHOOL,Public Sector,"Current grant paid to organisations including agencies, arms length bodies and educational establishments",4000081158,65000
Department for Education,DEPARTMENT FOR EDUCATION,23/05/2012,Current Grants,Children Young People and Families Early Years Extended Schools and Special Needs Group,CONTINYOU  VCS,VCS,Current grant to third sector organisation / not for profit organisation,4000081166,55856.19
Department for Education,DEPARTMENT FOR EDUCATION,23/05/2012,DfE Programme Costs,Children Young People and Families Early Years Extended Schools and Special Needs Group,NDTI,VCS,Funding to deliver DfE policies (excluding consultancy) paid to third parties via a service delivery contract,4000081189,54810.3
Department for Education,DEPARTMENT FOR EDUCATION,23/05/2012,Current Grants,Academies Delivery Group,ARK SCHOOLS,Public Sector,"Current grant paid to organisations including agencies, arms length bodies and educational establishments",4000081151,38624.12
Department for Education,DEPARTMENT FOR EDUCATION,23/05/2012,ICT,"Strategic Analysis, Research and Policy Impact Group",SOFTWARE FOR DATA ANALYSIS LTD,Commercial,Costs related to the provision of IT services,4000081202,36804.25
Department for Education,DEPARTMENT FOR EDUCATION,23/05/2012,Current Grants,Free School Group,HACKNEY UTC,Public Sector,"Current grant paid to organisations including agencies, arms length bodies and educational establishments",4000081178,27723.03
Department for Education,DEPARTMENT FOR EDUCATION,23/05/2012,Current Grants,Academies Delivery Group,CARMOUNTSIDE PRIMARY SCHOOL,Public Sector,"Current grant paid to organisations including agencies, arms length bodies and educational establishments",4000081162,25000
Department for Education,DEPARTMENT FOR EDUCATION,23/05/2012,Current Grants,Academies Delivery Group,FERRYBRIDGE ROUNDHILL PRIMARY SCHOOL,Public Sector,"Current grant paid to organisations including agencies, arms length bodies and educational establishments",4000081176,25000
Department for Education,DEPARTMENT FOR EDUCATION,23/05/2012,Current Grants,Free School Group,GHYLLSIDE PRIMARY SCHOOL,Public Sector,"Current grant paid to organisations including agencies, arms length bodies and educational establishments",4000081177,25000
Department for Education,DEPARTMENT FOR EDUCATION,24/05/2012,Current Grants,Children Young People and Families Directorate Support Group,BIRMINGHAM CITY COUNCIL,Public Sector,Current grant paid to local authorities,4000081275,16280369
Department for Education,DEPARTMENT FOR EDUCATION,24/05/2012,Current Grants,Children Young People and Families Directorate Support Group,KENT COUNTY COUNCIL,Public Sector,Current grant paid to local authorities,4000081316,13748604
Department for Education,DEPARTMENT FOR EDUCATION,24/05/2012,Current Grants,Children Young People and Families Directorate Support Group,LANCASHIRE COUNTY COUNCIL,Public Sector,Current grant paid to local authorities,4000081320,12372640
Department for Education,DEPARTMENT FOR EDUCATION,24/05/2012,Current Grants,Children Young People and Families Directorate Support Group,ESSEX COUNTY COUNCIL,Public Sector,Current grant paid to local authorities,4000081307,12271719
Department for Education,DEPARTMENT FOR EDUCATION,24/05/2012,Current Grants,Children Young People and Families Directorate Support Group,HAMPSHIRE COUNTY COUNCIL,Public Sector,Current grant paid to local authorities,4000081311,10493169
Department for Education,DEPARTMENT FOR EDUCATION,24/05/2012,Current Grants,Children Young People and Families Directorate Support Group,HERTFORDSHIRE,Public Sector,Current grant paid to local authorities,4000081314,9237868
Department for Education,DEPARTMENT FOR EDUCATION,24/05/2012,Current Grants,Children Young People and Families Directorate Support Group,SURREY COUNTY COUNCIL,Public Sector,Current grant paid to local authorities,4000081401,8369615
Department for Education,DEPARTMENT FOR EDUCATION,24/05/2012,Current Grants,Children Young People and Families Directorate Support Group,LEEDS CITY COUNCIL,Public Sector,Current grant paid to local authorities,4000081321,8180878
Department for Education,DEPARTMENT FOR EDUCATION,24/05/2012,Current Grants,Children Young People and Families Directorate Support Group,NORFOLK COUNTY COUNCIL,Public Sector,Current grant paid to local authorities,4000081360,8092898
Department for Education,DEPARTMENT FOR EDUCATION,24/05/2012,Current Grants,Children Young People and Families Directorate Support Group,MANCHESTER CITY COUNCIL,Public Sector,Current grant paid to local authorities,4000081354,7844186
Department for Education,DEPARTMENT FOR EDUCATION,24/05/2012,Current Grants,Children Young People and Families Directorate Support Group,CITY OF BRADFORD METROPOLITAN DISTRICT COUNCIL,Public Sector,Current grant paid to local authorities,4000081290,7794156
Department for Education,DEPARTMENT FOR EDUCATION,24/05/2012,Current Grants,Children Young People and Families Directorate Support Group,NOTTINGHAMSHIRE COUNTY COUNCIL,Public Sector,Current grant paid to local authorities,4000081369,7765468
Department for Education,DEPARTMENT FOR EDUCATION,24/05/2012,Current Grants,Children Young People and Families Directorate Support Group,STAFFORDSHIRE COUNCIL,Public Sector,Current grant paid to local authorities,4000081395,7489654
Department for Education,DEPARTMENT FOR EDUCATION,24/05/2012,Current Grants,Children Young People and Families Directorate Support Group,DERBYSHIRE COUNTY COUNCIL,Public Sector,Current grant paid to local authorities,4000081299,7440222
Department for Education,DEPARTMENT FOR EDUCATION,24/05/2012,Current Grants,Children Young People and Families Directorate Support Group,NORTHAMPTONSHIRE COUNTY COUNCIL,Public Sector,Current grant paid to local authorities,4000081366,7125975
Department for Education,DEPARTMENT FOR EDUCATION,24/05/2012,Current Grants,Children Young People and Families Directorate Support Group,LIVERPOOL CITY COUNCIL,Public Sector,Current grant paid to local authorities,4000081324,7023810
Department for Education,DEPARTMENT FOR EDUCATION,24/05/2012,Current Grants,Children Young People and Families Directorate Support Group,LINCOLNSHIRE COUNTY COUNCIL,Public Sector,Current grant paid to local authorities,4000081525,6635992
Department for Education,DEPARTMENT FOR EDUCATION,24/05/2012,Current Grants,Children Young People and Families Directorate Support Group,SUFFOLK COUNTY COUNCIL,Public Sector,Current grant paid to local authorities,4000081399,6522013
Department for Education,DEPARTMENT FOR EDUCATION,24/05/2012,Current Grants,Children Young People and Families Directorate Support Group,DEVON COUNTY COUNCIL,Public Sector,Current grant paid to local authorities,4000081300,6330187
Department for Education,DEPARTMENT FOR EDUCATION,24/05/2012,Current Grants,Children Young People and Families Directorate Support Group,SHEFFIELD CITY COUNCIL,Public Sector,Current grant paid to local authorities,4000081385,6297661
Department for Education,DEPARTMENT FOR EDUCATION,24/05/2012,Current Grants,Children Young People and Families Directorate Support Group,WEST SUSSEX COUNTY COUNCIL,Public Sector,Current grant paid to local authorities,4000081416,6289655
Department for Education,DEPARTMENT FOR EDUCATION,24/05/2012,Current Grants,Children Young People and Families Directorate Support Group,DURHAM COUNTY COUNCIL,Public Sector,Current grant paid to local authorities,4000081304,6196999
Department for Education,DEPARTMENT FOR EDUCATION,24/05/2012,Current Grants,Children Young People and Families Directorate Support Group,OXFORDSHIRE COUNTY COUNCIL,Public Sector,Current grant paid to local authorities,4000081371,5861548
Department for Education,DEPARTMENT FOR EDUCATION,24/05/2012,Current Grants,Children Young People and Families Directorate Support Group,LONDON BOROUGH OF NEWHAM,Public Sector,Current grant paid to local authorities,4000081345,5849246
Department for Education,DEPARTMENT FOR EDUCATION,24/05/2012,Current Grants,Children Young People and Families Directorate Support Group,KIRKLEES COUNCIL,Public Sector,Current grant paid to local authorities,4000081318,5349076
Department for Education,DEPARTMENT FOR EDUCATION,24/05/2012,Current Grants,Children Young People and Families Directorate Support Group,CORNWALL COUNCIL,Public Sector,Current grant paid to local authorities,4000081292,5332556
Department for Education,DEPARTMENT FOR EDUCATION,24/05/2012,Current Grants,Children Young People and Families Directorate Support Group,LONDON BOROUGH OF TOWER HAMLETS COUNCIL,Public Sector,Current grant paid to local authorities,4000081350,5322740
Department for Education,DEPARTMENT FOR EDUCATION,24/05/2012,Current Grants,Children Young People and Families Directorate Support Group,CAMBRIDGESHIRE COUNTY COUNCIL,Public Sector,Current grant paid to local authorities,4000081286,5279984
Department for Education,DEPARTMENT FOR EDUCATION,24/05/2012,Current Grants,Children Young People and Families Directorate Support Group,GLOUCESTERSHIRE COUNTY COUNCIL,Public Sector,Current grant paid to local authorities,4000081309,5258373
Department for Education,DEPARTMENT FOR EDUCATION,24/05/2012,Current Grants,Children Young People and Families Directorate Support Group,THE LONDON BOROUGH OF HACKNEY,Public Sector,Current grant paid to local authorities,4000081405,5237346
Department for Education,DEPARTMENT FOR EDUCATION,24/05/2012,Current Grants,Children Young People and Families Directorate Support Group,WORCESTERSHIRE COUNTY COUNCIL,Public Sector,Current grant paid to local authorities,4000081421,5166164
Department for Education,DEPARTMENT FOR EDUCATION,24/05/2012,Current Grants,Children Young People and Families Directorate Support Group,LONDON BOROUGH OF LAMBETH COUNCIL,Public Sector,Current grant paid to local authorities,4000081342,5134874
Department for Education,DEPARTMENT FOR EDUCATION,24/05/2012,Current Grants,Children Young People and Families Directorate Support Group,LEICESTERSHIRE COUNTY COUNCIL,Public Sector,Current grant paid to local authorities,4000081323,5122646
Department for Education,DEPARTMENT FOR EDUCATION,24/05/2012,Current Grants,Children Young People and Families Directorate Support Group,NORTH YORKSHIRE COUNTY COUNCIL,Public Sector,Current grant paid to local authorities,4000081365,5121904
Department for Education,DEPARTMENT FOR EDUCATION,24/05/2012,Current Grants,Children Young People and Families Directorate Support Group,LONDON BOROUGH OF SOUTHWARK COUNCIL,Public Sector,Current grant paid to local authorities,4000081348,5116661
Department for Education,DEPARTMENT FOR EDUCATION,24/05/2012,Current Grants,Children Young People and Families Directorate Support Group,CUMBRIA COUNTY COUNCIL,Public Sector,Current grant paid to local authorities,4000081296,5006023
Department for Education,DEPARTMENT FOR EDUCATION,24/05/2012,Current Grants,Children Young People and Families Directorate Support Group,BRISTOL CITY COUNCIL,Public Sector,Current grant paid to local authorities,4000081282,4942778
Department for Education,DEPARTMENT FOR EDUCATION,24/05/2012,Current Grants,Children Young People and Families Directorate Support Group,SOMERSET COUNTY COUNCIL,Public Sector,Current grant paid to local authorities,4000081389,4875449
Department for Education,DEPARTMENT FOR EDUCATION,24/05/2012,Current Grants,Children Young People and Families Directorate Support Group,LEICESTER CITY COUNCIL,Public Sector,Current grant paid to local authorities,4000081322,4840181
Department for Education,DEPARTMENT FOR EDUCATION,24/05/2012,Current Grants,Children Young People and Families Directorate Support Group,EAST SUSSEX COUNTY COUNCIL,Public Sector,Current grant paid to local authorities,4000081306,4827693
Department for Education,DEPARTMENT FOR EDUCATION,24/05/2012,Current Grants,Children Young People and Families Directorate Support Group,WARWICKSHIRE COUNTY COUNCIL,Public Sector,Current grant paid to local authorities,4000081414,4757031
Department for Education,DEPARTMENT FOR EDUCATION,24/05/2012,Current Grants,Children Young People and Families Directorate Support Group,SANDWELL MBC,Public Sector,Current grant paid to local authorities,4000081383,4717748
Department for Education,DEPARTMENT FOR EDUCATION,24/05/2012,Current Grants,Children Young People and Families Directorate Support Group,LONDON BOROUGH OF LEWISHAM,Public Sector,Current grant paid to local authorities,4000081343,4677625
Department for Education,DEPARTMENT FOR EDUCATION,24/05/2012,Current Grants,Children Young People and Families Directorate Support Group,NOTTINGHAM CITY COUNCIL,Public Sector,Current grant paid to local authorities,4000081368,4448851
Department for Education,DEPARTMENT FOR EDUCATION,24/05/2012,Current Grants,Children Young People and Families Directorate Support Group,BUCKINGHAMSHIRE COUNTY COUNCIL,Public Sector,Current grant paid to local authorities,4000081283,4423313
Department for Education,DEPARTMENT FOR EDUCATION,24/05/2012,Current Grants,Children Young People and Families Directorate Support Group,LONDON BOROUGH OF GREENWICH,Public Sector,Current grant paid to local authorities,4000081334,4344872
Department for Education,DEPARTMENT FOR EDUCATION,24/05/2012,Current Grants,Children Young People and Families Directorate Support Group,LONDON BOROUGH OF CROYDON COUNCIL,Public Sector,Current grant paid to local authorities,4000081331,4320315
Department for Education,DEPARTMENT FOR EDUCATION,24/05/2012,Current Grants,Children Young People and Families Directorate Support Group,LONDON BOROUGH OF EALING COUNCIL,Public Sector,Current grant paid to local authorities,4000081332,4232688
Department for Education,DEPARTMENT FOR EDUCATION,24/05/2012,Current Grants,Children Young People and Families Directorate Support Group,LONDON BOROUGH OF HARINGEY,Public Sector,Current grant paid to local authorities,4000081336,4111035
Department for Education,DEPARTMENT FOR EDUCATION,24/05/2012,Current Grants,Children Young People and Families Directorate Support Group,SUNDERLAND CITY COUNCIL,Public Sector,Current grant paid to local authorities,4000081400,4065832
Department for Education,DEPARTMENT FOR EDUCATION,24/05/2012,Current Grants,Children Young People and Families Directorate Support Group,WILTSHIRE COUNCIL,Public Sector,Current grant paid to local authorities,4000081418,4019534
Department for Education,DEPARTMENT FOR EDUCATION,24/05/2012,Current Grants,Children Young People and Families Directorate Support Group,LONDON BOROUGH OF ENFIELD COUNCIL,Public Sector,Current grant paid to local authorities,4000081333,3959401
Department for Education,DEPARTMENT FOR EDUCATION,24/05/2012,Current Grants,Children Young People and Families Directorate Support Group,METROPOLITAN BOROUGH OF WIRRAL,Public Sector,Current grant paid to local authorities,4000081356,3926148
Department for Education,DEPARTMENT FOR EDUCATION,24/05/2012,Current Grants,Children Young People and Families Directorate Support Group,COVENTRY CITY COUNCIL,Public Sector,Current grant paid to local authorities,4000081295,3916886
Department for Education,DEPARTMENT FOR EDUCATION,24/05/2012,Current Grants,Children Young People and Families Directorate Support Group,DONCASTER MBC,Public Sector,Current grant paid to local authorities,4000081301,3909881
Department for Education,DEPARTMENT FOR EDUCATION,24/05/2012,Current Grants,Children Young People and Families Directorate Support Group,BOLTON MBC,Public Sector,Current grant paid to local authorities,4000081278,3870016
Department for Education,DEPARTMENT FOR EDUCATION,24/05/2012,Current Grants,Children Young People and Families Directorate Support Group,KINGSTON UPON HULL COUNCIL,Public Sector,Current grant paid to local authorities,4000081317,3862687
Department for Education,DEPARTMENT FOR EDUCATION,24/05/2012,Current Grants,Children Young People and Families Directorate Support Group,WALSALL MBC,Public Sector,Current grant paid to local authorities,4000081412,3846735
Department for Education,DEPARTMENT FOR EDUCATION,24/05/2012,Current Grants,Children Young People and Families Directorate Support Group,OLDHAM MBC,Public Sector,Current grant paid to local authorities,4000081370,3840146
Department for Education,DEPARTMENT FOR EDUCATION,24/05/2012,Current Grants,Children Young People and Families Directorate Support Group,WAKEFIELD MDC,Public Sector,Current grant paid to local authorities,4000081411,3807916
Department for Education,DEPARTMENT FOR EDUCATION,24/05/2012,Current Grants,Children Young People and Families Directorate Support Group,LONDON BOROUGH OF BRENT,Public Sector,Current grant paid to local authorities,4000081328,3778430
Department for Education,DEPARTMENT FOR EDUCATION,24/05/2012,Current Grants,Children Young People and Families Directorate Support Group,LONDON BOROUGH OF WALTHAM FOREST COUNCIL,Public Sector,Current grant paid to local authorities,4000081351,3778037
Department for Education,DEPARTMENT FOR EDUCATION,24/05/2012,Current Grants,Children Young People and Families Directorate Support Group,NEWCASTLE CITY COUNCIL,Public Sector,Current grant paid to local authorities,4000081359,3740407
Department for Education,DEPARTMENT FOR EDUCATION,24/05/2012,Current Grants,Children Young People and Families Directorate Support Group,LONDON BOROUGH OF ISLINGTON COUNCIL,Public Sector,Current grant paid to local authorities,4000081341,3675117
Department for Education,DEPARTMENT FOR EDUCATION,24/05/2012,Current Grants,Children Young People and Families Directorate Support Group,WIGAN MBC,Public Sector,Current grant paid to local authorities,4000081417,3635326
Department for Education,DEPARTMENT FOR EDUCATION,24/05/2012,Current Grants,Children Young People and Families Directorate Support Group,LONDON BOROUGH OF BARNET COUNCIL,Public Sector,Current grant paid to local authorities,4000081326,3624847
Department for Education,DEPARTMENT FOR EDUCATION,24/05/2012,Current Grants,Children Young People and Families Directorate Support Group,STOKE ON TRENT CITY COUNCIL,Public Sector,Current grant paid to local authorities,4000081398,3597663
Department for Education,DEPARTMENT FOR EDUCATION,24/05/2012,Current Grants,Children Young People and Families Directorate Support Group,LONDON BOROUGH OF WANDSWORTH COUNCIL,Public Sector,Current grant paid to local authorities,4000081352,3544867
Department for Education,DEPARTMENT FOR EDUCATION,24/05/2012,Current Grants,Children Young People and Families Directorate Support Group,LONDON BOROUGH OF BARKING & DAGENHAM COUNCIL,Public Sector,Current grant paid to local authorities,4000081325,3483093
Department for Education,DEPARTMENT FOR EDUCATION,24/05/2012,Current Grants,Children Young People and Families Directorate Support Group,WOLVERHAMPTON CITY COUNCIL,Public Sector,Current grant paid to local authorities,4000081420,3438122
Department for Education,DEPARTMENT FOR EDUCATION,24/05/2012,Current Grants,Children Young People and Families Directorate Support Group,SALFORD CITY COUNCIL,Public Sector,Current grant paid to local authorities,4000081382,3413179
Department for Education,DEPARTMENT FOR EDUCATION,24/05/2012,Current Grants,Children Young People and Families Directorate Support Group,LONDON BOROUGH OF CAMDEN,Public Sector,Current grant paid to local authorities,4000081330,3390386
Department for Education,DEPARTMENT FOR EDUCATION,24/05/2012,Current Grants,Children Young People and Families Directorate Support Group,ROCHDALE MBC,Public Sector,Current grant paid to local authorities,4000081378,3375371
Department for Education,DEPARTMENT FOR EDUCATION,24/05/2012,Current Grants,Children Young People and Families Directorate Support Group,DUDLEY MBC,Public Sector,Current grant paid to local authorities,4000081303,3293047
Department for Education,DEPARTMENT FOR EDUCATION,24/05/2012,Current Grants,Children Young People and Families Directorate Support Group,CHESHIRE WEST & CHESTER COUNCIL,Public Sector,Current grant paid to local authorities,4000081289,3240118
Department for Education,DEPARTMENT FOR EDUCATION,24/05/2012,Current Grants,Children Young People and Families Directorate Support Group,NORTHUMBERLAND COUNTY COUNCIL,Public Sector,Current grant paid to local authorities,4000081367,3237922
Department for Education,DEPARTMENT FOR EDUCATION,24/05/2012,Current Grants,Children Young People and Families Directorate Support Group,CHESHIRE EAST COUNCIL,Public Sector,Current grant paid to local authorities,4000081288,3227054
Department for Education,DEPARTMENT FOR EDUCATION,24/05/2012,Current Grants,Children Young People and Families Directorate Support Group,ROTHERHAM MBC,Public Sector,Current grant paid to local authorities,4000081379,3217592
Department for Education,DEPARTMENT FOR EDUCATION,24/05/2012,Current Grants,Children Young People and Families Directorate Support Group,LONDON BOROUGH OF HOUNSLOW COUNCIL,Public Sector,Current grant paid to local authorities,4000081340,3156814
Department for Education,DEPARTMENT FOR EDUCATION,24/05/2012,Current Grants,Children Young People and Families Directorate Support Group,DORSET COUNTY COUNCIL,Public Sector,Current grant paid to local authorities,4000081302,3095755
Department for Education,DEPARTMENT FOR EDUCATION,24/05/2012,Current Grants,Children Young People and Families Directorate Support Group,BLACKBURN WITH DARWEN BOROUGH COUNCIL,Public Sector,Current grant paid to local authorities,4000081276,3072189
Department for Education,DEPARTMENT FOR EDUCATION,24/05/2012,Current Grants,Children Young People and Families Directorate Support Group,DERBY CITY COUNCIL,Public Sector,Current grant paid to local authorities,4000081298,3071055
Department for Education,DEPARTMENT FOR EDUCATION,24/05/2012,Current Grants,Children Young People and Families Directorate Support Group,TAMESIDE MBC,Public Sector,Current grant paid to local authorities,4000081403,3048256
Department for Education,DEPARTMENT FOR EDUCATION,24/05/2012,Current Grants,Children Young People and Families Directorate Support Group,PLYMOUTH CITY COUNCIL,Public Sector,Current grant paid to local authorities,4000081373,3004559
Department for Education,DEPARTMENT FOR EDUCATION,24/05/2012,Current Grants,Children Young People and Families Directorate Support Group,LONDON BOROUGH OF BROMLEY COUNCIL,Public Sector,Current grant paid to local authorities,4000081329,3002501
Department for Education,DEPARTMENT FOR EDUCATION,24/05/2012,Current Grants,Children Young People and Families Directorate Support Group,LONDON BOROUGH OF HILLINGDON  COUNCIL,Public Sector,Current grant paid to local authorities,4000081339,2983276
Department for Education,DEPARTMENT FOR EDUCATION,24/05/2012,Current Grants,Children Young People and Families Directorate Support Group,LUTON BOROUGH COUNCIL,Public Sector,Current grant paid to local authorities,4000081353,2977781
Department for Education,DEPARTMENT FOR EDUCATION,24/05/2012,Current Grants,Children Young People and Families Directorate Support Group,BARNSLEY MBC,Public Sector,Current grant paid to local authorities,4000081272,2961667
Department for Education,DEPARTMENT FOR EDUCATION,24/05/2012,Current Grants,Children Young People and Families Directorate Support Group,SEFTON COUNCIL,Public Sector,Current grant paid to local authorities,4000081384,2948960
Department for Education,DEPARTMENT FOR EDUCATION,24/05/2012,Current Grants,Children Young People and Families Directorate Support Group,KNOWSLEY MBC,Public Sector,Current grant paid to local authorities,4000081319,2863021
Department for Education,DEPARTMENT FOR EDUCATION,24/05/2012,Current Grants,Children Young People and Families Directorate Support Group,CITY OF WESTMINSTER,Public Sector,Current grant paid to local authorities,4000081291,2860967
Department for Education,DEPARTMENT FOR EDUCATION,24/05/2012,Current Grants,Children Young People and Families Directorate Support Group,STOCKPORT MBC,Public Sector,Current grant paid to local authorities,4000081396,2837626
Department for Education,DEPARTMENT FOR EDUCATION,24/05/2012,Current Grants,Children Young People and Families Directorate Support Group,MEDWAY COUNCIL,Public Sector,Current grant paid to local authorities,4000081355,2797683
Department for Education,DEPARTMENT FOR EDUCATION,24/05/2012,Current Grants,Children Young People and Families Directorate Support Group,EAST RIDING OF YORKSHIRE,Public Sector,Current grant paid to local authorities,4000081305,2796411
Department for Education,DEPARTMENT FOR EDUCATION,24/05/2012,Current Grants,Children Young People and Families Directorate Support Group,MILTON KEYNES COUNCIL,Public Sector,Current grant paid to local authorities,4000081358,2788873
Department for Education,DEPARTMENT FOR EDUCATION,24/05/2012,Current Grants,Children Young People and Families Directorate Support Group,BRIGHTON & HOVE CITY COUNCIL,Public Sector,Current grant paid to local authorities,4000081281,2782304
Department for Education,DEPARTMENT FOR EDUCATION,24/05/2012,Current Grants,Children Young People and Families Directorate Support Group,LONDON BOROUGH OF REDBRIDGE,Public Sector,Current grant paid to local authorities,4000081346,2757297
Department for Education,DEPARTMENT FOR EDUCATION,24/05/2012,Current Grants,Children Young People and Families Directorate Support Group,SOUTHAMPTON CITY COUNCIL,Public Sector,Current grant paid to local authorities,4000081392,2743870
Department for Education,DEPARTMENT FOR EDUCATION,24/05/2012,Current Grants,Children Young People and Families Directorate Support Group,SHROPSHIRE COUNCIL,Public Sector,Current grant paid to local authorities,4000081386,2704097
Department for Education,DEPARTMENT FOR EDUCATION,24/05/2012,Current Grants,Children Young People and Families Directorate Support Group,CALDERDALE MBC,Public Sector,Current grant paid to local authorities,4000081285,2683959
Department for Education,DEPARTMENT FOR EDUCATION,24/05/2012,Current Grants,Children Young People and Families Directorate Support Group,MIDDLESBROUGH COUNCIL,Public Sector,Current grant paid to local authorities,4000081357,2671494
Department for Education,DEPARTMENT FOR EDUCATION,24/05/2012,Current Grants,Children Young People and Families Directorate Support Group,GATESHEAD MBC,Public Sector,Current grant paid to local authorities,4000081308,2628024
Department for Education,DEPARTMENT FOR EDUCATION,24/05/2012,Current Grants,Children Young People and Families Directorate Support Group,ST HELENS MBC,Public Sector,Current grant paid to local authorities,4000081394,2589344
Department for Education,DEPARTMENT FOR EDUCATION,24/05/2012,Current Grants,Children Young People and Families Directorate Support Group,PETERBOROUGH CITY COUNCIL,Public Sector,Current grant paid to local authorities,4000081372,2577835
Department for Education,DEPARTMENT FOR EDUCATION,24/05/2012,Current Grants,Children Young People and Families Directorate Support Group,PORTSMOUTH CITY COUNCIL,Public Sector,Current grant paid to local authorities,4000081375,2470482
Department for Education,DEPARTMENT FOR EDUCATION,24/05/2012,Current Grants,Children Young People and Families Directorate Support Group,LONDON BOROUGH OF HAMMERSMITH & FULHAM COUNCIL,Public Sector,Current grant paid to local authorities,4000081335,2468499
Department for Education,DEPARTMENT FOR EDUCATION,24/05/2012,Current Grants,Children Young People and Families Directorate Support Group,SOUTH TYNESIDE,Public Sector,Current grant paid to local authorities,4000081391,2465449
Department for Education,DEPARTMENT FOR EDUCATION,24/05/2012,Current Grants,Children Young People and Families Directorate Support Group,NORTH EAST LINCOLNSHIRE COUNCIL,Public Sector,Current grant paid to local authorities,4000081361,2448756
Department for Education,DEPARTMENT FOR EDUCATION,24/05/2012,Current Grants,Children Young People and Families Directorate Support Group,CENTRAL BEDFORDSHIRE COUNCIL,Public Sector,Current grant paid to local authorities,4000081287,2442578
Department for Education,DEPARTMENT FOR EDUCATION,24/05/2012,Current Grants,Children Young People and Families Directorate Support Group,STOCKTON ON TEES,Public Sector,Current grant paid to local authorities,4000081397,2438011
Department for Education,DEPARTMENT FOR EDUCATION,24/05/2012,Current Grants,Children Young People and Families Directorate Support Group,LONDON BOROUGH OF BEXLEY COUNCIL,Public Sector,Current grant paid to local authorities,4000081327,2414805
Department for Education,DEPARTMENT FOR EDUCATION,24/05/2012,Current Grants,Children Young People and Families Directorate Support Group,TRAFFORD MB COUNCIL,Public Sector,Current grant paid to local authorities,4000081410,2321989
Department for Education,DEPARTMENT FOR EDUCATION,24/05/2012,Current Grants,Children Young People and Families Directorate Support Group,HALTON BOROUGH COUNCIL,Public Sector,Current grant paid to local authorities,4000081310,2297308
Department for Education,DEPARTMENT FOR EDUCATION,24/05/2012,Current Grants,Children Young People and Families Directorate Support Group,SOLIHULL MBC,Public Sector,Current grant paid to local authorities,4000081388,2283260
Department for Education,DEPARTMENT FOR EDUCATION,24/05/2012,Current Grants,Children Young People and Families Directorate Support Group,NORTH TYNESIDE,Public Sector,Current grant paid to local authorities,4000081364,2261800
Department for Education,DEPARTMENT FOR EDUCATION,24/05/2012,Current Grants,Children Young People and Families Directorate Support Group,BLACKPOOL BOROUGH COUNCIL,Public Sector,Current grant paid to local authorities,4000081277,2242672
Department for Education,DEPARTMENT FOR EDUCATION,24/05/2012,Current Grants,Children Young People and Families Directorate Support Group,LONDON BOROUGH OF HAVERING COUNCIL,Public Sector,Current grant paid to local authorities,4000081338,2233575
Department for Education,DEPARTMENT FOR EDUCATION,24/05/2012,Current Grants,Children Young People and Families Directorate Support Group,REDCAR & CLEVELAND BOROUGH COUNCIL,Public Sector,Current grant paid to local authorities,4000081377,2224049
Department for Education,DEPARTMENT FOR EDUCATION,24/05/2012,Current Grants,Children Young People and Families Directorate Support Group,SOUTH GLOUCEST,Public Sector,Current grant paid to local authorities,4000081390,2207014
Department for Education,DEPARTMENT FOR EDUCATION,24/05/2012,Current Grants,Children Young People and Families Directorate Support Group,SWINDON BOROUGH COUNCIL,Public Sector,Current grant paid to local authorities,4000081402,2176670
Department for Education,DEPARTMENT FOR EDUCATION,24/05/2012,Current Grants,Children Young People and Families Directorate Support Group,WARRINGTON BOROUGH COUNCIL,Public Sector,Current grant paid to local authorities,4000081413,2170217
Department for Education,DEPARTMENT FOR EDUCATION,24/05/2012,Current Grants,Children Young People and Families Directorate Support Group,LONDON BOROUGH OF SUTTON,Public Sector,Current grant paid to local authorities,4000081349,2158453
Department for Education,DEPARTMENT FOR EDUCATION,24/05/2012,Current Grants,Children Young People and Families Directorate Support Group,LONDON BOROUGH OF HARROW COUNCIL,Public Sector,Current grant paid to local authorities,4000081337,2135976
Department for Education,DEPARTMENT FOR EDUCATION,24/05/2012,Current Grants,Children Young People and Families Directorate Support Group,LONDON BOROUGH OF MERTON COUNCIL,Public Sector,Current grant paid to local authorities,4000081344,2095621
Department for Education,DEPARTMENT FOR EDUCATION,24/05/2012,Current Grants,Children Young People and Families Directorate Support Group,BURY MBC,Public Sector,Current grant paid to local authorities,4000081284,2092484
Department for Education,DEPARTMENT FOR EDUCATION,24/05/2012,Current Grants,Children Young People and Families Directorate Support Group,TELFORD & WREKIN COUNCIL,Public Sector,Current grant paid to local authorities,4000081404,2073108
Department for Education,DEPARTMENT FOR EDUCATION,24/05/2012,Current Grants,Children Young People and Families Directorate Support Group,THURROCK COUNCIL,Public Sector,Current grant paid to local authorities,4000081408,2014241
Department for Education,DEPARTMENT FOR EDUCATION,24/05/2012,Current Grants,Children Young People and Families Directorate Support Group,SOUTHEND ON SEA BOROUGH COUNCIL,Public Sector,Current grant paid to local authorities,4000081393,2013922
Department for Education,DEPARTMENT FOR EDUCATION,24/05/2012,Current Grants,Children Young People and Families Directorate Support Group,SLOUGH BOROUGH COUNCIL,Public Sector,Current grant paid to local authorities,4000081387,1955229
Department for Education,DEPARTMENT FOR EDUCATION,24/05/2012,Current Grants,Children Young People and Families Directorate Support Group,NORTH LINCOLNSHIRE COUNCIL,Public Sector,Current grant paid to local authorities,4000081362,1898528
Department for Education,DEPARTMENT FOR EDUCATION,24/05/2012,Current Grants,Children Young People and Families Directorate Support Group,READING BOROUGH COUNCIL,Public Sector,Current grant paid to local authorities,4000081376,1861391
Department for Education,DEPARTMENT FOR EDUCATION,24/05/2012,Current Grants,Children Young People and Families Directorate Support Group,NORTH SOMERSET COUNCIL,Public Sector,Current grant paid to local authorities,4000081363,1856900
Department for Education,DEPARTMENT FOR EDUCATION,24/05/2012,Current Grants,Children Young People and Families Directorate Support Group,THE ROYAL BOROUGH OF KENSINGTON & CHELSEA COUNCIL,Public Sector,Current grant paid to local authorities,4000081406,1847911
Department for Education,DEPARTMENT FOR EDUCATION,24/05/2012,Current Grants,Children Young People and Families Directorate Support Group,HARTLEPOOL BOROUGH COUNCIL,Public Sector,Current grant paid to local authorities,4000081312,1796050
Department for Education,DEPARTMENT FOR EDUCATION,24/05/2012,Current Grants,Children Young People and Families Directorate Support Group,HEREFORDSHIRE COUNCIL,Public Sector,Current grant paid to local authorities,4000081313,1774282
Department for Education,DEPARTMENT FOR EDUCATION,24/05/2012,Current Grants,Children Young People and Families Directorate Support Group,BOURNEMOUTH BOROUGH COUNCIL,Public Sector,Current grant paid to local authorities,4000081279,1757269
Department for Education,DEPARTMENT FOR EDUCATION,24/05/2012,Current Grants,Children Young People and Families Directorate Support Group,BEDFORD BOROUGH COUNCIL,Public Sector,Current grant paid to local authorities,4000081274,1748873
Department for Education,DEPARTMENT FOR EDUCATION,24/05/2012,Current Grants,Children Young People and Families Directorate Support Group,YORK CITY COUNCIL,Public Sector,Current grant paid to local authorities,4000081422,1681869
Department for Education,DEPARTMENT FOR EDUCATION,24/05/2012,Current Grants,Children Young People and Families Directorate Support Group,LONDON BOROUGH OF RICHMOND UPON THAMES,Public Sector,Current grant paid to local authorities,4000081347,1641013
Department for Education,DEPARTMENT FOR EDUCATION,24/05/2012,Current Grants,Children Young People and Families Directorate Support Group,BATH & NORTH EAST SOMERSET COUNCIL,Public Sector,Current grant paid to local authorities,4000081273,1575535
Department for Education,DEPARTMENT FOR EDUCATION,24/05/2012,Current Grants,Children Young People and Families Directorate Support Group,TORBAY COUNCIL,Public Sector,Current grant paid to local authorities,4000081409,1564851
Department for Education,DEPARTMENT FOR EDUCATION,24/05/2012,Current Grants,Children Young People and Families Directorate Support Group,WEST BERKSHIRE COUNCIL,Public Sector,Current grant paid to local authorities,4000081415,1494956
Department for Education,DEPARTMENT FOR EDUCATION,24/05/2012,Current Grants,Children Young People and Families Directorate Support Group,DARLINGTON BOROUGH COUNCIL,Public Sector,Current grant paid to local authorities,4000081297,1442324
Department for Education,DEPARTMENT FOR EDUCATION,24/05/2012,Current Grants,Children Young People and Families Directorate Support Group,ISLE OF WIGHT COUNCIL,Public Sector,Current grant paid to local authorities,4000081315,1402862
Department for Education,DEPARTMENT FOR EDUCATION,24/05/2012,Current Grants,Children Young People and Families Directorate Support Group,ROYAL BOROUGH OF KINGSTON UPON THAMES COUNCIL,Public Sector,Current grant paid to local authorities,4000081380,1400859
Department for Education,DEPARTMENT FOR EDUCATION,24/05/2012,Current Grants,Children Young People and Families Directorate Support Group,THE ROYAL BOROUGH OF WINDSOR & MAIDENHEAD,Public Sector,Current grant paid to local authorities,4000081407,1329835
Department for Education,DEPARTMENT FOR EDUCATION,24/05/2012,Current Grants,Children Young People and Families Directorate Support Group,WOKINGHAM BOROUGH COUNCIL,Public Sector,Current grant paid to local authorities,4000081419,1327175
Department for Education,DEPARTMENT FOR EDUCATION,24/05/2012,Current Grants,Children Young People and Families Directorate Support Group,POOLE BOROUGH COUNCIL,Public Sector,Current grant paid to local authorities,4000081374,1301257
Department for Education,DEPARTMENT FOR EDUCATION,24/05/2012,Current Grants,Children Young People and Families Directorate Support Group,BRACKNELL FOREST BOROUGH COUNCIL,Public Sector,Current grant paid to local authorities,4000081280,1173297
Department for Education,DEPARTMENT FOR EDUCATION,24/05/2012,Current Grants to Other Government Departments,PARTICIPATION AND VOCATIONAL EDUCATION GROUP,DEPARTMENT FOR BUSINESS INNOVATION & SKILLS,Public Sector,Funding to other government departments for DfE's contribution to jointly funded programmes ,2000598,916830
Department for Education,DEPARTMENT FOR EDUCATION,24/05/2012,Current Grants,Children Young People and Families Directorate Support Group,RUTLAND COUNTY COUNCIL,Public Sector,Current grant paid to local authorities,4000081381,465249
Department for Education,DEPARTMENT FOR EDUCATION,24/05/2012,ICT,CHIEF INFORMATION OFFICER GROUP,CAPGEMINI UK PLC,Commercial,Capital licences and Intangible work in progress,4000081447,377093.64
Department for Education,DEPARTMENT FOR EDUCATION,24/05/2012,Current Grants,Children Young People and Families Directorate Support Group,CORPORATION OF LONDON,Public Sector,Current grant paid to local authorities,4000081293,281195
Department for Education,DEPARTMENT FOR EDUCATION,24/05/2012,Current Grants,Families Group,CAFCASS,Public Sector,"Current grant paid to organisations including agencies, arms length bodies and educational establishments",4000081445,266077.98
Department for Education,DEPARTMENT FOR EDUCATION,24/05/2012,Current Grants,Children Young People and Families Directorate Support Group,COUNCIL OF THE ISLES OF SCILLY,Public Sector,Current grant paid to local authorities,4000081294,164529
Department for Education,DEPARTMENT FOR EDUCATION,24/05/2012,DfE Programme Costs,Children Young People and Families Safeguarding Group,CAPGEMINI UK PLC,Commercial,Funding to deliver DfE policies (excluding consultancy) paid to third parties via a service delivery contract,4000081447,138495.6
Department for Education,DEPARTMENT FOR EDUCATION,24/05/2012,Current Grants,Supporting Children and Young People Group,UK YOUTH,VCS,Current grant to third sector organisation / not for profit organisation,4000081608,86667.41
Department for Education,DEPARTMENT FOR EDUCATION,24/05/2012,ICT,CHIEF INFORMATION OFFICER GROUP,CAPGEMINI UK PLC,Commercial,Costs related to the provision of IT services,4000081447,54037.42
Department for Education,DEPARTMENT FOR EDUCATION,24/05/2012,Current Grants,Children Young People and Families Early Years Extended Schools and Special Needs Group,OLDHAM MBC,Public Sector,Current grant paid to local authorities,4000081370,47500
Department for Education,DEPARTMENT FOR EDUCATION,24/05/2012,Current Grants,Children Young People and Families Early Years Extended Schools and Special Needs Group,SOUTHAMPTON CITY COUNCIL,Public Sector,Current grant paid to local authorities,4000081392,43500
Department for Education,DEPARTMENT FOR EDUCATION,24/05/2012,Current Grants,Children Young People and Families Early Years Extended Schools and Special Needs Group,HERTFORDSHIRE,Public Sector,Current grant paid to local authorities,4000081314,42750
Department for Education,DEPARTMENT FOR EDUCATION,24/05/2012,ICT,CHIEF INFORMATION OFFICER GROUP,SPECIALIST COMPUTER CENTRES PLC,Commercial,Costs related to the provision of IT costs,4000081583,42290.4
Department for Education,DEPARTMENT FOR EDUCATION,24/05/2012,Current Grants,Children Young People and Families Early Years Extended Schools and Special Needs Group,LONDON BOROUGH OF BARKING & DAGENHAM COUNCIL,Public Sector,Current grant paid to local authorities,4000081325,42250
Department for Education,DEPARTMENT FOR EDUCATION,24/05/2012,Current Grants,Children Young People and Families Early Years Extended Schools and Special Needs Group,CORNWALL COUNCIL,Public Sector,Current grant paid to local authorities within the aggregate external funding total,4000081292,41250
Department for Education,DEPARTMENT FOR EDUCATION,24/05/2012,Current Grants,Children Young People and Families Early Years Extended Schools and Special Needs Group,DEVON COUNTY COUNCIL,Public Sector,Current grant paid to local authorities within the aggregate external funding total,4000081300,41250
Department for Education,DEPARTMENT FOR EDUCATION,24/05/2012,Current Grants,Children Young People and Families Early Years Extended Schools and Special Needs Group,HAMPSHIRE COUNTY COUNCIL,Public Sector,Current grant paid to local authorities within the aggregate external funding total,4000081311,41250
Department for Education,DEPARTMENT FOR EDUCATION,24/05/2012,Current Grants,Children Young People and Families Early Years Extended Schools and Special Needs Group,KENT COUNTY COUNCIL,Public Sector,Current grant paid to local authorities within the aggregate external funding total,4000081316,41250
Department for Education,DEPARTMENT FOR EDUCATION,24/05/2012,Current Grants,Children Young People and Families Early Years Extended Schools and Special Needs Group,LONDON BOROUGH OF LEWISHAM,Public Sector,Current grant paid to local authorities within the aggregate external funding total,4000081343,41250
Department for Education,DEPARTMENT FOR EDUCATION,24/05/2012,Current Grants,Children Young People and Families Early Years Extended Schools and Special Needs Group,MANCHESTER CITY COUNCIL,Public Sector,Current grant paid to local authorities within the aggregate external funding total,4000081354,41250
Department for Education,DEPARTMENT FOR EDUCATION,24/05/2012,Current Grants,Children Young People and Families Early Years Extended Schools and Special Needs Group,MEDWAY COUNCIL,Public Sector,Current grant paid to local authorities within the aggregate external funding total,4000081355,41250
Department for Education,DEPARTMENT FOR EDUCATION,24/05/2012,Current Grants,Children Young People and Families Early Years Extended Schools and Special Needs Group,NORTHAMPTONSHIRE COUNTY COUNCIL,Public Sector,Current grant paid to local authorities within the aggregate external funding total,4000081366,41250
Department for Education,DEPARTMENT FOR EDUCATION,24/05/2012,Current Grants,Children Young People and Families Early Years Extended Schools and Special Needs Group,SOUTHAMPTON CITY COUNCIL,Public Sector,Current grant paid to local authorities within the aggregate external funding total,4000081392,41250
Department for Education,DEPARTMENT FOR EDUCATION,24/05/2012,Current Grants,Children Young People and Families Early Years Extended Schools and Special Needs Group,SURREY COUNTY COUNCIL,Public Sector,Current grant paid to local authorities within the aggregate external funding total,4000081401,41250
Department for Education,DEPARTMENT FOR EDUCATION,24/05/2012,Current Grants,Children Young People and Families Early Years Extended Schools and Special Needs Group,WEST SUSSEX COUNTY COUNCIL,Public Sector,Current grant paid to local authorities within the aggregate external funding total,4000081416,41250
Department for Education,DEPARTMENT FOR EDUCATION,24/05/2012,Capital Grants,Education Funding Group,ST MATTHEW ACADEMY LTD,Public Sector,Capital grant paid to a private sector organisation,1000619,40405.86
Department for Education,DEPARTMENT FOR EDUCATION,24/05/2012,Current Grants,Children Young People and Families Early Years Extended Schools and Special Needs Group,BRIGHTON & HOVE CITY COUNCIL,Public Sector,Current grant paid to local authorities within the aggregate external funding total,4000081281,37500
Department for Education,DEPARTMENT FOR EDUCATION,24/05/2012,Current Grants,Children Young People and Families Early Years Extended Schools and Special Needs Group,DARLINGTON BOROUGH COUNCIL,Public Sector,Current grant paid to local authorities within the aggregate external funding total,4000081297,37500
Department for Education,DEPARTMENT FOR EDUCATION,24/05/2012,Current Grants,Children Young People and Families Early Years Extended Schools and Special Needs Group,EAST SUSSEX COUNTY COUNCIL,Public Sector,Current grant paid to local authorities within the aggregate external funding total,4000081306,37500
Department for Education,DEPARTMENT FOR EDUCATION,24/05/2012,Current Grants,Children Young People and Families Early Years Extended Schools and Special Needs Group,GATESHEAD MBC,Public Sector,Current grant paid to local authorities within the aggregate external funding total,4000081308,37500
Department for Education,DEPARTMENT FOR EDUCATION,24/05/2012,Current Grants,Children Young People and Families Early Years Extended Schools and Special Needs Group,HARTLEPOOL BOROUGH COUNCIL,Public Sector,Current grant paid to local authorities within the aggregate external funding total,4000081312,37500
Department for Education,DEPARTMENT FOR EDUCATION,24/05/2012,Current Grants,Children Young People and Families Early Years Extended Schools and Special Needs Group,HERTFORDSHIRE,Public Sector,Current grant paid to local authorities within the aggregate external funding total,4000081314,37500
Department for Education,DEPARTMENT FOR EDUCATION,24/05/2012,Current Grants,Children Young People and Families Early Years Extended Schools and Special Needs Group,LEICESTER CITY COUNCIL,Public Sector,Current grant paid to local authorities within the aggregate external funding total,4000081322,37500
Department for Education,DEPARTMENT FOR EDUCATION,24/05/2012,Current Grants,Children Young People and Families Early Years Extended Schools and Special Needs Group,LONDON BOROUGH OF BEXLEY COUNCIL,Public Sector,Current grant paid to local authorities within the aggregate external funding total,4000081327,37500
Department for Education,DEPARTMENT FOR EDUCATION,24/05/2012,Current Grants,Children Young People and Families Early Years Extended Schools and Special Needs Group,LONDON BOROUGH OF BROMLEY COUNCIL,Public Sector,Current grant paid to local authorities within the aggregate external funding total,4000081329,37500
Department for Education,DEPARTMENT FOR EDUCATION,24/05/2012,Current Grants,Children Young People and Families Early Years Extended Schools and Special Needs Group,LONDON BOROUGH OF GREENWICH,Public Sector,Current grant paid to local authorities within the aggregate external funding total,4000081334,37500
Department for Education,DEPARTMENT FOR EDUCATION,24/05/2012,Current Grants,Children Young People and Families Early Years Extended Schools and Special Needs Group,NORTH YORKSHIRE COUNTY COUNCIL,Public Sector,Current grant paid to local authorities within the aggregate external funding total,4000081365,37500
Department for Education,DEPARTMENT FOR EDUCATION,24/05/2012,Current Grants,Children Young People and Families Early Years Extended Schools and Special Needs Group,NOTTINGHAMSHIRE COUNTY COUNCIL,Public Sector,Current grant paid to local authorities within the aggregate external funding total,4000081369,37500
Department for Education,DEPARTMENT FOR EDUCATION,24/05/2012,Current Grants,Children Young People and Families Early Years Extended Schools and Special Needs Group,OLDHAM MBC,Public Sector,Current grant paid to local authorities within the aggregate external funding total,4000081370,37500
Department for Education,DEPARTMENT FOR EDUCATION,24/05/2012,Current Grants,Children Young People and Families Early Years Extended Schools and Special Needs Group,ROCHDALE MBC,Public Sector,Current grant paid to local authorities within the aggregate external funding total,4000081378,37500
Department for Education,DEPARTMENT FOR EDUCATION,24/05/2012,Current Grants,Children Young People and Families Early Years Extended Schools and Special Needs Group,SOLIHULL MBC,Public Sector,Current grant paid to local authorities within the aggregate external funding total,4000081388,37500
Department for Education,DEPARTMENT FOR EDUCATION,24/05/2012,Current Grants,Children Young People and Families Early Years Extended Schools and Special Needs Group,TRAFFORD MB COUNCIL,Public Sector,Current grant paid to local authorities within the aggregate external funding total,4000081410,37500
Department for Education,DEPARTMENT FOR EDUCATION,24/05/2012,Current Grants,Children Young People and Families Early Years Extended Schools and Special Needs Group,LONDON BOROUGH OF CROYDON COUNCIL,Public Sector,Current grant paid to local authorities,4000081331,36881
Department for Education,DEPARTMENT FOR EDUCATION,24/05/2012,Current Grants,Children Young People and Families Early Years Extended Schools and Special Needs Group,LONDON BOROUGH OF LAMBETH COUNCIL,Public Sector,Current grant paid to local authorities,4000081342,35875
Department for Education,DEPARTMENT FOR EDUCATION,24/05/2012,Current Grants,Children Young People and Families Early Years Extended Schools and Special Needs Group,SHROPSHIRE COUNCIL,Public Sector,Current grant paid to local authorities,4000081386,35462
Department for Education,DEPARTMENT FOR EDUCATION,24/05/2012,Current Grants,Children Young People and Families Early Years Extended Schools and Special Needs Group,BOLTON MBC,Public Sector,Current grant paid to local authorities,4000081278,34361
Department for Education,DEPARTMENT FOR EDUCATION,24/05/2012,Current Grants,Children Young People and Families Early Years Extended Schools and Special Needs Group,CALDERDALE MBC,Public Sector,Current grant paid to local authorities,4000081285,34164
Department for Education,DEPARTMENT FOR EDUCATION,24/05/2012,Current Grants,Children Young People and Families Early Years Extended Schools and Special Needs Group,OXFORDSHIRE COUNTY COUNCIL,Public Sector,Current grant paid to local authorities,4000081371,33847
Department for Education,DEPARTMENT FOR EDUCATION,24/05/2012,DfE Programme Costs,Academies Delivery Group,NOVATIA PLC,Commercial,Funding to deliver DfE policies (excluding consultancy) paid to third parties via a service delivery contract,4000081547,33818.34
Department for Education,DEPARTMENT FOR EDUCATION,24/05/2012,Current Grants,Children Young People and Families Early Years Extended Schools and Special Needs Group,BLACKPOOL BOROUGH COUNCIL,Public Sector,Current grant paid to local authorities,4000081277,32600
Department for Education,DEPARTMENT FOR EDUCATION,24/05/2012,Current Grants,Children Young People and Families Early Years Extended Schools and Special Needs Group,PORTSMOUTH CITY COUNCIL,Public Sector,Current grant paid to local authorities,4000081375,32250
Department for Education,DEPARTMENT FOR EDUCATION,24/05/2012,Current Grants,Children Young People and Families Early Years Extended Schools and Special Needs Group,BUCKINGHAMSHIRE COUNTY COUNCIL,Public Sector,Current grant paid to local authorities,4000081283,32075
Department for Education,DEPARTMENT FOR EDUCATION,24/05/2012,Current Grants,Children Young People and Families Early Years Extended Schools and Special Needs Group,LONDON BOROUGH OF BRENT,Public Sector,Current grant paid to local authorities,4000081328,30875
Department for Education,DEPARTMENT FOR EDUCATION,24/05/2012,Current Grants,Children Young People and Families Early Years Extended Schools and Special Needs Group,KNOWSLEY MBC,Public Sector,Current grant paid to local authorities,4000081319,30750
Department for Education,DEPARTMENT FOR EDUCATION,24/05/2012,Current Grants,Children Young People and Families Early Years Extended Schools and Special Needs Group,DEVON COUNTY COUNCIL,Public Sector,Current grant paid to local authorities,4000081300,30600
Department for Education,DEPARTMENT FOR EDUCATION,24/05/2012,Current Grants,Children Young People and Families Early Years Extended Schools and Special Needs Group,LIVERPOOL CITY COUNCIL,Public Sector,Current grant paid to local authorities,4000081324,28181
Department for Education,DEPARTMENT FOR EDUCATION,24/05/2012,Current Grants,Children Young People and Families Early Years Extended Schools and Special Needs Group,BARNSLEY MBC,Public Sector,Current grant paid to local authorities,4000081272,28090
Department for Education,DEPARTMENT FOR EDUCATION,24/05/2012,Current Grants,Children Young People and Families Early Years Extended Schools and Special Needs Group,SWINDON BOROUGH COUNCIL,Public Sector,Current grant paid to local authorities,4000081402,26864
Department for Education,DEPARTMENT FOR EDUCATION,24/05/2012,Current Grants,Children Young People and Families Early Years Extended Schools and Special Needs Group,GLOUCESTERSHIRE COUNTY COUNCIL,Public Sector,Current grant paid to local authorities,4000081309,26834
Department for Education,DEPARTMENT FOR EDUCATION,24/05/2012,Current Grants,Free School Group,REACH ACADEMY,Public Sector,"Current grant paid to organisations including agencies, arms length bodies and educational establishments",4000081564,26720.4
Department for Education,DEPARTMENT FOR EDUCATION,24/05/2012,Current Grants,Academies Delivery Group,ARK SCHOOLS,Public Sector,"Current grant paid to organisations including agencies, arms length bodies and educational establishments",4000081437,25000
Department for Education,DEPARTMENT FOR EDUCATION,24/05/2012,Current Grants,Academies Delivery Group,BARCLAY PRIMARY SCHOOL,Public Sector,"Current grant paid to organisations including agencies, arms length bodies and educational establishments",4000081440,25000
Department for Education,DEPARTMENT FOR EDUCATION,24/05/2012,Current Grants,Academies Delivery Group,BROCKINGTON COLLEGE,Public Sector,"Current grant paid to organisations including agencies, arms length bodies and educational establishments",4000081442,25000
Department for Education,DEPARTMENT FOR EDUCATION,24/05/2012,Current Grants,Academies Delivery Group,CHARLTON SCHOOL,Public Sector,"Current grant paid to organisations including agencies, arms length bodies and educational establishments",4000081454,25000
Department for Education,DEPARTMENT FOR EDUCATION,24/05/2012,Current Grants,Academies Delivery Group,CHURCH HILL CE JUNIOR SCHOOL,Public Sector,"Current grant paid to organisations including agencies, arms length bodies and educational establishments",4000081460,25000
Department for Education,DEPARTMENT FOR EDUCATION,24/05/2012,Current Grants,Academies Delivery Group,COSBY PRIMARY SCHOOL,Public Sector,"Current grant paid to organisations including agencies, arms length bodies and educational establishments",4000081469,25000
Department for Education,DEPARTMENT FOR EDUCATION,24/05/2012,Current Grants,Academies Delivery Group,COUNTESTHORPE COMMUNITY COLLEGE,Public Sector,"Current grant paid to organisations including agencies, arms length bodies and educational establishments",4000081470,25000
Department for Education,DEPARTMENT FOR EDUCATION,24/05/2012,Current Grants,Academies Delivery Group,DUNSTON RIVERSIDE COMMUNITY PRIMARY SCHOOL,Public Sector,"Current grant paid to organisations including agencies, arms length bodies and educational establishments",4000081476,25000
Department for Education,DEPARTMENT FOR EDUCATION,24/05/2012,Current Grants,Academies Delivery Group,GRASVENOR AVENUE INFANT SCHOOL,Public Sector,"Current grant paid to organisations including agencies, arms length bodies and educational establishments",4000081489,25000
Department for Education,DEPARTMENT FOR EDUCATION,24/05/2012,Current Grants,Academies Delivery Group,HARRY CARLTON SCHOOL,Public Sector,"Current grant paid to organisations including agencies, arms length bodies and educational establishments",4000081490,25000
Department for Education,DEPARTMENT FOR EDUCATION,24/05/2012,Current Grants,Academies Delivery Group,HOLLEY PARK PRIMARY SCHOOL,Public Sector,"Current grant paid to organisations including agencies, arms length bodies and educational establishments",4000081498,25000
Department for Education,DEPARTMENT FOR EDUCATION,24/05/2012,Current Grants,Academies Delivery Group,LATCHMERE SCHOOL,Public Sector,"Current grant paid to organisations including agencies, arms length bodies and educational establishments",4000081519,25000
Department for Education,DEPARTMENT FOR EDUCATION,24/05/2012,Current Grants,Academies Delivery Group,LEYSLAND HIGH SCHOOL,Public Sector,"Current grant paid to organisations including agencies, arms length bodies and educational establishments",4000081524,25000
Department for Education,DEPARTMENT FOR EDUCATION,24/05/2012,Current Grants,Academies Delivery Group,MOUNT GRACE HIGH SCHOOL,Public Sector,"Current grant paid to organisations including agencies, arms length bodies and educational establishments",4000081543,25000
Department for Education,DEPARTMENT FOR EDUCATION,24/05/2012,Current Grants,Academies Delivery Group,OUR LADY OF PERTETUAL SUCCOUR RC SCHOOL,Public Sector,"Current grant paid to organisations including agencies, arms length bodies and educational establishments",4000081549,25000
Department for Education,DEPARTMENT FOR EDUCATION,24/05/2012,Current Grants,Academies Delivery Group,QUEINIBOROUGH CE PRIMARY SCHOOL,Public Sector,"Current grant paid to organisations including agencies, arms length bodies and educational establishments",4000081558,25000
Department for Education,DEPARTMENT FOR EDUCATION,24/05/2012,Current Grants,Academies Delivery Group,REDLAND GREEN SCHOOL,Public Sector,"Current grant paid to organisations including agencies, arms length bodies and educational establishments",4000081567,25000
Department for Education,DEPARTMENT FOR EDUCATION,24/05/2012,Current Grants,Academies Delivery Group,SILVERDALE SCHOOL,Public Sector,"Current grant paid to organisations including agencies, arms length bodies and educational establishments",4000081579,25000
Department for Education,DEPARTMENT FOR EDUCATION,24/05/2012,Current Grants,Academies Delivery Group,ST MICHAEL & ALL ANGELS CE PRIMARY SCHOOL,Public Sector,"Current grant paid to organisations including agencies, arms length bodies and educational establishments",4000081584,25000
Department for Education,DEPARTMENT FOR EDUCATION,24/05/2012,Current Grants,Academies Delivery Group,ST NICHOLAS CE PRIMARY SCHOOL,Public Sector,"Current grant paid to organisations including agencies, arms length bodies and educational establishments",4000081585,25000
Department for Education,DEPARTMENT FOR EDUCATION,24/05/2012,Current Grants,Academies Delivery Group,ST PETER & PAULS CE A PRIMARY SCHOOL,Public Sector,"Current grant paid to organisations including agencies, arms length bodies and educational establishments",4000081586,25000
Department for Education,DEPARTMENT FOR EDUCATION,24/05/2012,Current Grants,Academies Delivery Group,ST TERESAS RC PRIMARY SCHOOL,Public Sector,"Current grant paid to organisations including agencies, arms length bodies and educational establishments",4000081587,25000
Department for Education,DEPARTMENT FOR EDUCATION,24/05/2012,Current Grants,Academies Delivery Group,THE MERTON PRIMARY SCHOOL,Public Sector,"Current grant paid to organisations including agencies, arms length bodies and educational establishments",4000081600,25000
Department for Education,DEPARTMENT FOR EDUCATION,24/05/2012,Current Grants,Academies Delivery Group,TODDINGTON ST GEORGE LOWER SCHOOL,Public Sector,"Current grant paid to organisations including agencies, arms length bodies and educational establishments",4000081604,25000
Department for Education,DEPARTMENT FOR EDUCATION,24/05/2012,Current Grants,Academies Delivery Group,TUDHOE COLLIERY PRIMARY SCHOOL,Public Sector,"Current grant paid to organisations including agencies, arms length bodies and educational establishments",4000081607,25000
Department for Education,DEPARTMENT FOR EDUCATION,24/05/2012,Current Grants,Academies Delivery Group,WADE DEACON HIGH SCHOOL,Public Sector,"Current grant paid to organisations including agencies, arms length bodies and educational establishments",4000081610,25000
Department for Education,DEPARTMENT FOR EDUCATION,24/05/2012,DfE Programme Costs,Free School Group,PKF UK LLP,Commercial,Funding to deliver DfE policies (excluding consultancy) paid to third parties via a service delivery contract,4000081555,24875.99
Department for Education,DEPARTMENT FOR EDUCATION,24/05/2012,Current Grants,Children Young People and Families Early Years Extended Schools and Special Needs Group,PLYMOUTH CITY COUNCIL,Public Sector,Current grant paid to local authorities,4000081373,24390
Department for Education,DEPARTMENT FOR EDUCATION,24/05/2012,Current Grants,Academies Delivery Group,ARK SCHOOLS,Public Sector,"Current grant paid to organisations including agencies, arms length bodies and educational establishments",4000081437,22683.24
Department for Education,DEPARTMENT FOR EDUCATION,24/05/2012,Current Grants,Children Young People and Families Early Years Extended Schools and Special Needs Group,LONDON BOROUGH OF LEWISHAM,Public Sector,Current grant paid to local authorities,4000081343,17475
Department for Education,DEPARTMENT FOR EDUCATION,24/05/2012,ICT,CHIEF INFORMATION OFFICER GROUP,CAPGEMINI UK PLC,Commercial,Costs related to the provision of IT services,4000081447,16709.75
Department for Education,DEPARTMENT FOR EDUCATION,24/05/2012,Current Grants,Children Young People and Families Early Years Extended Schools and Special Needs Group,DARLINGTON BOROUGH COUNCIL,Public Sector,Current grant paid to local authorities,4000081297,15354
Department for Education,DEPARTMENT FOR EDUCATION,24/05/2012,Current Grants,Children Young People and Families Early Years Extended Schools and Special Needs Group,METROPOLITAN BOROUGH OF WIRRAL,Public Sector,Current grant paid to local authorities,4000081356,13200
Department for Education,DEPARTMENT FOR EDUCATION,24/05/2012,DfE Programme Costs,Free School Group,PKF UK LLP,Commercial,Funding to deliver DfE policies (excluding consultancy) paid to third parties via a service delivery contract,4000081555,6002
Department for Education,DEPARTMENT FOR EDUCATION,24/05/2012,ICT,CHIEF INFORMATION OFFICER GROUP,CAPGEMINI UK PLC,Commercial,Costs related to the provision of IT services,4000081447,1760
Department for Education,DEPARTMENT FOR EDUCATION,24/05/2012,Current Grants,Children Young People and Families Early Years Extended Schools and Special Needs Group,COUNCIL OF THE ISLES OF SCILLY,Public Sector,Current grant paid to local authorities within the aggregate external funding total,4000081294,1720
Department for Education,DEPARTMENT FOR EDUCATION,24/05/2012,ICT,Private Office,THE STATIONERY OFFICE LTD,Commercial,Costs related to the provision of books and publications including journals,4000081602,289.17
Department for Education,DEPARTMENT FOR EDUCATION,24/05/2012,Capital Grants,Children Young People and Families Early Years Extended Schools and Special Needs Group,CENTRAL BEDFORDSHIRE COUNCIL,Public Sector,Capital grants paid to Local Authorities,4000081287,-57
Department for Education,DEPARTMENT FOR EDUCATION,24/05/2012,Capital Grants,Children Young People and Families Early Years Extended Schools and Special Needs Group,DORSET COUNTY COUNCIL,Public Sector,Capital grants paid to Local Authorities,4000081302,-82
Department for Education,DEPARTMENT FOR EDUCATION,24/05/2012,Capital Grants,Children Young People and Families Early Years Extended Schools and Special Needs Group,THE ROYAL BOROUGH OF KENSINGTON & CHELSEA COUNCIL,Public Sector,Capital grants paid to Local Authorities,4000081406,-148
Department for Education,DEPARTMENT FOR EDUCATION,24/05/2012,Capital Grants,Children Young People and Families Early Years Extended Schools and Special Needs Group,SOUTHEND ON SEA BOROUGH COUNCIL,Public Sector,Capital grants paid to Local Authorities,4000081393,-332
Department for Education,DEPARTMENT FOR EDUCATION,24/05/2012,Capital Grants,Children Young People and Families Early Years Extended Schools and Special Needs Group,LONDON BOROUGH OF NEWHAM,Public Sector,Capital grants paid to Local Authorities,4000081345,-3387
Department for Education,DEPARTMENT FOR EDUCATION,24/05/2012,Capital Grants,Children Young People and Families Early Years Extended Schools and Special Needs Group,DERBYSHIRE COUNTY COUNCIL,Public Sector,Capital grants paid to Local Authorities,4000081299,-5321
Department for Education,DEPARTMENT FOR EDUCATION,24/05/2012,Capital Grants,Children Young People and Families Early Years Extended Schools and Special Needs Group,LINCOLNSHIRE COUNTY COUNCIL,Public Sector,Capital grants paid to Local Authorities,4000081525,-5998
Department for Education,DEPARTMENT FOR EDUCATION,24/05/2012,Capital Grants,Children Young People and Families Early Years Extended Schools and Special Needs Group,RUTLAND COUNTY COUNCIL,Public Sector,Capital grants paid to Local Authorities,4000081381,-6572
Department for Education,DEPARTMENT FOR EDUCATION,24/05/2012,Capital Grants,Children Young People and Families Early Years Extended Schools and Special Needs Group,WOKINGHAM BOROUGH COUNCIL,Public Sector,Capital grants paid to Local Authorities,4000081419,-7611
Department for Education,DEPARTMENT FOR EDUCATION,24/05/2012,Capital Grants,Children Young People and Families Early Years Extended Schools and Special Needs Group,LONDON BOROUGH OF BARKING & DAGENHAM COUNCIL,Public Sector,Capital grants paid to Local Authorities,4000081325,-8351
Department for Education,DEPARTMENT FOR EDUCATION,24/05/2012,Capital Grants,Children Young People and Families Early Years Extended Schools and Special Needs Group,LONDON BOROUGH OF CAMDEN,Public Sector,Capital grants paid to Local Authorities,4000081330,-13284
Department for Education,DEPARTMENT FOR EDUCATION,24/05/2012,Capital Grants,Children Young People and Families Early Years Extended Schools and Special Needs Group,SANDWELL MBC,Public Sector,Capital grants paid to Local Authorities,4000081383,-13556
Department for Education,DEPARTMENT FOR EDUCATION,24/05/2012,Capital Grants,Children Young People and Families Early Years Extended Schools and Special Needs Group,NORTHUMBERLAND COUNTY COUNCIL,Public Sector,Capital grants paid to Local Authorities,4000081367,-15499
Department for Education,DEPARTMENT FOR EDUCATION,24/05/2012,Capital Grants,Children Young People and Families Early Years Extended Schools and Special Needs Group,WIGAN MBC,Public Sector,Capital grants paid to Local Authorities,4000081417,-18940
Department for Education,DEPARTMENT FOR EDUCATION,24/05/2012,Capital Grants,Children Young People and Families Early Years Extended Schools and Special Needs Group,CUMBRIA COUNTY COUNCIL,Public Sector,Capital grants paid to Local Authorities,4000081296,-20119
Department for Education,DEPARTMENT FOR EDUCATION,24/05/2012,Capital Grants,Children Young People and Families Early Years Extended Schools and Special Needs Group,DURHAM COUNTY COUNCIL,Public Sector,Capital grants paid to Local Authorities,4000081304,-20789
Department for Education,DEPARTMENT FOR EDUCATION,24/05/2012,Capital Grants,Children Young People and Families Early Years Extended Schools and Special Needs Group,LONDON BOROUGH OF HOUNSLOW COUNCIL,Public Sector,Capital grants paid to Local Authorities,4000081340,-22424
Department for Education,DEPARTMENT FOR EDUCATION,24/05/2012,Capital Grants,Children Young People and Families Early Years Extended Schools and Special Needs Group,BUCKINGHAMSHIRE COUNTY COUNCIL,Public Sector,Capital grants paid to Local Authorities,4000081283,-24679
Department for Education,DEPARTMENT FOR EDUCATION,24/05/2012,Capital Grants,Children Young People and Families Early Years Extended Schools and Special Needs Group,PORTSMOUTH CITY COUNCIL,Public Sector,Capital grants paid to Local Authorities,4000081375,-33363
Department for Education,DEPARTMENT FOR EDUCATION,24/05/2012,Capital Grants,Children Young People and Families Early Years Extended Schools and Special Needs Group,REDCAR & CLEVELAND BOROUGH COUNCIL,Public Sector,Capital grants paid to Local Authorities,4000081377,-35950
Department for Education,DEPARTMENT FOR EDUCATION,24/05/2012,Current Grants,Children Young People and Families Early Years Extended Schools and Special Needs Group,COUNCIL OF THE ISLES OF SCILLY,Public Sector,Current grant for Sure Start payments to local authorities,4000081294,-47311
Department for Education,DEPARTMENT FOR EDUCATION,24/05/2012,Capital Grants,Children Young People and Families Early Years Extended Schools and Special Needs Group,BOURNEMOUTH BOROUGH COUNCIL,Public Sector,Capital grants paid to Local Authorities,4000081279,-50671
Department for Education,DEPARTMENT FOR EDUCATION,24/05/2012,Capital Grants,Children Young People and Families Early Years Extended Schools and Special Needs Group,LONDON BOROUGH OF HAVERING COUNCIL,Public Sector,Capital grants paid to Local Authorities,4000081338,-54649
Department for Education,DEPARTMENT FOR EDUCATION,24/05/2012,Capital Grants,Children Young People and Families Early Years Extended Schools and Special Needs Group,MILTON KEYNES COUNCIL,Public Sector,Capital grants paid to Local Authorities,4000081358,-57833
Department for Education,DEPARTMENT FOR EDUCATION,24/05/2012,Capital Grants,Children Young People and Families Early Years Extended Schools and Special Needs Group,COUNCIL OF THE ISLES OF SCILLY,Public Sector,Capital grants paid to Local Authorities,4000081294,-59391
Department for Education,DEPARTMENT FOR EDUCATION,24/05/2012,Capital Grants,Children Young People and Families Early Years Extended Schools and Special Needs Group,NORTHAMPTONSHIRE COUNTY COUNCIL,Public Sector,Capital grants paid to Local Authorities,4000081366,-61342
Department for Education,DEPARTMENT FOR EDUCATION,24/05/2012,Capital Grants,Children Young People and Families Early Years Extended Schools and Special Needs Group,LONDON BOROUGH OF LEWISHAM,Public Sector,Capital grants paid to Local Authorities,4000081343,-79194
Department for Education,DEPARTMENT FOR EDUCATION,24/05/2012,Capital Grants,Children Young People and Families Early Years Extended Schools and Special Needs Group,KIRKLEES COUNCIL,Public Sector,Capital grants paid to Local Authorities,4000081318,-81612
Department for Education,DEPARTMENT FOR EDUCATION,24/05/2012,Capital Grants,Children Young People and Families Early Years Extended Schools and Special Needs Group,KNOWSLEY MBC,Public Sector,Capital grants paid to Local Authorities,4000081319,-87765
Department for Education,DEPARTMENT FOR EDUCATION,24/05/2012,Capital Grants,Children Young People and Families Early Years Extended Schools and Special Needs Group,SURREY COUNTY COUNCIL,Public Sector,Capital grants paid to Local Authorities,4000081401,-105276
Department for Education,DEPARTMENT FOR EDUCATION,24/05/2012,Capital Grants,Children Young People and Families Early Years Extended Schools and Special Needs Group,PETERBOROUGH CITY COUNCIL,Public Sector,Capital grants paid to Local Authorities,4000081372,-106211
Department for Education,DEPARTMENT FOR EDUCATION,24/05/2012,Capital Grants,Children Young People and Families Early Years Extended Schools and Special Needs Group,SHEFFIELD CITY COUNCIL,Public Sector,Capital grants paid to Local Authorities,4000081385,-121384
Department for Education,DEPARTMENT FOR EDUCATION,24/05/2012,Capital Grants,Children Young People and Families Early Years Extended Schools and Special Needs Group,LONDON BOROUGH OF WANDSWORTH COUNCIL,Public Sector,Capital grants paid to Local Authorities,4000081352,-123262
Department for Education,DEPARTMENT FOR EDUCATION,24/05/2012,Capital Grants,Children Young People and Families Early Years Extended Schools and Special Needs Group,LONDON BOROUGH OF CROYDON COUNCIL,Public Sector,Capital grants paid to Local Authorities,4000081331,-136684
Department for Education,DEPARTMENT FOR EDUCATION,24/05/2012,Capital Grants,Children Young People and Families Early Years Extended Schools and Special Needs Group,DONCASTER MBC,Public Sector,Capital grants paid to Local Authorities,4000081301,-145136
Department for Education,DEPARTMENT FOR EDUCATION,24/05/2012,Capital Grants,Children Young People and Families Early Years Extended Schools and Special Needs Group,WARWICKSHIRE COUNTY COUNCIL,Public Sector,Capital grants paid to Local Authorities,4000081414,-147647
Department for Education,DEPARTMENT FOR EDUCATION,24/05/2012,Capital Grants,Children Young People and Families Early Years Extended Schools and Special Needs Group,COVENTRY CITY COUNCIL,Public Sector,Capital grants paid to Local Authorities,4000081295,-148334
Department for Education,DEPARTMENT FOR EDUCATION,24/05/2012,Capital Grants,Children Young People and Families Early Years Extended Schools and Special Needs Group,WOLVERHAMPTON CITY COUNCIL,Public Sector,Capital grants paid to Local Authorities,4000081420,-155994
Department for Education,DEPARTMENT FOR EDUCATION,24/05/2012,Capital Grants,Children Young People and Families Early Years Extended Schools and Special Needs Group,LEICESTERSHIRE COUNTY COUNCIL,Public Sector,Capital grants paid to Local Authorities,4000081323,-161375
Department for Education,DEPARTMENT FOR EDUCATION,24/05/2012,Capital Grants,Children Young People and Families Early Years Extended Schools and Special Needs Group,LONDON BOROUGH OF BEXLEY COUNCIL,Public Sector,Capital grants paid to Local Authorities,4000081327,-228597
Department for Education,DEPARTMENT FOR EDUCATION,24/05/2012,Capital Grants,Children Young People and Families Early Years Extended Schools and Special Needs Group,LANCASHIRE COUNTY COUNCIL,Public Sector,Capital grants paid to Local Authorities,4000081320,-229483
Department for Education,DEPARTMENT FOR EDUCATION,24/05/2012,Capital Grants,Children Young People and Families Early Years Extended Schools and Special Needs Group,HERTFORDSHIRE,Public Sector,Capital grants paid to Local Authorities,4000081314,-269976
Department for Education,DEPARTMENT FOR EDUCATION,24/05/2012,Capital Grants,Children Young People and Families Early Years Extended Schools and Special Needs Group,NORTH EAST LINCOLNSHIRE COUNCIL,Public Sector,Capital grants paid to Local Authorities,4000081361,-286964
Department for Education,DEPARTMENT FOR EDUCATION,24/05/2012,Capital Grants,Children Young People and Families Early Years Extended Schools and Special Needs Group,LONDON BOROUGH OF ENFIELD COUNCIL,Public Sector,Capital grants paid to Local Authorities,4000081333,-355055
Department for Education,DEPARTMENT FOR EDUCATION,25/05/2012,Facilities,CHIEF INFORMATION OFFICER GROUP,INTERSERVE FACILITIES MANAGEMENT LTD,Commercial,"Costs related to building maintenance and repair, including repainting, replacing flooring, etc.",4000081696,342986.65
Department for Education,DEPARTMENT FOR EDUCATION,25/05/2012,Current Grants,Children Young People and Families Early Years Extended Schools and Special Needs Group,NASEN,VCS,Current grant to third sector organisation / not for profit organisation,4000081704,194144.06
Department for Education,DEPARTMENT FOR EDUCATION,25/05/2012,DfE Programme Costs,Families Group,KINGS COLLEGE LONDON,Public Sector,Funding to deliver DfE policies (excluding consultancy) paid to third parties via a service delivery contract,4000081698,140000
Department for Education,DEPARTMENT FOR EDUCATION,25/05/2012,Current Grants,Academies Delivery Group,WOODARD ACADAMIES TRUST,Public Sector,"Current grant paid to organisations including agencies, arms length bodies and educational establishments",4000081741,130266.41
Department for Education,DEPARTMENT FOR EDUCATION,25/05/2012,Travel and Events,SCHOOL STANDARDS GROUP,CREATIVE CHOICE,Public Sector,Costs related to hosting management conferences including organisation services and venue hire,4000081686,120816
Department for Education,DEPARTMENT FOR EDUCATION,25/05/2012,Current Grants,Families Group,CATCH 22,VCS,Current grant to third sector organisation / not for profit organisation,4000081681,96448
Department for Education,DEPARTMENT FOR EDUCATION,25/05/2012,ICT,CHIEF INFORMATION OFFICER GROUP,CAPGEMINI UK PLC,Commercial,Capital licences and Intangible work in progress,4000081679,86367.09
Department for Education,DEPARTMENT FOR EDUCATION,25/05/2012,Professional Services Other,Academies Policy and School Organisation Group,DLA PIPER UK LLP,Commercial,Costs related to legal service provided externally (excluding the Treasury Solicitor),4000081691,75079.4
Department for Education,DEPARTMENT FOR EDUCATION,25/05/2012,Current Grants,Families Group,NATIONAL CHILDRENS BUREAU,VCS,Current grant to third sector organisation / not for profit organisation,4000081705,67102.52
Department for Education,DEPARTMENT FOR EDUCATION,25/05/2012,Current Grants,Children Young People and Families Early Years Extended Schools and Special Needs Group,YOUNG MINDS,VCS,Current grant to third sector organisation / not for profit organisation,4000081742,60826
Department for Education,DEPARTMENT FOR EDUCATION,25/05/2012,DfE Programme Costs,Families Group,THE FOSTERING NETWORK,VCS,Funding to deliver DfE policies (excluding consultancy) paid to third parties via a service delivery contract,4000081727,58345.99
Department for Education,DEPARTMENT FOR EDUCATION,25/05/2012,Current Grants,Academies Delivery Group,UNITED LEARNING TRUST,Public Sector,"Current grant paid to organisations including agencies, arms length bodies and educational establishments",4000081737,47000
Department for Education,DEPARTMENT FOR EDUCATION,25/05/2012,Current Grants,Children Young People and Families Early Years Extended Schools and Special Needs Group,NATIONAL DAY NURSERIES ASSOCIATION,VCS,Current grant to third sector organisation / not for profit organisation,4000081706,45833.33
Department for Education,DEPARTMENT FOR EDUCATION,25/05/2012,DfE Programme Costs,Children Young People and Families Supporting Delivery Group,THE LEARNING TRUST,VCS,Funding to deliver DfE policies (excluding consultancy) paid to third parties via a service delivery contract,4000081728,35196.07
Department for Education,DEPARTMENT FOR EDUCATION,25/05/2012,DfE Programme Costs,Free School Group,PKF UK LLP,Commercial,Funding to deliver DfE policies (excluding consultancy) paid to third parties via a service delivery contract,4000081711,30437
Department for Education,DEPARTMENT FOR EDUCATION,25/05/2012,Current Grants,Free School Group,ONE IN A MILLION FREE SCHOOL,Public Sector,"Current grant paid to organisations including agencies, arms length bodies and educational establishments",4000081710,30344.66
Department for Education,DEPARTMENT FOR EDUCATION,25/05/2012,Current Grants,Free School Group,THE RURAL ENTERPRISE ACADEMY,Public Sector,"Current grant paid to organisations including agencies, arms length bodies and educational establishments",4000081730,28941.32
Department for Education,DEPARTMENT FOR EDUCATION,25/05/2012,Current Grants,Families Group,WHO CARES TRUST,VCS,Current grant to third sector organisation / not for profit organisation,4000081739,28702
Department for Education,DEPARTMENT FOR EDUCATION,25/05/2012,ICT,CHIEF INFORMATION OFFICER GROUP,CAPGEMINI UK PLC,Commercial,Costs related to the provision of IT services,4000081679,25703.5
Department for Education,DEPARTMENT FOR EDUCATION,25/05/2012,Current Grants,Academies Delivery Group,SIMPSONS LANE J & I SCHOOL,Public Sector,"Current grant paid to organisations including agencies, arms length bodies and educational establishments",4000081719,25000
Department for Education,DEPARTMENT FOR EDUCATION,25/05/2012,Current Grants,Academies Delivery Group,ST MARYS RC PRIMARY SCHOOL,Public Sector,"Current grant paid to organisations including agencies, arms length bodies and educational establishments",4000081721,25000
Department for Education,DEPARTMENT FOR EDUCATION,25/05/2012,Professional Services Temporary Staff,Finance and Commercial Group,CAPITA RESOURCING LTD,Commercial,Costs related to temporary workers,4000081680,23767.08
Department for Education,DEPARTMENT FOR EDUCATION,25/05/2012,Professional Services Temporary Staff,CHIEF INFORMATION OFFICER GROUP,CAPITA RESOURCING LTD,Commercial,Costs related to temporary workers,4000081680,11522.4
Department for Education,DEPARTMENT FOR EDUCATION,25/05/2012,ICT,Communications Group,CAPGEMINI UK PLC,Commercial,Costs related to the provision of IT costs,4000081679,3373.3
Department for Education,DEPARTMENT FOR EDUCATION,28/05/2012,Current Grants,Young People's Learning Agency Resource Costs,DEPARTMENT FOR BUSINESS INNOVATION & SKILLS,Public Sector,"Current grant paid to organisations including agencies, arms length bodies and educational establishments",2000599,51100769
Department for Education,DEPARTMENT FOR EDUCATION,28/05/2012,ICT,PARTICIPATION AND VOCATIONAL EDUCATION GROUP,STERIA LTD,Commercial,Costs related to the provision of IT costs,4000081832,200665.98
Department for Education,DEPARTMENT FOR EDUCATION,28/05/2012,ICT,CHIEF INFORMATION OFFICER GROUP,REDWEB,Commercial,Costs related to the provision of IT costs,4000081826,157468
Department for Education,DEPARTMENT FOR EDUCATION,28/05/2012,DfE Programme Costs,SCHOOL STANDARDS GROUP,UNIVERSITY OF WINCHESTER,Public Sector,Funding to deliver DfE policies (excluding consultancy) paid to third parties via a service delivery contract,4000081837,131857
Department for Education,DEPARTMENT FOR EDUCATION,28/05/2012,Professional Services Other,CHIEF INFORMATION OFFICER GROUP,DEPARTMENT FOR WORK & PENSIONS,Public Sector,Costs related to advisory shared corporate payroll services,4000081808,73000
Department for Education,DEPARTMENT FOR EDUCATION,28/05/2012,DfE Programme Costs,Education Funding Group,NAVIGANT CONSULTING,Commercial,Funding to deliver DfE policies (excluding consultancy) paid to third parties via a service delivery contract,4000081819,48437.26
Department for Education,DEPARTMENT FOR EDUCATION,28/05/2012,DfE Programme Costs,Academies Delivery Group,SCINTILLA ASSOCIATES LTD,Commercial,Funding to deliver DfE policies (excluding consultancy) paid to third parties via a service delivery contract,4000081830,29715.36
Department for Education,DEPARTMENT FOR EDUCATION,28/05/2012,DfE Programme Costs,Free School Group,PLACE GROUP LTD,Commercial,Funding to deliver DfE policies (excluding consultancy) paid to third parties via a service delivery contract,4000081824,21649.5
Department for Education,DEPARTMENT FOR EDUCATION,28/05/2012,DfE Programme Costs,Academies Delivery Group,PLACE GROUP LTD,Commercial,Funding to deliver DfE policies (excluding consultancy) paid to third parties via a service delivery contract,4000081824,8618.94
Department for Education,DEPARTMENT FOR EDUCATION,29/05/2012,DfE Programme Costs,Supporting Children and Young People Group,BIG LOTTERY FUND,Public Sector,Funding to deliver DfE policies (excluding consultancy) paid to third parties via a service delivery contract,4000081913,547631
